Workbook

Sheet y=x2_5P
B1: y=x^2 | C1: 0<x<1 | J1: =PI()/180 -> 0.01745329252
B3: qin | C3: 75.34346592 | E3: Dq | F3: 100 | H3: Rx | I3: =F3 -> 100 | J3: =LN(2) -> 0.6931471806 | N3: 30
B4: fin | C4: 49.374577 | E4: Df | F4: 100 | H4: Ry | I4: =F4 -> 100 | N4: 10.90943725
F5: =C20*C14+C21*D14+C22-F14 -> 0
N6: 96.55334769
B7: x | C7: y | D7: q | E7: f
B8: =0.5-0.5*COS(PI()/10) -> 0.02447174185 | C8: =B8^2 -> 0.0005988661493 | D8: =$C$3+$I$3*(B8) -> 77.79064011 | E8: =$C$4+$I$4*C8 -> 49.43446361 | G8: =D8*D_R -> 1.357702797 | H8: =E8*D_R -> 0.862794154
B9: =0.5-0.5*COS(3*PI()/10) -> 0.2061073739 | C9: =B9^2 -> 0.04248024956 | D9: =$C$3+$I$3*(B9) -> 95.95420331 | E9: =$C$4+$I$4*C9 -> 53.62260195 | G9: 1.674716779 | H9: 0.9358909576
B10: =0.5-0.5*COS(5*PI()/10) -> 0.5 | C10: 0.25 | D10: =$C$3+$I$3*(B10) -> 125.3434659 | E10: 74.374577 | G10: 2.187656176 | H10: 1.298081248
B11: =0.5-0.5*COS(7*PI()/10) -> 0.7938926261 | C11: 0.6302655018 | D11: 154.7327285 | E11: 112.4011272 | G11: 2.700595574 | H11: 1.961769752
B12: =0.5-0.5*COS(9*PI()/10) -> 0.9755282581 | C12: 0.9516553824 | D12: 172.8962917 | E12: 144.5401152 | G12: =D12*D_R -> 3.017609555 | H12: =E12*D_R -> 2.522700912
C14: =COS(H8) -> 0.6503173952 | D14: =-COS(G8) -> -0.2114844652 | E14: 1 | F14: =COS(H8-G8) -> 0.8800121036
C15: =COS(H9) -> 0.5931013272 | D15: =-COS(G9) -> 0.1037335055 | E15: 1 | F15: =COS(H9-G9) -> 0.739259784
C16: 0.2693471639 | D16: 0.5784765991 | E16: 1 | F16: 0.6297422813 | H16: Det | I16: =MDETERM(C14:F17) -> 3.993802689e-08
C17: -0.3810885649 | D17: 0.9043265178 | E17: 1 | F17: 0.739259784
C18: -0.8145218939 | D18: 0.9923239361 | E18: 1 | F18: 0.8800121036
A19: =C3+180 -> 255.3434659 | H19: =$C$20*C14+$C$21*D14+$C$22-F14 -> 0
A20: =C4+180 -> 229.374577 | C20: =MMULT(MINVERSE(C14:E16),F14:F16) -> -0.431288845 | E20: a2 | F20: =1/C20 -> -2.318631728 | G20: =-F20 -> 2.318631728 | H20: =$C$20*C15+$C$21*D15+$C$22-F15 -> 0
C21: -0.5248081861 | E21: a3 | F21: =SQRT(1+F20^2+F22^2-2*C22*F20*F22) -> 0.856354458 | H21: 0
C22: 1.049497963 | E22: a4 | F22: =1/C21 -> -1.905458082 | G22: =-F22 -> 1.905458082 | H22: -5.332877782e-07
H23: 3.414813354e-07
C24: =C20*C17+C21*D17+C22-F17 -> -5.332877782e-07 | E24: =SQRT(C24^2+C25^2) -> 6.332498376e-07
C25: =C20*C18+C21*D18+C22-F18 -> 3.414813354e-07 | H25: =MIN(H27:H119) -> -0.005967720873
E26: x | F26: yreq | G26: ygen | H26: =MAX(H27:H119) -> 0.01463354699
A27: =C3 -> 75.34346592 | B27: =A27*D_R+PI() -> 4.456584204 | C27: =fourbar($G$20,$F$21,$G$22,1,1,B27) -> 4.028881947 | D27: =C27/D_R-180 -> 50.8379317 | E27: =1/$I$3*(A27-$A$27) -> 0 | F27: =E27^2 -> 0 | G27: =1/$I$4*(D27-$C$4) -> 0.01463354699 | H27: =G27-F27 -> 0.01463354699
A28: =A27+1 -> 76.34346592 | B28: 4.474037496 | C28: 4.014509422 | D28: 50.01444669 | E28: =1/$I$3*(A28-$A$27) -> 0.01 | F28: =E28^2 -> 0.0001 | G28: 0.00639869698 | H28: =G28-F28 -> 0.00629869698
A29: =A28+1 -> 77.34346592 | B29: 4.491490789 | C29: 4.00668659 | D29: 49.56623141 | E29: =1/$I$3*(A29-$A$27) -> 0.02 | F29: =E29^2 -> 0.0004 | G29: 0.001916544152 | H29: 0.001516544152
A30: =D8 -> 77.79064011 | B30: 4.499295451 | C30: =fourbar($G$20,$F$21,$G$22,1,1,B30) -> 4.004386808 | D30: 49.43446361 | E30: =1/$I$3*(A30-$A$27) -> 0.02447174185 | F30: =E30^2 -> 0.0005988661493 | G30: =1/$I$4*(D30-$C$4) -> 0.0005988661493 | H30: -3.718813452e-16
A31: =A29+1 -> 78.34346592 | B31: 4.508944081 | C31: 4.002280381 | D31: 49.31377429 | E31: =1/$I$3*(A31-$A$27) -> 0.03 | F31: =E31^2 -> 0.0009 | G31: =1/$I$4*(D31-$C$4) -> -0.0006080270975 | H31: -0.001508027098
A32: =A31+1 -> 79.34346592 | B32: 4.526397374 | C32: 4.000080512 | D32: 49.18773107 | E32: 0.04 | F32: 0.0016 | G32: -0.001868459288 | H32: -0.003468459288
A33: 80.34346592 | B33: 4.543850666 | C33: 3.999468686 | D33: 49.152676 | E33: 0.05 | F33: 0.0025 | G33: -0.002219009946 | H33: -0.004719009946
A34: 81.34346592 | B34: 4.561303959 | C34: 4.000079468 | D34: 49.18767123 | E34: 0.06 | F34: 0.0036 | G34: -0.001869057694 | H34: -0.005469057694
A35: 82.34346592 | B35: 4.578757251 | C35: 4.001676274 | D35: 49.27916147 | E35: 0.07 | F35: 0.0049 | G35: -0.0009541552944 | H35: -0.005854155294
A36: 83.34346592 | B36: 4.596210544 | C36: 4.004096058 | D36: 49.41780491 | E36: 0.08 | F36: 0.0064 | G36: 0.0004322791266 | H36: -0.005967720873
A37: 84.34346592 | B37: 4.613663836 | C37: 4.007221234 | D37: 49.59686426 | E37: 0.09 | F37: 0.0081 | G37: 0.002222872636 | H37: -0.005877127364
A38: 85.34346592 | B38: 4.631117129 | C38: 4.010964035 | D38: 49.811311 | E38: 0.1 | F38: 0.01 | G38: 0.004367340029 | H38: -0.005632659971
A39: 86.34346592 | B39: 4.648570422 | C39: 4.015257194 | D39: 50.05729086 | E39: 0.11 | F39: 0.0121 | G39: 0.006827138677 | H39: -0.005272861323
A40: 87.34346592 | B40: 4.666023714 | C40: 4.020048057 | D40: 50.33178711 | E40: 0.12 | F40: 0.0144 | G40: 0.009572101088 | H40: -0.004827898912
A41: 88.34346592 | B41: 4.683477007 | C41: 4.025294722 | D41: 50.63239887 | E41: 0.13 | F41: 0.0169 | G41: 0.01257821869 | H41: -0.004321781305
A42: 89.34346592 | B42: 4.700930299 | C42: 4.030963396 | D42: 50.95718999 | E42: 0.14 | F42: 0.0196 | G42: 0.01582612992 | H42: -0.003773870083
A43: 90.34346592 | B43: 4.718383592 | C43: 4.037026543 | D43: 51.30458271 | E43: 0.15 | F43: 0.0225 | G43: 0.01930005715 | H43: -0.003199942853
A44: 91.34346592 | B44: 4.735836884 | C44: 4.043461542 | D44: 51.67328099 | E44: 0.16 | F44: 0.0256 | G44: 0.02298703997 | H44: -0.002612960035
A45: 92.34346592 | B45: 4.753290177 | C45: 4.050249703 | D45: 52.06221397 | E45: 0.17 | F45: 0.0289 | G45: 0.02687636972 | H45: -0.002023630282
A46: 93.34346592 | B46: 4.770743469 | C46: 4.057375524 | D46: 52.47049345 | E46: 0.18 | F46: 0.0324 | G46: 0.0309591645 | H46: -0.001440835501
A47: 94.34346592 | B47: 4.788196762 | C47: 4.064826125 | D47: 52.89738142 | E47: 0.19 | F47: 0.0361 | G47: 0.03522804425 | H47: -0.0008719557467
A48: 95.34346592 | B48: 4.805650054 | C48: 4.072590806 | D48: 53.34226487 | E48: 0.2 | F48: 0.04 | G48: 0.0396768787 | H48: -0.0003231213018
A49: =D9 -> 95.95420331 | B49: 4.816309432 | C49: 4.077483611 | D49: 53.62260195 | E49: 0.2061073739 | F49: 0.04248024956 | G49: 0.04248024956 | H49: 1.665334537e-16
A50: =A48+1 -> 96.34346592 | B50: 4.823103347 | C50: 4.080660703 | D50: 53.80463591 | E50: 0.21 | F50: 0.0441 | G50: 0.04430058913 | H50: 0.0002005891266
A51: 97.34346592 | B51: 4.840556639 | C51: 4.089028512 | D51: 54.28407607 | E51: 0.22 | F51: 0.0484 | G51: 0.04909499071 | H51: 0.0006949907144
A52: 98.34346592 | B52: 4.858009932 | C52: 4.097688269 | D52: 54.78024357 | E52: 0.23 | F52: 0.0529 | G52: 0.0540566657 | H52: 0.001156665703
A53: 99.34346592 | B53: 4.875463224 | C53: 4.106635166 | D53: 55.29286304 | E53: 0.24 | F53: 0.0576 | G53: 0.05918286041 | H53: 0.001582860411
A54: 100.3434659 | B54: 4.892916517 | C54: 4.115865411 | D54: 55.82171708 | E54: 0.25 | F54: 0.0625 | G54: 0.06447140085 | H54: 0.00197140085
A55: 101.3434659 | B55: 4.910369809 | C55: 4.125376098 | D55: 56.3666393 | E55: 0.26 | F55: 0.0676 | G55: 0.06992062301 | H55: 0.002320623014
A56: 102.3434659 | B56: 4.927823102 | C56: 4.135165112 | D56: 56.92750848 | E56: 0.27 | F56: 0.0729 | G56: 0.07552931485 | H56: 0.002629314845
A57: 103.3434659 | B57: 4.945276394 | C57: 4.145231041 | D57: 57.50424375 | E57: 0.28 | F57: 0.0784 | G57: 0.08129666757 | H57: 0.002896667575
A58: 104.3434659 | B58: 4.962729687 | C58: 4.155573106 | D58: 58.09680046 | E58: 0.29 | F58: 0.0841 | G58: 0.08722223464 | H58: 0.003122234637
A59: 105.3434659 | B59: =A59*D_R+PI() -> 4.980182979 | C59: 4.1661911 | D59: =C59/D_R-180 -> 58.70516667 | E59: 0.3 | F59: 0.09 | G59: 0.09330589675 | H59: 0.003305896754
A60: 106.3434659 | B60: 4.997636272 | C60: 4.177085332 | D60: 59.3293602 | E60: 0.31 | F60: 0.0961 | G60: 0.09954783206 | H60: 0.003447832058
A61: 107.3434659 | B61: 5.015089564 | C61: 4.188256588 | D61: 59.96942603 | E61: 0.32 | F61: 0.1024 | G61: 0.1059484904 | H61: 0.003548490363
A62: 108.3434659 | B62: 5.032542857 | C62: 4.199706089 | D62: 60.62543408 | E62: 0.33 | F62: 0.1089 | G62: 0.1125085708 | H62: 0.00360857085
A63: 109.3434659 | B63: 5.049996149 | C63: 4.211435455 | D63: 61.29747725 | E63: 0.34 | F63: 0.1156 | G63: 0.1192290026 | H63: 0.003629002574
A64: 110.3434659 | B64: 5.067449442 | C64: 4.223446679 | D64: 61.98566973 | E64: 0.35 | F64: 0.1225 | G64: 0.1261109273 | H64: 0.00361092731
A65: 111.3434659 | B65: 5.084902734 | C65: 4.2357421 | D65: 62.69014543 | E65: 0.36 | F65: 0.1296 | G65: 0.1331556843 | H65: 0.003555684318
A66: 112.3434659 | B66: 5.102356027 | C66: 4.248324375 | D66: 63.41105667 | E66: 0.37 | F66: 0.1369 | G66: 0.1403647967 | H66: 0.003464796696
A67: 113.3434659 | B67: 5.11980932 | C67: 4.261196461 | D67: 64.1485729 | E67: 0.38 | F67: 0.1444 | G67: 0.147739959 | H67: 0.003339959025
A68: 114.3434659 | B68: 5.137262612 | C68: 4.274361597 | D68: 64.9028796 | E68: 0.39 | F68: 0.1521 | G68: 0.1552830261 | H68: 0.003183026065
A69: 115.3434659 | B69: 5.154715905 | C69: 4.28782328 | D69: 65.67417722 | E69: 0.4 | F69: 0.16 | G69: 0.1629960023 | H69: 0.002996002267
A70: 116.3434659 | B70: 5.172169197 | C70: 4.301585253 | D70: 66.46268019 | E70: 0.41 | F70: 0.1681 | G70: 0.1708810319 | H70: 0.002781031938
A71: 117.3434659 | B71: 5.18962249 | C71: 4.315651486 | D71: 67.26861598 | E71: 0.42 | F71: 0.1764 | G71: 0.1789403899 | H71: 0.002540389865
A72: 118.3434659 | B72: 5.207075782 | C72: 4.330026161 | D72: 68.09222422 | E72: 0.43 | F72: 0.1849 | G72: 0.1871764723 | H72: 0.002276472265
A73: 119.3434659 | B73: 5.224529075 | C73: 4.344713658 | D73: 68.93375579 | E73: 0.44 | F73: 0.1936 | G73: 0.1955917879 | H73: 0.001991787906
A74: 120.3434659 | B74: 5.241982367 | C74: 4.359718535 | D74: 69.79347193 | E74: 0.45 | F74: 0.2025 | G74: 0.2041889493 | H74: 0.001688949286
A75: 121.3434659 | B75: 5.25943566 | C75: 4.375045518 | D75: 70.67164337 | E75: 0.46 | F75: 0.2116 | G75: 0.2129706637 | H75: 0.001370663732
A76: 122.3434659 | B76: 5.276888952 | C76: 4.390699482 | D76: 71.56854943 | E76: 0.47 | F76: 0.2209 | G76: 0.2219397243 | H76: 0.001039724319
A77: 123.3434659 | B77: 5.294342245 | C77: 4.406685435 | D77: 72.48447705 | E77: 0.48 | F77: 0.2304 | G77: 0.2310990005 | H77: 0.0006990004915
A78: 124.3434659 | B78: 5.311795537 | C78: 4.4230085 | D78: 73.41971982 | E78: 0.49 | F78: 0.2401 | G78: 0.2404514283 | H78: 0.0003514282785
A79: 125.3434659 | B79: 5.32924883 | C79: 4.439673902 | D79: 74.374577 | E79: 0.5 | F79: 0.25 | G79: 0.25 | H79: 1.165734176e-15
A80: 126.3434659 | B80: 5.346702122 | C80: 4.456686941 | D80: 75.34935233 | E80: 0.51 | F80: 0.2601 | G80: 0.2597477534 | H80: -0.0003522466385
A81: 127.3434659 | B81: 5.364155415 | C81: 4.474052978 | D81: 76.34435298 | E81: 0.52 | F81: 0.2704 | G81: 0.2696977598 | H81: -0.0007022401698
A82: 128.3434659 | B82: 5.381608707 | C82: 4.491777412 | D82: 77.35988822 | E82: 0.53 | F82: 0.2809 | G82: 0.2798531122 | H82: -0.001046887807
A83: 129.3434659 | B83: 5.399062 | C83: 4.509865653 | D83: 78.39626812 | E83: 0.54 | F83: 0.2916 | G83: 0.2902169112 | H83: -0.001383088809
A84: 130.3434659 | B84: 5.416515292 | C84: 4.528323104 | D84: 79.45380211 | E84: 0.55 | F84: 0.3025 | G84: 0.3007922511 | H84: -0.001707748866
A85: 131.3434659 | B85: 5.433968585 | C85: 4.547155125 | D85: 80.53279743 | E85: 0.56 | F85: 0.3136 | G85: 0.3115822044 | H85: -0.002017795622
A86: 132.3434659 | B86: 5.451421877 | C86: 4.566367011 | D86: 81.63355746 | E86: 0.57 | F86: 0.3249 | G86: 0.3225898046 | H86: -0.002310195408
A87: 133.3434659 | B87: 5.46887517 | C87: 4.585963959 | D87: 82.75637986 | E87: 0.58 | F87: 0.3364 | G87: 0.3338180287 | H87: -0.00258197132
A88: 134.3434659 | B88: 5.486328462 | C88: 4.605951031 | D88: 83.90155473 | E88: 0.59 | F88: 0.3481 | G88: 0.3452697773 | H88: -0.002830222705
A89: 135.3434659 | B89: 5.503781755 | C89: 4.62633312 | D89: 85.06936238 | E89: 0.6 | F89: 0.36 | G89: 0.3569478538 | H89: -0.003052146179
A90: 136.3434659 | B90: 5.521235047 | C90: 4.647114909 | D90: 86.26007117 | E90: 0.61 | F90: 0.3721 | G90: 0.3688549418 | H90: -0.003245058232
A91: 137.3434659 | B91: =A91*D_R+PI() -> 5.53868834 | C91: =fourbar($G$20,$F$21,$G$22,1,1,B91) -> 4.66830083 | D91: =C91/D_R-180 -> 87.47393504 | E91: 0.62 | F91: 0.3844 | G91: 0.3809935805 | H91: -0.003406419534
A92: 138.3434659 | B92: 5.556141633 | C92: 4.689895018 | D92: 88.7111909 | E92: 0.63 | F92: 0.3969 | G92: 0.393366139 | H92: -0.003533860986
A93: 139.3434659 | B93: 5.573594925 | C93: 4.711901263 | D93: 89.97205584 | E93: 0.64 | F93: 0.4096 | G93: 0.4059747884 | H93: -0.003625211586
A94: 140.3434659 | B94: 5.591048218 | C94: 4.734322955 | D94: 91.25672418 | E94: 0.65 | F94: 0.4225 | G94: 0.4188214718 | H94: =G94-F94 -> -0.003678528154
A95: =A94+1 -> 141.3434659 | B95: 5.60850151 | C95: 4.757163034 | D95: 92.5653643 | E95: =1/$I$3*(A95-$A$27) -> 0.66 | F95: 0.4356 | G95: 0.4319078731 | H95: -0.003692126932
A96: 142.3434659 | B96: 5.625954803 | C96: 4.780423927 | D96: 93.89811529 | E96: 0.67 | F96: =E96^2 -> 0.4489 | G96: =1/$I$4*(D96-$C$4) -> 0.4452353829 | H96: -0.003664617063
A97: 143.3434659 | B97: 5.643408095 | C97: 4.804107488 | D97: 95.2550834 | E97: 0.68 | F97: 0.4624 | G97: 0.4588050641 | H97: -0.003594935921
A98: 144.3434659 | B98: 5.660861388 | C98: 4.828214935 | D98: 96.63633837 | E98: 0.69 | F98: 0.4761 | G98: 0.4726176138 | H98: -0.003482386229
A99: 145.3434659 | B99: 5.67831468 | C99: 4.85274678 | D99: 98.04190951 | E99: 0.7 | F99: 0.49 | G99: 0.4866733251 | H99: -0.003326674856
A100: 146.3434659 | B100: 5.695767973 | C100: 4.877702757 | D100: 99.47178168 | E100: 0.71 | F100: 0.5041 | G100: 0.5009720468 | H100: -0.00312795316
A101: 147.3434659 | B101: 5.713221265 | C101: 4.903081754 | D101: 100.9258911 | E101: 0.72 | F101: 0.5184 | G101: 0.5155131413 | H101: -0.002886858659
A102: 148.3434659 | B102: 5.730674558 | C102: 4.928881736 | D102: 102.4041212 | E102: 0.73 | F102: 0.5329 | G102: 0.5302954422 | H102: -0.002604557787
A103: 149.3434659 | B103: 5.74812785 | C103: 4.955099668 | D103: 103.9062981 | E103: 0.74 | F103: 0.5476 | G103: 0.5453172106 | H103: -0.002282789389
A104: 150.3434659 | B104: 5.765581143 | C104: 4.981731439 | D104: 105.4321861 | E104: 0.75 | F104: 0.5625 | G104: 0.5605760914 | H104: -0.001923908568
A105: 151.3434659 | B105: 5.783034435 | C105: 5.008771787 | D105: 106.981484 | E105: 0.76 | F105: 0.5776 | G105: 0.5760690696 | H105: -0.001530930394
A106: 152.3434659 | B106: 5.800487728 | C106: 5.036214223 | D106: 108.5538197 | E106: 0.77 | F106: 0.5929 | G106: 0.5917924271 | H106: -0.001107572896
A107: 153.3434659 | B107: 5.81794102 | C107: 5.064050958 | D107: 110.1487471 | E107: 0.78 | F107: 0.6084 | G107: 0.6077417013 | H107: -0.0006582986786
A108: 154.3434659 | B108: 5.835394313 | C108: 5.092272835 | D108: 111.7657416 | E108: 0.79 | F108: 0.6241 | G108: 0.6239116456 | H108: -0.0001883543898
A109: 155.3434659 | B109: 5.852847605 | C109: 5.120869264 | D109: 113.4041963 | E109: 0.8 | F109: 0.64 | G109: 0.6402961928 | H109: 0.0002961928198
A110: 156.3434659 | B110: 5.870300898 | C110: 5.149828169 | D110: 115.0634193 | E110: 0.81 | F110: 0.6561 | G110: 0.6568884228 | H110: 0.0007884228209
A111: 157.3434659 | B111: 5.88775419 | C111: 5.179135933 | D111: 116.7426305 | E111: 0.82 | F111: 0.6724 | G111: 0.6736805351 | H111: 0.001280535067
A112: 158.3434659 | B112: 5.905207483 | C112: 5.20877737 | D112: 118.4409597 | E112: 0.83 | F112: 0.6889 | G112: 0.6906638273 | H112: 0.001763827345
A113: 159.3434659 | B113: 5.922660775 | C113: 5.238735693 | D113: 120.1574452 | E113: 0.84 | F113: 0.7056 | G113: 0.7078286819 | H113: 0.002228681927
A114: 160.3434659 | B114: 5.940114068 | C114: 5.268992509 | D114: 121.891033 | E114: 0.85 | F114: 0.7225 | G114: 0.7251645604 | H114: 0.002664560402
A115: 161.3434659 | B115: 5.95756736 | C115: 5.299527826 | D115: 123.6405778 | E115: 0.86 | F115: 0.7396 | G115: 0.7426600085 | H115: 0.003060008452
A116: 162.3434659 | B116: 5.975020653 | C116: 5.330320083 | D116: 125.4048442 | E116: 0.87 | F116: 0.7569 | G116: 0.7603026719 | H116: 0.003402671864
A117: 163.3434659 | B117: 5.992473946 | C117: 5.361346195 | D117: 127.1825095 | E117: 0.88 | F117: 0.7744 | G117: 0.778079325 | H117: 0.003679324957
A118: 164.3434659 | B118: 6.009927238 | C118: 5.392581633 | D118: 128.9721682 | E118: 0.89 | F118: 0.7921 | G118: 0.7959759125 | H118: 0.003875912524
A119: 165.3434659 | B119: 6.027380531 | C119: 5.424000515 | D119: 130.7723376 | E119: 0.9 | F119: 0.81 | G119: 0.8139776062 | H119: 0.003977606161
A120: 166.3434659 | B120: 6.044833823 | C120: 5.455575737 | D120: 132.5814646 | E120: 0.91 | F120: 0.8281 | G120: 0.8320688756 | H120: 0.003968875648
A121: 167.3434659 | B121: 6.062287116 | C121: 5.48727912 | D121: 134.3979346 | E121: 0.92 | F121: 0.8464 | G121: 0.8502335757 | H121: 0.00383357566
A122: 168.3434659 | B122: 6.079740408 | C122: 5.519081588 | D122: 136.2200818 | E122: 0.93 | F122: 0.8649 | G122: 0.8684550477 | H122: 0.003555047745
A123: 169.3434659 | B123: =A123*D_R+PI() -> 6.097193701 | C123: 5.550953376 | D123: =C123/D_R-180 -> 138.0462007 | E123: 0.94 | F123: 0.8836 | G123: 0.886716237 | H123: 0.003116236973
A124: 170.3434659 | B124: 6.114646993 | C124: 5.582864252 | D124: 139.8745592 | E124: 0.95 | F124: 0.9025 | G124: 0.9049998222 | H124: 0.00249982217
A125: 171.3434659 | B125: 6.132100286 | C125: 5.614783768 | D125: 141.7034128 | E125: 0.96 | F125: 0.9216 | G125: 0.9232883581 | H125: 0.001688358072
A126: 172.3434659 | B126: 6.149553578 | C126: 5.646681526 | D126: 143.5310197 | E126: 0.97 | F126: 0.9409 | G126: 0.9415644271 | H126: 0.0006644271279
A127: 173.3434659 | B127: 6.167006871 | C127: 5.678527451 | D127: 145.3556568 | E127: 0.98 | F127: 0.9604 | G127: 0.9598107982 | H127: -0.0005892018334
A128: 174.3434659 | B128: 6.184460163 | C128: 5.710292078 | D128: 147.1756359 | E128: 0.99 | F128: 0.9801 | G128: 0.9780105886 | H128: -0.002089411422
A129: 175.3434659 | B129: 6.201913456 | C129: 5.741946831 | D129: 148.9893196 | E129: 1 | F129: 1 | G129: 0.9961474263 | H129: -0.003852573702

Sheet y=x2_4DVLeast
A1: Synthesize | I1: =PI()/180 -> 0.01745329252
A2: y=x^2 | C2: 0<x<1 | L2: Optimal Synthesis of Function Generators Without the Branch Defect
L3: Tinunu&Gupta
B4: qin | C4: 123.3962631 | D4: =C4*D_R -> 2.153671075 | I4: =PI()/180 -> 0.01745329252 | L4: Transactions of the ASME | N4: Vol. 106, SEPTEMBER 1984
B5: fin | C5: 49.374577 | D5: =C5*D_R -> 0.8617489354 | H5: qin | K5: qin | N5: qin
H6: fin | K6: fin | N6: fin
B7: Dq | C7: 60 | D7: =C7/9 -> 6.666666667 | E7: =D7*D_R -> 0.1163552835 | H7: qin | K7: qin | N7: qin
B8: Df | C8: 40 | D8: =C8/LOG(10) -> 40 | E8: =D8*D_R -> 0.6981317008 | H8: fin | K8: fin | N8: fin
B10: y=sin(X)
B11: x | C11: y(required) | D11: q | E11: f | G11: q | H11: f | J11: cosf | K11: cosq | L11: cos(f-q) | M11: cos2f | N11: cos2q | O11: cosfcosq | P11: cosq*cos(f-q) | Q11: cosf*cos(f-q) | S11: EQ4 | T11: EQ5
B12: 0 | C12: =B12^2 -> 0 | D12: =$C$4+$C$7*C12 -> 123.3962631 | E12: =$C$5+$C$8*C12 -> 49.374577 | G12: =D12*D_R -> 2.153671075 | H12: 0.8617489354 | J12: =COS(H12) -> 0.6511110533 | K12: =COS(G12) -> -0.5504262887 | L12: =COS(H12-G12) -> 0.2752735049 | M12: =J12^2 -> 0.4239456038 | N12: =K12^2 -> 0.3029690993 | O12: =J12*K12 -> -0.3583886406 | P12: =L12*K12 -> -0.1515177737 | Q12: =J12*L12 -> 0.1792336217 | S12: =(-SIN(G12)*$C$31-SIN(H12-G12))*($C$30*COS(H12)-$C$31*COS(G12)+$C$32-COS(H12-G12)) -> -0.0006137282993 | T12: =(-SIN(H12)*$C$30+SIN(H12-G12))*($C$30*COS(H12)-$C$31*COS(G12)+$C$32-COS(H12-G12)) -> 0.0007969914004
B13: 0.1 | C13: =B13^2 -> 0.01 | D13: =$C$4+$C$7*C13 -> 123.9962631 | E13: =$C$5+$C$8*C13 -> 49.774577 | G13: 2.164143051 | H13: 0.8687302524 | J13: =COS(H13) -> 0.645796532 | K13: =COS(G13) -> -0.559138831 | L13: =COS(H13-G13) -> 0.2719160344 | M13: =J13^2 -> 0.4170531608 | N13: 0.3126362323 | O13: =J13*K13 -> -0.361089918 | P13: =L13*K13 -> -0.1520388136 | Q13: =J13*L13 -> 0.175602432 | S13: =(-SIN(G13)*$C$31-SIN(H13-G13))*($C$30*COS(H13)-$C$31*COS(G13)+$C$32-COS(H13-G13)) -> -0.0004834136372 | T13: =(-SIN(H13)*$C$30+SIN(H13-G13))*($C$30*COS(H13)-$C$31*COS(G13)+$C$32-COS(H13-G13)) -> 0.0006289321602
B14: 0.2 | C14: 0.04 | D14: 125.7962631 | E14: 50.974577 | G14: 2.195558977 | H14: 0.8896742034 | J14: 0.6296651605 | K14: -0.5849047747 | L14: 0.2618239075 | M14: 0.3964782143 | N14: 0.3421135955 | O14: -0.3682941589 | P14: -0.1531420537 | Q14: 0.1648613928 | S14: -0.0001363703525 | T14: 0.0001784030626
B15: 0.3 | C15: 0.09 | D15: 128.7962631 | E15: 52.974577 | G15: 2.247918855 | H15: 0.9245807884 | J15: 0.6021693305 | K15: -0.6265529802 | L15: 0.2449404397 | M15: 0.3626079026 | N15: 0.3925686371 | O15: -0.3772909887 | P15: -0.1534681625 | Q15: 0.1474956206 | S15: 0.0003044085442 | T15: -0.0004018397856
B16: 0.4 | C16: 0.16 | D16: 132.9962631 | E16: 55.774577 | G16: 2.321222683 | H16: 0.9734500075 | J16: 0.5624503107 | K16: -0.6819506584 | L16: 0.2211793942 | M16: 0.316350352 | N16: 0.4650567006 | O16: -0.3835633597 | P16: -0.1508334335 | Q16: 0.124402419 | S16: 0.0006639222305 | T16: -0.0008872021694
B17: 0.5 | C17: 0.25 | D17: 138.3962631 | E17: 59.374577 | G17: 2.415470463 | H17: 1.036281861 | J17: 0.5094232899 | K17: -0.7477547865 | L17: 0.1904374423 | M17: 0.2595120883 | N17: 0.5591372207 | O17: -0.3809237033 | P17: -0.142400509 | Q17: 0.09701326839 | S17: 0.0007628218434 | T17: -0.001034825316
B18: 0.6 | C18: 0.36 | D18: 144.9962631 | E18: 63.774577 | G18: 2.530662194 | H18: 1.113076348 | J18: 0.4419039364 | K18: -0.8191146329 | L18: 0.1526117875 | M18: 0.195279089 | N18: 0.6709487818 | O18: -0.3619699806 | P18: -0.1250065483 | Q18: 0.06743974962 | S18: 0.0004870983519 | T18: -0.0006723818868
B19: 0.7 | C19: 0.49 | D19: 152.7962631 | E19: 68.974577 | G19: 2.666797875 | H19: 1.203833469 | J19: 0.358782158 | K19: -0.8893865587 | L19: 0.1076230684 | M19: 0.1287246369 | N19: 0.7910084507 | O19: -0.3190960288 | P19: -0.09571851047 | Q19: 0.03861323674 | S19: -0.0001226317896 | T19: 0.0001725485249
B20: 0.8 | C20: 0.64 | D20: 161.7962631 | E20: 74.974577 | G20: 2.823877508 | H20: 1.308553224 | J20: 0.2592476155 | K20: -0.9499516785 | L20: 0.0554435978 | M20: 0.06720932614 | N20: 0.9024081914 | O20: -0.2462727075 | P20: -0.05266873879 | Q20: 0.01437362052 | S20: -0.0007722692157 | T20: 0.001108696447
B21: 0.9 | C21: 0.81 | D21: 171.9962631 | E21: =$C$5+$C$8*C21 -> 81.774577 | G21: 3.001901092 | H21: 1.427235613 | J21: 0.1430680983 | K21: -0.9902589895 | L21: -0.003869142214 | M21: 0.02046848076 | N21: 0.9806128663 | O21: -0.1416744705 | P21: 0.003831452859 | Q21: -0.0005535508187 | S21: -0.000826449637 | T21: 0.001210631109
B22: 1 | C22: 1 | D22: 183.3962631 | E22: 89.374577 | G22: 3.200868626 | H22: 1.559880636 | J22: 0.01091547385 | K22: -0.9982436939 | L22: -0.07013404011 | M22: 0.0001191475695 | N22: 0.9964904723 | O22: -0.01089630294 | P22: 0.07001086327 | Q22: -0.0007655462811 | S22: 0.0007366095018 | T22: -0.001099689048
J24: =SUM(J12:J22) -> 4.814532959 | K24: =SUM(K12:K22) -> -8.397683873 | L24: 1.707245994 | M24: 2.587748002 | N24: 6.715950248 | O24: -3.30946026 | P24: -1.102952227 | Q24: 1.007716264 | S24: =SUM(S12:S22) -> -2.459533844e-09 | T24: =SUM(T12:T22) -> 2.644981887e-07
C26: =M24 -> 2.587748002 | D26: =-O24 -> 3.30946026 | E26: =J24 -> 4.814532959 | G26: =Q24 -> 1.007716264 | M26: =M27/D_R -> 321.487624
C27: =O24 -> -3.30946026 | D27: =-N24 -> -6.715950248 | E27: =K24 -> -8.397683873 | G27: =P24 -> -1.102952227 | K27: 75 | L27: =K27*D_R -> 1.308996939 | M27: =fourbar(ABS(F31),F32,ABS(F33),F30,-1,L27+PI()) -> 5.611017544
C28: =J24 -> 4.814532959 | D28: =-K24 -> 8.397683873 | E28: 9 | G28: =L24 -> 1.707245994
K29: 4 Design Parameter
B30: K1 | C30: =MMULT(MINVERSE(C26:E28),G26:G28) -> 0.4851045848 | E30: a1 | F30: 1 | I30: d1 | J30: =S24 -> -2.459533844e-09 | L30: qin,
B31: K2 | C31: -0.07481747408 | E31: a2 | F31: =F30/C30 -> 2.06141115 | G31: =-F31 -> -2.06141115 | I31: d2 | J31: =T24 -> 2.644981887e-07
B32: K3 | C32: -1.391365414e-06 | E32: a3 | F32: =SQRT(F30^2+F31^2+F33^2-2*C32*F31*F33) -> 13.56081097 | I32: d | J32: =SQRT(J30^2+J31^2) -> 2.645096239e-07
E33: a4 | F33: =F30/C31 -> -13.36586155 | G33: =-F33 -> 13.36586155
E37: x | F37: yreq | G37: ygen
A38: =C4 -> 123.3962631 | B38: =A38*D_R -> 2.153671075 | C38: =fourbar($F$31,$F$32,$G$33,1,-1,B38) -> 4.002890724 | D38: =C38/D_R-180 -> 49.34874436 | E38: =1/$C$7*(A38-$C$4) -> 0 | F38: =E38^2 -> 0 | G38: =1/$C$8*(D38-$C$5) -> -0.0006458159013 | H38: =G38-F38 -> -0.0006458159013
A39: =A38+1 -> 124.3962631 | B39: 2.171124368 | C39: =fourbar($F$31,$F$32,$G$33,1,-1,B39) -> 4.014684177 | D39: 50.02445943 | E39: =1/$C$7*(A39-$C$4) -> 0.01666666667 | F39: =E39^2 -> 0.0002777777778 | G39: =1/$C$8*(D39-$C$5) -> 0.01624706079 | H39: =G39-F39 -> 0.01596928301
A40: =A39+1 -> 125.3962631 | B40: 2.18857766 | C40: 4.026461328 | D40: 50.69924049 | E40: 0.03333333333 | F40: =E40^2 -> 0.001111111111 | G40: 0.03311658739 | H40: 0.03200547628
A41: =A40+1 -> 126.3962631 | B41: 2.206030953 | C41: 4.038222931 | D41: 51.37313068 | E41: 0.05 | F41: =E41^2 -> 0.0025 | G41: 0.04996384212 | H41: 0.04746384212
A42: =A40+1 -> 126.3962631 | B42: 2.206030953 | C42: 4.038222931 | D42: 51.37313068 | E42: 0.05 | F42: =E42^2 -> 0.0025 | G42: 0.04996384212 | H42: 0.04746384212
A43: =A42+1 -> 127.3962631 | B43: 2.223484245 | C43: 4.049969722 | D43: 52.04617221 | E43: 0.06666666667 | F43: 0.004444444444 | G43: 0.06678988033 | H43: 0.06234543588
A44: 128.3962631 | B44: 2.240937538 | C44: 4.061702422 | D44: 52.71840641 | E44: 0.08333333333 | F44: 0.006944444444 | G44: 0.08359573521 | H44: 0.07665129076
A45: 129.3962631 | B45: 2.25839083 | C45: 4.073421738 | D45: 53.38987374 | E45: 0.1 | F45: 0.01 | G45: 0.1003824187 | H45: 0.09038241865
A46: 130.3962631 | B46: 2.275844123 | C46: 4.085128361 | D46: 54.06061388 | E46: 0.1166666667 | F46: 0.01361111111 | G46: 0.117150922 | H46: 0.1035398109
A47: 131.3962631 | B47: 2.293297415 | C47: 4.096822971 | D47: 54.73066566 | E47: 0.1333333333 | F47: 0.01777777778 | G47: 0.1339022166 | H47: 0.1161244389
A48: 132.3962631 | B48: 2.310750708 | C48: 4.108506232 | D48: 55.4000672 | E48: 0.15 | F48: 0.0225 | G48: 0.150637255 | H48: 0.128137255
A49: 133.3962631 | B49: 2.328204 | C49: 4.120178796 | D49: 56.06885583 | E49: 0.1666666667 | F49: 0.02777777778 | G49: 0.1673569708 | H49: 0.139579193
A50: 134.3962631 | B50: 2.345657293 | C50: 4.131841302 | D50: 56.73706821 | E50: 0.1833333333 | F50: 0.03361111111 | G50: 0.1840622802 | H50: 0.1504511691
A51: 135.3962631 | B51: 2.363110585 | C51: 4.143494378 | D51: 57.40474028 | E51: 0.2 | F51: 0.04 | G51: 0.2007540821 | H51: 0.1607540821
A52: 136.3962631 | B52: 2.380563878 | C52: 4.15513864 | D52: 58.07190735 | E52: 0.2166666667 | F52: 0.04694444444 | G52: 0.2174332587 | H52: 0.1704888143
A53: 137.3962631 | B53: 2.39801717 | C53: 4.166774692 | D53: 58.73860406 | E53: 0.2333333333 | F53: 0.05444444444 | G53: 0.2341006766 | H53: 0.1796562321
A54: 138.3962631 | B54: 2.415470463 | C54: 4.17840313 | D54: 59.40486446 | E54: 0.25 | F54: 0.0625 | G54: 0.2507571866 | H54: 0.1882571866
A55: 139.3962631 | B55: 2.432923756 | C55: 4.190024537 | D55: 60.070722 | E55: 0.2666666667 | F55: 0.07111111111 | G55: 0.2674036252 | H55: 0.1962925141
A56: 140.3962631 | B56: 2.450377048 | C56: 4.201639486 | D56: 60.73620956 | E56: 0.2833333333 | F56: 0.08027777778 | G56: 0.2840408142 | H56: 0.2037630364
A57: 141.3962631 | B57: 2.467830341 | C57: 4.213248542 | D57: 61.40135947 | E57: 0.3 | F57: 0.09 | G57: 0.3006695618 | H57: 0.2106695618
A58: 142.3962631 | B58: 2.485283633 | C58: 4.224852259 | D58: 62.06620353 | E58: 0.3166666667 | F58: 0.1002777778 | G58: 0.3172906633 | H58: 0.2170128855
A59: 143.3962631 | B59: 2.502736926 | C59: 4.236451185 | D59: 62.73077303 | E59: 0.3333333333 | F59: 0.1111111111 | G59: 0.3339049008 | H59: 0.2227937897
A60: 144.3962631 | B60: 2.520190218 | C60: 4.248045857 | D60: 63.39509878 | E60: 0.35 | F60: 0.1225 | G60: 0.3505130447 | H60: 0.2280130447
A61: 145.3962631 | B61: 2.537643511 | C61: 4.259636804 | D61: 64.05921112 | E61: 0.3666666667 | F61: 0.1344444444 | G61: 0.3671158532 | H61: 0.2326714087
A62: 146.3962631 | B62: 2.555096803 | C62: 4.271224548 | D62: 64.72313993 | E62: 0.3833333333 | F62: 0.1469444444 | G62: 0.3837140735 | H62: 0.236769629
A63: 147.3962631 | B63: 2.572550096 | C63: 4.282809602 | D63: 65.38691467 | E63: 0.4 | F63: 0.16 | G63: 0.4003084418 | H63: 0.2403084418
A64: 148.3962631 | B64: 2.590003388 | C64: 4.294392475 | D64: 66.05056436 | E64: 0.4166666667 | F64: 0.1736111111 | G64: 0.4168996842 | H64: 0.2432885731
A65: 149.3962631 | B65: 2.607456681 | C65: 4.305973664 | D65: 66.71411766 | E65: 0.4333333333 | F65: 0.1877777778 | G65: 0.4334885165 | H65: 0.2457107388
A66: 150.3962631 | B66: 2.624909973 | C66: 4.317553665 | D66: 67.37760281 | E66: 0.45 | F66: 0.2025 | G66: 0.4500756452 | H66: 0.2475756452
A67: 151.3962631 | B67: 2.642363266 | C67: 4.329132962 | D67: 68.0410477 | E67: 0.4666666667 | F67: 0.2177777778 | G67: 0.4666617676 | H67: 0.2488839898
A68: 152.3962631 | B68: 2.659816558 | C68: 4.340712038 | D68: 68.70447988 | E68: 0.4833333333 | F68: 0.2336111111 | G68: 0.4832475721 | H68: 0.2496364609
A69: 153.3962631 | B69: 2.677269851 | C69: 4.352291367 | D69: 69.36792655 | E69: 0.5 | F69: 0.25 | G69: 0.4998337389 | H69: 0.2498337389
A70: 154.3962631 | B70: =A70*D_R -> 2.694723143 | C70: 4.363871418 | D70: =C70/D_R-180 -> 70.03141461 | E70: 0.5166666667 | F70: 0.2669444444 | G70: 0.5164209403 | H70: 0.2494764959
A71: 155.3962631 | B71: 2.712176436 | C71: 4.375452656 | D71: 70.69497064 | E71: 0.5333333333 | F71: 0.2844444444 | G71: 0.533009841 | H71: 0.2485653965
A72: 156.3962631 | B72: 2.729629728 | C72: 4.387035538 | D72: 71.35862092 | E72: 0.55 | F72: 0.3025 | G72: 0.5496010982 | H72: 0.2471010982
A73: 157.3962631 | B73: 2.747083021 | C73: 4.39862052 | D73: 72.0223915 | E73: 0.5666666667 | F73: 0.3211111111 | G73: 0.5661953625 | H73: 0.2450842514
A74: 158.3962631 | B74: 2.764536313 | C74: 4.410208051 | D74: 72.68630812 | E74: 0.5833333333 | F74: 0.3402777778 | G74: 0.582793278 | H74: 0.2425155002
A75: 159.3962631 | B75: 2.781989606 | C75: 4.421798577 | D75: 73.35039629 | E75: 0.6 | F75: 0.36 | G75: 0.5993954824 | H75: 0.2393954824
A76: 160.3962631 | B76: 2.799442898 | C76: 4.433392537 | D76: 74.0146813 | E76: 0.6166666667 | F76: 0.3802777778 | G76: 0.6160026076 | H76: 0.2357248299
A77: 161.3962631 | B77: 2.816896191 | C77: 4.444990371 | D77: 74.67918821 | E77: 0.6333333333 | F77: 0.4011111111 | G77: 0.6326152803 | H77: 0.2315041692
A78: 162.3962631 | B78: 2.834349483 | C78: 4.456592511 | D78: 75.34394187 | E78: 0.65 | F78: 0.4225 | G78: 0.6492341217 | H78: 0.2267341217
A79: 163.3962631 | B79: 2.851802776 | C79: 4.468199387 | D79: 76.00896693 | E79: 0.6666666667 | F79: 0.4444444444 | G79: 0.6658597482 | H79: 0.2214153038
A80: 164.3962631 | B80: 2.869256069 | C80: 4.479811429 | D80: 76.67428787 | E80: 0.6833333333 | F80: 0.4669444444 | G80: 0.6824927718 | H80: 0.2155483274
A81: 165.3962631 | B81: 2.886709361 | C81: 4.491429058 | D81: 77.339929 | E81: 0.7 | F81: 0.49 | G81: 0.6991338002 | H81: 0.2091338002
A82: 166.3962631 | B82: 2.904162654 | C82: 4.503052697 | D82: 78.00591448 | E82: 0.7166666667 | F82: 0.5136111111 | G82: 0.715783437 | H82: 0.2021723259
A83: 167.3962631 | B83: 2.921615946 | C83: 4.514682765 | D83: 78.6722683 | E83: 0.7333333333 | F83: 0.5377777778 | G83: 0.7324422826 | H83: 0.1946645048
A84: 168.3962631 | B84: 2.939069239 | C84: 4.526319679 | D84: 79.33901435 | E84: 0.75 | F84: 0.5625 | G84: 0.7491109337 | H84: 0.1866109337
A85: 169.3962631 | B85: 2.956522531 | C85: 4.537963853 | D85: 80.00617637 | E85: 0.7666666667 | F85: 0.5877777778 | G85: 0.7657899843 | H85: 0.1780122066
A86: 170.3962631 | B86: 2.973975824 | C86: 4.5496157 | D86: 80.67377802 | E86: 0.7833333333 | F86: 0.6136111111 | G86: 0.7824800256 | H86: 0.1688689145
A87: 171.3962631 | B87: 2.991429116 | C87: 4.561275631 | D87: 81.34184285 | E87: 0.8 | F87: 0.64 | G87: 0.7991816462 | H87: 0.1591816462
A88: 172.3962631 | B88: 3.008882409 | C88: 4.572944055 | D88: 82.01039431 | E88: 0.8166666667 | F88: 0.6669444444 | G88: 0.8158954329 | H88: 0.1489509885
A89: 173.3962631 | B89: 3.026335701 | C89: 4.584621381 | D89: 82.67945582 | E89: 0.8333333333 | F89: 0.6944444444 | G89: 0.8326219705 | H89: 0.1381775261
A90: 174.3962631 | B90: 3.043788994 | C90: 4.596308017 | D90: 83.34905069 | E90: 0.85 | F90: 0.7225 | G90: 0.8493618424 | H90: 0.1268618424
A91: 175.3962631 | B91: 3.061242286 | C91: 4.608004367 | D91: 84.01920222 | E91: 0.8666666667 | F91: 0.7511111111 | G91: 0.8661156305 | H91: 0.1150045194
A92: 176.3962631 | B92: 3.078695579 | C92: 4.619710839 | D92: 84.68993364 | E92: 0.8833333333 | F92: 0.7802777778 | G92: 0.882883916 | H92: 0.1026061382
A93: 177.3962631 | B93: 3.096148871 | C93: 4.631427837 | D93: 85.36126817 | E93: 0.9 | F93: 0.81 | G93: 0.8996672794 | H93: 0.08966727945
A94: 178.3962631 | B94: 3.113602164 | C94: 4.643155766 | D94: 86.03322903 | E94: 0.9166666667 | F94: 0.8402777778 | G94: 0.9164663008 | H94: 0.07618852307
A95: 179.3962631 | B95: 3.131055456 | C95: 4.654895032 | D95: 86.70583941 | E95: 0.9333333333 | F95: 0.8711111111 | G95: 0.9332815602 | H95: 0.06217044911
A96: 180.3962631 | B96: 3.148508749 | C96: 4.666646039 | D96: 87.37912251 | E96: 0.95 | F96: 0.9025 | G96: 0.9501136378 | H96: 0.04761363779
A97: 181.3962631 | B97: 3.165962041 | C97: 4.678409193 | D97: 88.05310157 | E97: 0.9666666667 | F97: 0.9344444444 | G97: 0.9669631142 | H97: 0.0325186698
A98: 182.3962631 | B98: 3.183415334 | C98: 4.690184899 | D98: 88.72779984 | E98: 0.9833333333 | F98: 0.9669444444 | G98: 0.9838305711 | H98: 0.01688612664
A99: 183.3962631 | B99: 3.200868626 | C99: 4.701973565 | D99: 89.40324063 | E99: 1 | F99: 1 | G99: 1.000716591 | H99: 0.0007165908717

Sheet y=x^2_4DVExtremePoint (2)
B1: y=x^2 | C1: 0<x<1
B3: qin | C3: 80 | E3: Dq | F3: 100 | H3: Rx | I3: =F3/1 -> 100 | J3: =LN(2) -> 0.6931471806 | N3: 30
B4: fin | C4: 46.24999928 | E4: Df | F4: 100 | H4: Ry | I4: =F4 -> 100 | N4: 10.90943725
F5: =C23*C15+C24*D15+C25-G15 -> -0.0012823306
A6: =C4+180 -> 226.2499993 | N6: 96.55334769
B7: x | C7: y | D7: q | E7: f
B8: 0 | C8: =B8^2 -> 0 | D8: =$C$3+$I$3*(B8) -> 80 | E8: =$C$4+$I$4*C8 -> 46.24999928 | G8: =D8*D_R -> 1.396263402 | H8: =E8*D_R -> 0.8072147665 | J8: Chebyshev spacing
B9: =0.5-0.5*COS(2*PI()/8) -> 0.1464466094 | C9: =B9^2 -> 0.02144660941 | D9: =$C$3+$I$3*(B9) -> 94.64466094 | E9: =$C$4+$I$4*C9 -> 48.39466022 | G9: 1.651860953 | H9: 0.8446461613
B10: =0.5-0.5*COS(4*PI()/8) -> 0.5 | C10: 0.25 | D10: 130 | E10: 71.24999928 | G10: 2.268928028 | H10: 1.24354708
B11: =0.5-0.5*COS(6*PI()/8) -> 0.8535533906 | C11: 0.7285533906 | D11: 165.3553391 | E11: 119.1053383 | G11: 2.885995102 | H11: 2.078780311
B12: 1 | C12: 1 | D12: 180 | E12: 146.2499993 | G12: 3.141592654 | H12: 2.552544019
C15: =COS(H8) -> 0.6915130648 | D15: =-COS(G8) -> -0.1736481777 | E15: 1 | F15: 1 | G15: =COS(H8-G8) -> 0.8314696054
C16: =COS(H9) -> 0.6639959021 | D16: =-COS(G9) -> 0.08097586955 | E16: 1 | F16: -1 | G16: =COS(H9-G9) -> 0.6915130468
C17: =COS(H10) -> 0.3214394771 | D17: =-COS(G10) -> 0.6427876097 | E17: 1 | F17: 1 | G17: =COS(H10-G10) -> 0.5187732475
C18: =COS(H11) -> -0.4864167891 | D18: =-COS(G11) -> 0.9675123934 | E18: 1 | F18: -1 | G18: =COS(H11-G11) -> 0.6915130468
C19: =COS(H12) -> -0.8314696054 | D19: =-COS(G12) -> 1 | E19: 1 | F19: 1 | G19: =COS(H12-G12) -> 0.8314696054
A22: =C3+180 -> 260 | H22: =$C$23*C15+$C$24*D15+$C$25-G15+$C$26*F15 -> -5.551115123e-17
A23: =C4+180 -> 226.2499993 | C23: =MMULT(MINVERSE(C15:F18),G15:G18) -> -0.4535953102 | E23: a2 | F23: =1/C23 -> -2.204608331 | G23: =-F23 -> 2.204608331 | H23: =$C$23*C16+$C$24*D16+$C$25-G16+$C$26*F16 -> -1.665334537e-16
C24: -0.5886072232 | E24: a3 | F24: =SQRT(1+F23^2+F25^2-2*C25*F23*F25) -> 0.9714751921 | H24: =$C$23*C17+$C$24*D17+$C$25-G17+$C$26*F17 -> -1.665334537e-16
C25: 1.041643786 | E25: a4 | F25: =1/C24 -> -1.698925804 | G25: =-F25 -> 1.698925804 | H25: =$C$23*C18+$C$24*D18+$C$25-G18+$C$26*F18 -> -5.551115123e-17
C26: 0.0012823306 | H26: =$C$23*C19+$C$24*D19+$C$25-G19+$C$26*F19 -> 1.891299728e-09
H27: =SQRT(H25^2+H26^2) -> 1.891299728e-09
C28: =$C$23*C19+$C$24*D19+$C$25*E19+$C$26*F19-G19 -> 1.891299783e-09
H29: =MIN(H31:H123) -> -0.006460797111
E30: x | F30: yreq | G30: ygen | H30: =MAX(H31:H123) -> 0.00612058001
A31: =C3 -> 80 | B31: =A31*D_R+PI() -> 4.537856055 | C31: =fourbar($G$23,$F$24,$G$25,1,1,B31) -> 3.943258258 | D31: =C31/D_R-180 -> 45.93205571 | E31: =1/$I$3*(A31-$A$31) -> 0 | F31: =E31^2 -> 0 | G31: =1/$I$4*(D31-$C$4)+$C$8 -> -0.003179435786 | H31: =G31-F31 -> -0.003179435786
A32: =A31+1 -> 81 | B32: 4.555309348 | C32: =fourbar($G$23,$F$24,$G$25,1,1,B32) -> 3.942336992 | D32: 45.87927105 | E32: =1/$I$3*(A32-$A$31) -> 0.01 | F32: =E32^2 -> 0.0001 | G32: =1/$I$4*(D32-$C$4)+$C$8 -> -0.003707282364 | H32: =G32-F32 -> -0.003807282364
A33: =A32+1 -> 82 | B33: 4.57276264 | C33: 3.942355197 | D33: 45.88031412 | E33: 0.02 | F33: 0.0004 | G33: -0.003696851666 | H33: -0.004096851666
A34: 83 | B34: 4.590215933 | C34: 3.943168653 | D34: 45.92692173 | E34: 0.03 | F34: 0.0009 | G34: -0.00323077553 | H34: -0.00413077553
A35: 84 | B35: 4.607669225 | C35: 3.944670428 | D35: 46.0129671 | E35: 0.04 | F35: 0.0016 | G35: -0.002370321801 | H35: -0.003970321801
A36: 85 | B36: 4.625122518 | C36: 3.946778929 | D36: 46.1337753 | E36: 0.05 | F36: 0.0025 | G36: -0.001162239825 | H36: -0.003662239825
A37: 86 | B37: 4.64257581 | C37: 3.94943047 | D37: 46.28569744 | E37: 0.06 | F37: 0.0036 | G37: 0.0003569815253 | H37: -0.003243018475
A38: 87 | B38: 4.660029103 | C38: 3.952574435 | D38: 46.46583334 | E38: 0.07 | F38: 0.0049 | G38: 0.002158340529 | H38: -0.002741659471
A39: 88 | B39: 4.677482395 | C39: 3.956169999 | D39: 46.67184398 | E39: 0.08 | F39: 0.0064 | G39: 0.004218446934 | H39: -0.002181553066
A40: 89 | B40: 4.694935688 | C40: 3.960183848 | D40: 46.90182057 | E40: 0.09 | F40: 0.0081 | G40: 0.00651821285 | H40: -0.00158178715
A41: 90 | B41: 4.71238898 | C41: 3.964588538 | D41: 47.15419073 | E41: 0.1 | F41: 0.01 | G41: 0.009041914414 | H41: -0.0009580855863
A42: 91 | B42: 4.729842273 | C42: 3.969361296 | D42: 47.42764965 | E42: 0.11 | F42: 0.0121 | G42: 0.01177650365 | H42: -0.0003234963495
A43: 92 | B43: 4.747295565 | C43: 3.974483122 | D43: 47.72110866 | E43: 0.12 | F43: 0.0144 | G43: 0.01471109373 | H43: 0.0003110937281
A44: 93 | B44: 4.764748858 | C44: 3.979938103 | D44: 48.033656 | E44: 0.13 | F44: 0.0169 | G44: 0.01783656717 | H44: 0.0009365671712
A45: 94 | B45: 4.78220215 | C45: 3.985712884 | D45: 48.36452659 | E45: 0.14 | F45: 0.0196 | G45: 0.02114527307 | H45: 0.001545273071
A46: 95 | B46: 4.799655443 | C46: 3.991796258 | D46: 48.71307827 | E46: 0.15 | F46: 0.0225 | G46: 0.02463078987 | H46: 0.002130789875
A47: 96 | B47: 4.817108736 | C47: 3.998178836 | D47: 49.07877301 | E47: 0.16 | F47: 0.0256 | G47: 0.02828773729 | H47: 0.00268773729
A48: 97 | B48: 4.834562028 | C48: 4.004852779 | D48: 49.46116183 | E48: 0.17 | F48: 0.0289 | G48: 0.0321116255 | H48: 0.003211625498
A49: 98 | B49: 4.852015321 | C49: 4.011811595 | D49: 49.85987259 | E49: 0.18 | F49: 0.0324 | G49: 0.03609873308 | H49: 0.003698733083
A50: 99 | B50: 4.869468613 | C50: 4.019049954 | D50: 50.27460002 | E50: 0.19 | F50: 0.0361 | G50: 0.04024600733 | H50: 0.004146007334
A51: 100 | B51: 4.886921906 | C51: 4.026563552 | D51: 50.7050975 | E51: 0.2 | F51: 0.04 | G51: 0.04455098215 | H51: 0.004550982145
A52: 101 | B52: 4.904375198 | C52: 4.034348991 | D52: 51.15117028 | E52: 0.21 | F52: 0.0441 | G52: 0.04901170991 | H52: 0.004911709913
A53: 102 | B53: 4.921828491 | C53: 4.042403676 | D53: 51.61266975 | E53: 0.22 | F53: 0.0484 | G53: 0.05362670465 | H53: 0.005226704653
A54: 103 | B54: 4.939281783 | C54: 4.050725737 | D54: 52.0894887 | E54: 0.23 | F54: 0.0529 | G54: 0.05839489418 | H54: 0.00549489418
A55: 104 | B55: 4.956735076 | C55: 4.059313953 | D55: 52.58155725 | E55: 0.24 | F55: 0.0576 | G55: 0.06331557968 | H55: 0.005715579677
A56: 105 | B56: 4.974188368 | C56: 4.068167697 | D56: 53.08883941 | E56: 0.25 | F56: 0.0625 | G56: 0.06838840131 | H56: 0.00588840131
A57: 106 | B57: 4.991641661 | C57: 4.077286881 | D57: 53.61133017 | E57: 0.26 | F57: 0.0676 | G57: 0.07361330881 | H57: 0.006013308815
A58: 107 | B58: 5.009094953 | C58: 4.086671914 | D58: 54.14905291 | E58: 0.27 | F58: 0.0729 | G58: 0.07899053623 | H58: 0.006090536226
A59: 108 | B59: 5.026548246 | C59: 4.096323661 | D59: 54.70205728 | E59: 0.28 | F59: 0.0784 | G59: 0.08452058001 | H59: 0.00612058001
A60: 109 | B60: 5.044001538 | C60: 4.106243414 | D60: 55.27041729 | E60: 0.29 | F60: 0.0841 | G60: 0.09020418007 | H60: 0.006104180073
A61: 110 | B61: 5.061454831 | C61: 4.116432861 | D61: 55.8542296 | E61: 0.3 | F61: 0.09 | G61: 0.09604230313 | H61: 0.006042303134
A62: 111 | B62: 5.078908123 | C62: 4.126894059 | D62: 56.45361209 | E62: 0.31 | F62: 0.0961 | G62: 0.1020361281 | H62: 0.005936128098
A63: 112 | B63: =A63*D_R+PI() -> 5.096361416 | C63: 4.137629414 | D63: =C63/D_R-180 -> 57.06870259 | E63: 0.32 | F63: 0.1024 | G63: 0.1081870331 | H63: 0.005787033082
A64: 113 | B64: 5.113814708 | C64: 4.148641657 | D64: 57.69965766 | E64: 0.33 | F64: 0.1089 | G64: 0.1144965838 | H64: 0.00559658381
A65: 114 | B65: 5.131268001 | C65: 4.159933832 | D65: 58.3466516 | E65: 0.34 | F65: 0.1156 | G65: 0.1209665232 | H65: 0.005366523155
A66: 115 | B66: 5.148721293 | C66: 4.171509271 | D66: 59.00987544 | E66: 0.35 | F66: 0.1225 | G66: 0.1275987616 | H66: 0.005098761592
A67: 116 | B67: 5.166174586 | C67: 4.183371588 | D67: 59.68953612 | E67: 0.36 | F67: 0.1296 | G67: 0.1343953684 | H67: 0.004795368401
A68: 117 | B68: 5.183627878 | C68: 4.195524656 | D68: 60.38585563 | E68: 0.37 | F68: 0.1369 | G68: 0.1413585634 | H68: 0.004458563437
A69: 118 | B69: 5.201081171 | C69: 4.207972599 | D69: 61.09907022 | E69: 0.38 | F69: 0.1444 | G69: 0.1484907093 | H69: 0.004090709339
A70: 119 | B70: 5.218534463 | C70: 4.220719776 | D70: 61.82942969 | E70: 0.39 | F70: 0.1521 | G70: 0.155794304 | H70: 0.003694304029
A71: 120 | B71: 5.235987756 | C71: 4.233770771 | D71: 62.57719662 | E71: 0.4 | F71: 0.16 | G71: 0.1632719734 | H71: 0.003271973384
A72: 121 | B72: 5.253441049 | C72: 4.247130378 | D72: 63.34264568 | E72: 0.41 | F72: 0.1681 | G72: 0.170926464 | H72: 0.002826463959
A73: 122 | B73: 5.270894341 | C73: 4.260803587 | D73: 64.12606285 | E73: 0.42 | F73: 0.1764 | G73: 0.1787606357 | H73: 0.002360635664
A74: 123 | B74: 5.288347634 | C74: 4.274795575 | D74: 64.92774471 | E74: 0.43 | F74: 0.1849 | G74: 0.1867774543 | H74: 0.00187745427
A75: 124 | B75: 5.305800926 | C75: 4.289111689 | D75: 65.74799765 | E75: 0.44 | F75: 0.1936 | G75: 0.1949799837 | H75: 0.001379983657
A76: 125 | B76: 5.323254219 | C76: 4.303757435 | D76: 66.58713705 | E76: 0.45 | F76: 0.2025 | G76: 0.2033713777 | H76: 0.0008713776947
A77: 126 | B77: 5.340707511 | C77: 4.318738458 | D77: 67.44548645 | E77: 0.46 | F77: 0.2116 | G77: 0.2119548717 | H77: 0.0003548716546
A78: 127 | B78: 5.358160804 | C78: 4.334060531 | D78: 68.32337659 | E78: 0.47 | F78: 0.2209 | G78: 0.2207337731 | H78: -0.0001662269359
A79: 128 | B79: 5.375614096 | C79: 4.349729537 | D79: 69.22114447 | E79: 0.48 | F79: 0.2304 | G79: 0.2297114519 | H79: -0.0006885481107
A80: 129 | B80: 5.393067389 | C80: 4.365751446 | D80: 70.13913228 | E80: 0.49 | F80: 0.2401 | G80: 0.23889133 | H80: -0.001208670044
A81: 130 | B81: 5.410520681 | C81: 4.382132303 | D81: 71.07768623 | E81: 0.5 | F81: 0.25 | G81: 0.2482768695 | H81: -0.001723130497
A82: 131 | B82: 5.427973974 | C82: 4.398878198 | D82: 72.03715536 | E82: 0.51 | F82: 0.2601 | G82: 0.2578715608 | H82: -0.002228439226
A83: 132 | B83: 5.445427266 | C83: 4.415995249 | D83: 73.01789014 | E83: 0.52 | F83: 0.2704 | G83: 0.2676789085 | H83: -0.002721091466
A84: 133 | B84: 5.462880559 | C84: 4.433489573 | D84: 74.02024103 | E84: 0.53 | F84: 0.2809 | G84: 0.2777024174 | H84: -0.003197582576
A85: 134 | B85: 5.480333851 | C85: 4.451367257 | D85: 75.04455689 | E85: 0.54 | F85: 0.2916 | G85: 0.287945576 | H85: -0.003654423951
A86: 135 | B86: 5.497787144 | C86: 4.469634333 | D86: 76.09118325 | E86: 0.55 | F86: 0.3025 | G86: 0.2984118397 | H86: -0.004088160302
A87: 136 | B87: 5.515240436 | C87: 4.488296741 | D87: 77.16046044 | E87: 0.56 | F87: 0.3136 | G87: 0.3091046116 | H87: -0.004495388395
A88: 137 | B88: 5.532693729 | C88: 4.507360293 | D88: 78.25272155 | E88: 0.57 | F88: 0.3249 | G88: 0.3200272227 | H88: -0.004872777326
A89: 138 | B89: 5.550147021 | C89: 4.52683064 | D89: 79.36829024 | E89: 0.58 | F89: 0.3364 | G89: 0.3311829096 | H89: -0.005217090432
A90: 139 | B90: 5.567600314 | C90: 4.546713224 | D90: 80.50747839 | E90: 0.59 | F90: 0.3481 | G90: 0.3425747911 | H90: -0.005525208897
A91: 140 | B91: 5.585053606 | C91: 4.567013239 | D91: 81.67058357 | E91: 0.6 | F91: 0.36 | G91: 0.3542058429 | H91: -0.00579415711
A92: 141 | B92: 5.602506899 | C92: 4.587735581 | D92: 82.8578863 | E92: 0.61 | F92: 0.3721 | G92: 0.3660788702 | H92: -0.006021129823
A93: 142 | B93: 5.619960191 | C93: 4.608884798 | D93: 84.06964717 | E93: 0.62 | F93: 0.3844 | G93: 0.3781964789 | H93: -0.006203521134
A94: 143 | B94: 5.637413484 | C94: 4.630465036 | D94: 85.30610376 | E94: 0.63 | F94: 0.3969 | G94: 0.3905610447 | H94: -0.006338955287
A95: 144 | B95: =A95*D_R+PI() -> 5.654866776 | C95: 4.652479984 | D95: =C95/D_R-180 -> 86.56746736 | E95: 0.64 | F95: 0.4096 | G95: 0.4031746807 | H95: -0.006425319264
A96: 145 | B96: 5.672320069 | C96: =fourbar($G$23,$F$24,$G$25,1,1,B96) -> 4.674932811 | D96: 87.85391957 | E96: =1/$I$3*(A96-$A$31) -> 0.65 | F96: =E96^2 -> 0.4225 | G96: =1/$I$4*(D96-$C$4)+$C$8 -> 0.4160392029 | H96: =G96-F96 -> -0.006460797111
A97: =A96+1 -> 146 | B97: 5.689773362 | C97: 4.697826105 | D97: 89.16560869 | E97: 0.66 | F97: 0.4356 | G97: 0.4291560941 | H97: -0.006443905897
A98: 147 | B98: 5.707226654 | C98: 4.721161808 | D98: 90.50264597 | E98: 0.67 | F98: 0.4489 | G98: 0.4425264668 | H98: -0.00637353315
A99: 148 | B99: 5.724679947 | C99: 4.744941146 | D99: 91.86510172 | E99: 0.68 | F99: 0.4624 | G99: 0.4561510244 | H99: -0.006248975602
A100: 149 | B100: 5.742133239 | C100: 4.769164565 | D100: 93.25300139 | E100: 0.69 | F100: 0.4761 | G100: 0.470030021 | H100: -0.006069978962
A101: 150 | B101: 5.759586532 | C101: 4.793831653 | D101: 94.66632144 | E101: 0.7 | F101: 0.49 | G101: 0.4841632216 | H101: -0.005836778439
A102: 151 | B102: 5.777039824 | C102: 4.818941075 | D102: 96.10498532 | E102: 0.71 | F102: 0.5041 | G102: 0.4985498604 | H102: -0.005550139615
A103: 152 | B103: 5.794493117 | C103: 4.844490497 | D103: 97.56885936 | E103: 0.72 | F103: 0.5184 | G103: 0.5131886008 | H103: -0.005211399238
A104: 153 | B104: 5.811946409 | C104: 4.870476519 | D104: 99.05774874 | E104: 0.73 | F104: 0.5329 | G104: 0.5280774946 | H104: -0.004822505412
A105: 154 | B105: 5.829399702 | C105: 4.896894606 | D105: 100.5713936 | E105: 0.74 | F105: 0.5476 | G105: 0.5432139434 | H105: -0.00438605659
A106: 155 | B106: 5.846852994 | C106: 4.923739022 | D106: 102.1094654 | E106: 0.75 | F106: 0.5625 | G106: 0.5585946613 | H106: -0.003905338709
A107: 156 | B107: 5.864306287 | C107: 4.951002774 | D107: 103.6715633 | E107: 0.76 | F107: 0.5776 | G107: 0.5742156403 | H107: -0.00338435973
A108: 157 | B108: 5.881759579 | C108: 4.978677551 | D108: 105.2572112 | E108: 0.77 | F108: 0.5929 | G108: 0.5900721192 | H108: -0.002827880781
A109: 158 | B109: 5.899212872 | C109: 5.006753681 | D109: 106.865855 | E109: 0.78 | F109: 0.6084 | G109: 0.606158557 | H109: -0.002241443047
A110: 159 | B110: 5.916666164 | C110: 5.035220094 | D110: 108.4968603 | E110: 0.79 | F110: 0.6241 | G110: 0.6224686105 | H110: -0.001631389517
A111: 160 | B111: 5.934119457 | C111: 5.064064294 | D111: 110.1495112 | E111: 0.8 | F111: 0.64 | G111: 0.6389951193 | H111: -0.001004880661
A112: 161 | B112: 5.951572749 | C112: 5.09327234 | D112: 111.823009 | E112: 0.81 | F112: 0.6561 | G112: 0.6557300969 | H112: -0.0003699031244
A113: 162 | B113: 5.969026042 | C113: 5.122828849 | D113: 113.5164722 | E113: 0.82 | F113: 0.6724 | G113: 0.6726647295 | H113: 0.0002647294665
A114: 163 | B114: 5.986479334 | C114: 5.15271701 | D114: 115.2289377 | E114: 0.83 | F114: 0.6889 | G114: 0.6897893844 | H114: 0.000889384419
A115: 164 | B115: 6.003932627 | C115: 5.182918612 | D115: 116.959362 | E115: 0.84 | F115: 0.7056 | G115: 0.7070936274 | H115: 0.001493627366
A116: 165 | B116: 6.021385919 | C116: 5.213414091 | D116: 118.7066243 | E116: 0.85 | F116: 0.7225 | G116: 0.7245662498 | H116: 0.00206624976
A117: 166 | B117: 6.038839212 | C117: 5.2441826 | D117: 120.46953 | E117: 0.86 | F117: 0.7396 | G117: 0.7421953069 | H117: 0.002595306933
A118: 167 | B118: 6.056292504 | C118: 5.275202093 | D118: 122.246816 | E118: 0.87 | F118: 0.7569 | G118: 0.759968167 | H118: 0.003068166983
A119: 168 | B119: 6.073745797 | C119: 5.306449426 | D119: 124.0371563 | E119: 0.88 | F119: 0.7744 | G119: 0.7778715705 | H119: 0.003471570529
A120: 169 | B120: 6.091199089 | C120: 5.337900487 | D120: 125.8391694 | E120: 0.89 | F120: 0.7921 | G120: 0.7958917011 | H120: 0.003791701082
A121: 170 | B121: 6.108652382 | C121: 5.369530329 | D121: 127.6514258 | E121: 0.9 | F121: 0.81 | G121: 0.8140142655 | H121: 0.004014265539
A122: 171 | B122: 6.126105675 | C122: 5.401313331 | D122: 129.4724577 | E122: 0.91 | F122: 0.8281 | G122: 0.832224584 | H122: 0.004124583953
A123: 172 | B123: 6.143558967 | C123: 5.433223366 | D123: 131.300768 | E123: 0.92 | F123: 0.8464 | G123: 0.8505076875 | H123: 0.004107687502
A124: 173 | B124: 6.16101226 | C124: 5.465233989 | D124: 133.1348416 | E124: 0.93 | F124: 0.8649 | G124: 0.8688484232 | H124: 0.003948423209
A125: 174 | B125: 6.178465552 | C125: 5.497318622 | D125: 134.9731557 | E125: 0.94 | F125: 0.8836 | G125: 0.8872315638 | H125: 0.003631563792
A126: 175 | B126: 6.195918845 | C126: 5.529450756 | D126: 136.8141914 | E126: 0.95 | F126: 0.9025 | G126: 0.9056419207 | H126: 0.003141920724
A127: 176 | B127: =A127*D_R+PI() -> 6.213372137 | C127: 5.56160415 | D127: =C127/D_R-180 -> 138.6564451 | E127: 0.96 | F127: 0.9216 | G127: 0.9240644585 | H127: 0.002464458477
A128: 177 | B128: 6.23082543 | C128: 5.593753027 | D128: 140.4984401 | E128: 0.97 | F128: 0.9409 | G128: 0.9424844078 | H128: 0.001584407776
A129: 178 | B129: 6.248278722 | C129: 5.625872265 | D129: 142.3387369 | E129: 0.98 | F129: 0.9604 | G129: 0.9608873757 | H129: 0.0004873756889
A130: 179 | B130: 6.265732015 | C130: 5.657937584 | D130: 144.1759443 | E130: 0.99 | F130: 0.9801 | G130: 0.9792594504 | H130: -0.0008405495806
A131: 180 | B131: 6.283185307 | C131: 5.689925714 | D131: 146.0087292 | E131: 1 | F131: 1 | G131: 0.9975872988 | H131: -0.002412701215

Sheet y=x2_5DVLeast
A1: Synthesize | I1: =PI()/180 -> 0.01745329252
A2: y=x^2 | C2: 0<x<1 | L2: Optimal Synthesis of Function Generators Without the Branch Defect
L3: Tinunu&Gupta
B4: qin | C4: 87.54020468 | D4: =C4*D_R -> 1.5278648 | L4: Transactions of the ASME | N4: Vol. 106, SEPTEMBER 1984
B5: fin | C5: 9.055176475 | D5: =C5*D_R -> 0.1580426438 | H5: qin | K5: qin | N5: qin
H6: fin | K6: fin | N6: fin
B7: Dq | C7: 120 | D7: =C7/9 -> 13.33333333 | E7: =D7*D_R -> 0.2327105669 | H7: qin | K7: qin | N7: qin
B8: Df | C8: 100 | D8: =C8/LOG(10) -> 100 | E8: =D8*D_R -> 1.745329252 | H8: fin | K8: fin | N8: fin
B11: x | C11: y(required) | D11: q | E11: f | G11: q | H11: f | J11: cosf | K11: cosq | L11: cos(f-q) | M11: cos2f | N11: cos2q | O11: cosfcosq | P11: cosq*cos(f-q) | Q11: cosf*cos(f-q)
B12: 0 | C12: =B12^2 -> 0 | D12: =$C$4+$C$7*C12 -> 87.54020468 | E12: =$C$5+$C$8*C12 -> 9.055176475 | G12: =D12*D_R -> 1.5278648 | H12: 0.1580426438 | J12: =COS(H12) -> 0.9875372345 | K12: =COS(G12) -> 0.0429183405 | L12: =COS(H12-G12) -> 0.1996239889 | M12: =J12^2 -> 0.9752297895 | N12: =K12^2 -> 0.001841983951 | O12: =J12*K12 -> 0.04238345928 | P12: =L12*K12 -> 0.008567530326 | Q12: =J12*L12 -> 0.1971361219 | S12: =(-SIN(G12)*$C$31-SIN(H12-G12))*($C$30*COS(H12)-$C$31*COS(G12)+$C$32-COS(H12-G12)) -> -0.005290229926 | T12: =(-SIN(H12)*$C$30+SIN(H12-G12))*($C$30*COS(H12)-$C$31*COS(G12)+$C$32-COS(H12-G12)) -> 0.005004438212
B13: 0.1 | C13: =B13^2 -> 0.01 | D13: =$C$4+$C$7*C13 -> 88.74020468 | E13: =$C$5+$C$8*C13 -> 10.05517647 | G13: 1.548808751 | H13: 0.1754959364 | J13: =COS(H13) -> 0.9846400713 | K13: =COS(G13) -> 0.0219858046 | L13: =COS(H13-G13) -> 0.1962023791 | M13: =J13^2 -> 0.9695160699 | N13: 0.000483375604 | O13: =J13*K13 -> 0.02164810421 | P13: =L13*K13 -> 0.00431366717 | Q13: =J13*L13 -> 0.1931887246 | S13: =(-SIN(G13)*$C$31-SIN(H13-G13))*($C$30*COS(H13)-$C$31*COS(G13)+$C$32-COS(H13-G13)) -> -0.004208039074 | T13: =(-SIN(H13)*$C$30+SIN(H13-G13))*($C$30*COS(H13)-$C$31*COS(G13)+$C$32-COS(H13-G13)) -> 0.003993725383
B14: 0.2 | C14: 0.04 | D14: 92.34020468 | E14: 13.05517647 | G14: 1.611640604 | H14: 0.2278558139 | J14: 0.9741529826 | K14: -0.04083292135 | L14: 0.1859233727 | M14: 0.9489740336 | N14: 0.001667327466 | O14: -0.03977751213 | P14: -0.007591794457 | Q14: 0.1811178081 | S14: -0.00131025465 | T14: 0.00125583563
B15: 0.3 | C15: 0.09 | D15: 98.34020468 | E15: 18.05517647 | G15: 1.716360359 | H15: 0.3151222765 | J15: 0.9507584885 | K15: -0.1450505197 | L15: 0.1687469451 | M15: 0.9039417035 | N15: 0.02103965325 | O15: -0.1379080128 | P15: -0.02447683208 | Q15: 0.1604375905 | S15: 0.002406791695 | T15: -0.002345386555
B16: 0.4 | C16: 0.16 | D16: 106.7402047 | E16: 25.05517647 | G16: 1.862968016 | H16: 0.4372953242 | J16: 0.9059003807 | K16: -0.288032557 | L16: 0.1446147662 | M16: 0.8206554998 | N16: 0.08296275388 | O16: -0.260928803 | P16: -0.04165376088 | Q16: 0.1310065717 | S16: 0.005478438409 | T16: -0.005465016014
B17: 0.5 | C17: 0.25 | D17: 117.5402047 | E17: 34.05517647 | G17: 2.051463575 | H17: 0.5943749568 | J17: 0.8284986792 | K17: -0.4623709186 | L17: 0.1134628373 | M17: 0.6864100615 | N17: 0.2137868664 | O17: -0.3830736954 | P17: -0.0524619163 | Q17: 0.09400381083 | S17: 0.00635229783 | T17: -0.006530074237
B18: 0.6 | C18: 0.36 | D18: 130.7402047 | E18: 45.05517647 | G18: 2.281847036 | H18: 0.7863611746 | J18: 0.7064255017 | K18: -0.6526302292 | L18: 0.07523929582 | M18: 0.4990369894 | N18: 0.425926216 | O18: -0.4610346371 | P18: -0.04910343887 | Q18: 0.0531509573 | S18: 0.004033346552 | T18: -0.004298407585
B19: 0.7 | C19: 0.49 | D19: 146.3402047 | E19: 58.05517647 | G19: 2.5541184 | H19: 1.013253977 | J19: 0.5291023389 | K19: -0.8323432539 | L19: 0.02992743516 | M19: 0.279949285 | N19: 0.6927952922 | O19: -0.4403947624 | P19: -0.02490989876 | Q19: 0.01583467594 | S19: -0.001049147277 | T19: 0.001164280267
B20: 0.8 | C20: 0.64 | D20: 164.3402047 | E20: 73.05517647 | G20: 2.868277665 | H20: 1.275053365 | J20: 0.2914506371 | K20: -0.9628813908 | L20: -0.02242609296 | M20: 0.08494347389 | N20: 0.9271405728 | O20: -0.2806323949 | P20: 0.02159366758 | Q20: -0.006536099081 | S20: -0.006211770428 | T20: 0.007188831162
B21: 0.9 | C21: 0.81 | D21: 184.7402047 | E21: =$C$5+$C$8*C21 -> 90.05517647 | G21: 3.224324832 | H21: 1.571759338 | J21: -0.0009630110084 | K21: -0.9965796449 | L21: -0.08167807741 | M21: 9.273902022e-07 | N21: 0.9931709886 | O21: 0.0009597171687 | P21: 0.08139870938 | Q21: 7.865688769e-05 | S21: -0.006211640368 | T21: 0.00747027825
B22: 1 | C22: 1 | D22: 207.5402047 | E22: 109.0551765 | G22: 3.622259902 | H22: 1.903371896 | J22: -0.3264785483 | K22: -0.886686604 | L22: -0.1475509692 | M22: 0.1065882425 | N22: 0.7862131336 | O22: 0.2894841552 | P22: 0.1308314678 | Q22: 0.04817222623 | S22: 0.006069153139 | T22: -0.007498765415
J24: =SUM(J12:J22) -> 6.831024755 | K24: =SUM(K12:K22) -> -5.202503894 | L24: 0.8620858808 | M24: 6.275246076 | N24: 4.147028164 | O24: -1.649274382 | P24: 0.0465074009 | Q24: 1.067591045 | S24: =SUM(S12:S22) -> 5.89459024e-05 | T24: =SUM(T12:T22) -> -6.026090361e-05
C26: =M24 -> 6.275246076 | D26: =-O24 -> 1.649274382 | E26: =J24 -> 6.831024755 | G26: =Q24 -> 1.067591045 | M26: =M27/D_R -> 333.7023559
C27: =O24 -> -1.649274382 | D27: =-N24 -> -4.147028164 | E27: =K24 -> -5.202503894 | G27: =P24 -> 0.0465074009 | K27: 75 | L27: =K27*D_R -> 1.308996939 | M27: =fourbar(ABS(F31),F32,ABS(F33),F30,-1,L27+PI()) -> 5.824204833
C28: =J24 -> 6.831024755 | D28: =-K24 -> 5.202503894 | E28: 11 | G28: =L24 -> 0.8620858808
K29: 4 Design Parameter
B30: K1 | C30: =MMULT(MINVERSE(C26:E28),G26:G28) -> 0.1931851798 | E30: a1 | F30: 1 | I30: d1 | J30: =S24 -> 5.89459024e-05 | L30: fin,
B31: K2 | C31: -0.08818036046 | E31: a2 | F31: =F30/C30 -> 5.176380512 | G31: =-F31 -> -5.176380512 | I31: d2 | J31: =T24 -> -6.026090361e-05
B32: K3 | C32: 0.0001083457939 | E32: a3 | F32: =SQRT(F30^2+F31^2+F33^2-2*C32*F31*F33) -> 12.50648486 | I32: d | J32: =SQRT(J30^2+J31^2) -> 8.429706942e-05
E33: a4 | F33: =F30/C31 -> -11.34039365 | G33: =-F33 -> 11.34039365
E37: x | F37: yreq | G37: ygen
A38: =C4 -> 87.54020468 | B38: =A38*D_R -> 1.5278648 | C38: =fourbar($F$31,$F$32,$G$33,1,-1,B38) -> 3.294732243 | D38: =C38/D_R-180 -> 8.774252155 | E38: =1/$C$7*(A38-$C$4) -> 0 | F38: =E38^2 -> 0 | G38: =1/$C$8*(D38-$C$5) -> -0.002809243195 | H38: =G38-F38 -> -0.002809243195 | J38: =fourbar($F$31,$F$32,$G$33,1,1,B38) -> 0.1454332665 | K38: =J38/D_R-180 -> -171.6672876 | L38: =1/$C$8*(K38-$C$5) -> -1.807224641
A39: =A38+1 -> 88.54020468 | B39: 1.545318092 | C39: =fourbar($F$31,$F$32,$G$33,1,-1,B39) -> 3.310132047 | D39: 9.65659591 | E39: =1/$C$7*(A39-$C$4) -> 0.008333333333 | F39: =E39^2 -> 6.944444444e-05 | G39: =1/$C$8*(D39-$C$5) -> 0.006014194346 | H39: =G39-F39 -> 0.005944749901 | J39: =fourbar($F$31,$F$32,$G$33,1,1,B39) -> 0.1638932237 | K39: -170.60961 | L39: =1/$C$8*(K39-$C$5) -> -1.796647865
A40: =A39+1 -> 89.54020468 | B40: 1.562771385 | C40: 3.325487566 | D40: 10.53640235 | E40: 0.01666666667 | F40: =E40^2 -> 0.0002777777778 | G40: =1/$C$8*(D40-$C$5) -> 0.01481225872 | H40: 0.01453448094 | J40: 0.1822901771 | K40: -169.5555422 | L40: -1.786107187
A41: =A40+1 -> 90.54020468 | B41: 1.580224677 | C41: 3.340799804 | D41: 11.41372895 | E41: 0.025 | F41: =E41^2 -> 0.000625 | G41: 0.0235855248 | H41: 0.0229605248 | J41: 0.2006244867 | K41: -168.5050636 | L41: -1.775602401
A42: =A40+1 -> 90.54020468 | B42: 1.580224677 | C42: 3.340799804 | D42: 11.41372895 | E42: 0.025 | F42: =E42^2 -> 0.000625 | G42: 0.0235855248 | H42: 0.0229605248 | J42: 0.2006244867 | K42: -168.5050636 | L42: -1.775602401
A43: =A42+1 -> 91.54020468 | B43: 1.59767797 | C43: 3.356069758 | D43: 12.28863288 | E43: 0.03333333333 | F43: 0.001111111111 | G43: 0.03233456409 | H43: 0.03122345298 | J43: 0.2188965242 | K43: -167.458153 | L43: -1.765133295
A44: 92.54020468 | B44: 1.615131262 | C44: 3.37129842 | D44: 13.16117093 | E44: 0.04166666667 | F44: 0.001736111111 | G44: 0.04105994455 | H44: 0.03932383344 | J44: 0.2371066722 | K44: -166.4147884 | L44: -1.754699649
A45: 93.54020468 | B45: 1.632584555 | C45: 3.386486774 | D45: 14.03139952 | E45: 0.05 | F45: 0.0025 | G45: 0.04976223045 | H45: 0.04726223045 | J45: 0.2552553238 | K45: -165.3749472 | L45: -1.744301237
A46: 94.54020468 | B46: 1.650037847 | C46: 3.401635799 | D46: 14.8993747 | E46: 0.05833333333 | F46: 0.003402777778 | G46: 0.05844198226 | H46: 0.05503920449 | J46: 0.2733428819 | K46: -164.3386065 | L46: -1.73393783
A47: 95.54020468 | B47: 1.66749114 | C47: 3.416746465 | D47: 15.76515213 | E47: 0.06666666667 | F47: 0.004444444444 | G47: 0.06709975651 | H47: 0.06265531207 | J47: 0.2913697584 | K47: -163.3057426 | L47: -1.72360919
A48: 96.54020468 | B48: 1.684944432 | C48: 3.431819738 | D48: 16.62878704 | E48: 0.075 | F48: 0.005625 | G48: 0.07573610569 | H48: 0.07011110569 | J48: 0.3093363735 | K48: -162.2763313 | L48: -1.713315078
A49: 97.54020468 | B49: 1.702397725 | C49: 3.446856574 | D49: 17.49033429 | E49: 0.08333333333 | F49: 0.006944444444 | G49: 0.08435157814 | H49: 0.07740713369 | J49: 0.3272431558 | K49: -161.2503483 | L49: -1.703055248
A50: 98.54020468 | B50: 1.719851017 | C50: 3.461857923 | D50: 18.34984827 | E50: 0.09166666667 | F50: 0.008402777778 | G50: 0.09294671798 | H50: 0.0845439402 | J50: 0.3450905408 | K50: -160.2277685 | L50: -1.692829449
A51: 99.54020468 | B51: 1.73730431 | C51: 3.476824727 | D51: 19.20738298 | E51: 0.1 | F51: 0.01 | G51: 0.101522065 | H51: 0.09152206503 | J51: 0.3628789711 | K51: -159.2085665 | L51: -1.68263743
A52: 100.5402047 | B52: 1.754757602 | C52: 3.491757921 | D52: 20.06299195 | E52: 0.1083333333 | F52: 0.01173611111 | G52: 0.1100781547 | H52: 0.09834204362 | J52: 0.3806088956 | K52: -158.1927166 | L52: -1.672478931
A53: 101.5402047 | B53: 1.772210895 | C53: 3.506658431 | D53: 20.91672828 | E53: 0.1166666667 | F53: 0.01361111111 | G53: 0.1186155181 | H53: 0.105004407 | J53: 0.3982807691 | K53: -157.1801929 | L53: -1.662353693
A54: 102.5402047 | B54: 1.789664187 | C54: 3.521527176 | D54: 21.76864463 | E54: 0.125 | F54: 0.015625 | G54: 0.1271346816 | H54: 0.1115096816 | J54: 0.4158950518 | K54: -156.1709688 | L54: -1.652261453
A55: 103.5402047 | B55: 1.80711748 | C55: 3.536365068 | D55: 22.6187932 | E55: 0.1333333333 | F55: 0.01777777778 | G55: 0.1356361673 | H55: 0.1178583895 | J55: 0.4334522088 | K55: -155.1650178 | L55: -1.642201943
A56: 104.5402047 | B56: 1.824570772 | C56: 3.551173009 | D56: 23.46722572 | E56: 0.1416666667 | F56: 0.02006944444 | G56: 0.1441204925 | H56: 0.124051048 | J56: 0.4509527099 | K56: -154.162313 | L56: -1.632174894
A57: 105.5402047 | B57: 1.842024065 | C57: 3.565951894 | D57: 24.31399348 | E57: 0.15 | F57: 0.0225 | G57: 0.15258817 | H57: 0.13008817 | J57: 0.4683970288 | K57: -153.1628271 | L57: -1.622180036
A58: 106.5402047 | B58: 1.859477357 | C58: 3.580702611 | D58: 25.15914729 | E58: 0.1583333333 | F58: 0.02506944444 | G58: 0.1610397082 | H58: 0.1359702637 | J58: 0.4857856434 | K58: -152.1665329 | L58: -1.612217094
A59: 107.5402047 | B59: 1.87693065 | C59: 3.595426038 | D59: 26.00273751 | E59: 0.1666666667 | F59: 0.02777777778 | G59: 0.1694756104 | H59: 0.1416978326 | J59: 0.5031190345 | K59: -151.1734027 | L59: -1.602285792
A60: 108.5402047 | B60: 1.894383942 | C60: 3.610123045 | D60: 26.84481403 | E60: 0.175 | F60: 0.030625 | G60: 0.1778963755 | H60: 0.1472713755 | J60: 0.5203976866 | K60: -150.1834089 | L60: -1.592385854
A61: 109.5402047 | B61: 1.911837235 | C61: 3.624794497 | D61: 27.68542626 | E61: 0.1833333333 | F61: 0.03361111111 | G61: 0.1863024978 | H61: 0.1526913867 | J61: 0.5376220864 | K61: -149.1965235 | L61: -1.582517
A62: 110.5402047 | B62: 1.929290528 | C62: 3.639441246 | D62: 28.52462317 | E62: 0.1916666667 | F62: 0.03673611111 | G62: 0.1946944669 | H62: 0.1579583558 | J62: 0.5547927234 | K62: -148.2127184 | L62: -1.572678949
A63: 111.5402047 | B63: 1.94674382 | C63: 3.654064139 | D63: 29.36245324 | E63: 0.2 | F63: 0.04 | G63: 0.2030727676 | H63: 0.1630727676 | J63: 0.5719100891 | K63: -147.2319656 | L63: -1.562871421
A64: 112.5402047 | B64: 1.964197113 | C64: 3.668664015 | D64: 30.1989645 | E64: 0.2083333333 | F64: 0.04340277778 | G64: 0.2114378802 | H64: 0.1680351025 | J64: 0.5889746772 | K64: -146.2542368 | L64: -1.553094132
A65: 113.5402047 | B65: 1.981650405 | C65: 3.683241703 | D65: 31.03420451 | E65: 0.2166666667 | F65: 0.04694444444 | G65: 0.2197902803 | H65: 0.1728458359 | J65: 0.6059869827 | K65: -145.2795035 | L65: -1.543346799
A66: 114.5402047 | B66: 1.999103698 | C66: 3.697798026 | D66: 31.86822037 | E66: 0.225 | F66: 0.050625 | G66: 0.2281304389 | H66: 0.1775054389 | J66: 0.6229475022 | K66: -144.3077373 | L66: -1.533629137
A67: 115.5402047 | B67: 2.01655699 | C67: 3.712333797 | D67: 32.70105872 | E67: 0.2333333333 | F67: 0.05444444444 | G67: 0.2364588224 | H67: 0.182014378 | J67: 0.6398567334 | K67: -143.3389097 | L67: -1.523940862
A68: 116.5402047 | B68: 2.034010283 | C68: 3.726849823 | D68: 33.53276573 | E68: 0.2416666667 | F68: 0.05840277778 | G68: 0.2447758926 | H68: 0.1863731148 | J68: 0.6567151751 | K68: -142.3729921 | L68: -1.514281686
A69: 117.5402047 | B69: 2.051463575 | C69: 3.741346901 | D69: 34.36338714 | E69: 0.25 | F69: 0.0625 | G69: 0.2530821067 | H69: 0.1905821067 | J69: 0.6735233268 | K69: -141.409956 | L69: -1.504651324
A70: 118.5402047 | B70: =A70*D_R -> 2.068916868 | C70: 3.755825823 | D70: =C70/D_R-180 -> 35.19296823 | E70: 0.2583333333 | F70: 0.06673611111 | G70: 0.2613779175 | H70: 0.1946418064 | J70: 0.6902816886 | K70: =J70/D_R-180 -> -140.4497726 | L70: -1.49504949
A71: 119.5402047 | B71: 2.08637016 | C71: 3.770287369 | D71: 36.0215538 | E71: 0.2666666667 | F71: 0.07111111111 | G71: 0.2696637733 | H71: 0.1985526622 | J71: 0.706990761 | K71: -139.4924132 | L71: -1.485475897
A72: 120.5402047 | B72: 2.103823453 | C72: 3.784732315 | D72: 36.84918826 | E72: 0.275 | F72: 0.075625 | G72: 0.2779401178 | H72: 0.2023151178 | J72: 0.7236510449 | K72: -138.5378493 | L72: -1.475930258
A73: 121.5402047 | B73: 2.121276745 | C73: 3.799161428 | D73: 37.67591553 | E73: 0.2833333333 | F73: 0.08027777778 | G73: 0.2862073906 | H73: 0.2059296128 | J73: 0.7402630411 | K73: -137.586052 | L73: -1.466412285
A74: 122.5402047 | B74: 2.138730038 | C74: 3.813575467 | D74: 38.50177913 | E74: 0.2916666667 | F74: 0.08506944444 | G74: 0.2944660266 | H74: 0.2093965821 | J74: 0.7568272505 | K74: -136.6369927 | L74: -1.456921692
A75: 123.5402047 | B75: 2.15618333 | C75: 3.827975184 | D75: 39.32682212 | E75: 0.3 | F75: 0.09 | G75: 0.3027164564 | H75: 0.2127164564 | J75: 0.7733441739 | K75: -135.6906427 | L75: -1.447458192
A76: 124.5402047 | B76: 2.173636623 | C76: 3.842361323 | D76: 40.15108715 | E76: 0.3083333333 | F76: 0.09506944444 | G76: 0.3109591067 | H76: 0.2158896623 | J76: 0.7898143118 | K76: -134.7469733 | L76: -1.438021498
A77: 125.5402047 | B77: 2.191089915 | C77: 3.85673462 | D77: 40.97461643 | E77: 0.3166666667 | F77: 0.1002777778 | G77: 0.3191943995 | H77: 0.2189166217 | J77: 0.8062381643 | K77: -133.8059559 | L77: -1.428611324
A78: 126.5402047 | B78: 2.208543208 | C78: 3.871095806 | D78: 41.79745177 | E78: 0.325 | F78: 0.105625 | G78: 0.3274227529 | H78: 0.2217977529 | J78: 0.822616231 | K78: -132.8675618 | L78: -1.419227383
A79: 127.5402047 | B79: 2.2259965 | C79: 3.885445602 | D79: 42.61963455 | E79: 0.3333333333 | F79: 0.1111111111 | G79: 0.3356445808 | H79: 0.2245334696 | J79: 0.8389490111 | K79: -131.9317624 | L79: -1.409869389
A80: 128.5402047 | B80: 2.243449793 | C80: 3.899784725 | D80: 43.44120576 | E80: 0.3416666667 | F80: 0.1167361111 | G80: 0.3438602929 | H80: 0.2271241818 | J80: 0.855237003 | K80: -130.9985292 | L80: -1.400537057
A81: 129.5402047 | B81: 2.260903085 | C81: 3.914113882 | D81: 44.26220598 | E81: 0.35 | F81: 0.1225 | G81: 0.352070295 | H81: 0.229570295 | J81: 0.8714807046 | K81: -130.0678337 | L81: -1.391230102
A82: 130.5402047 | B82: 2.278356378 | C82: 3.928433774 | D82: 45.08267537 | E82: 0.3583333333 | F82: 0.1284027778 | G82: 0.360274989 | H82: 0.2318722112 | J82: 0.8876806129 | K82: -129.1396473 | L82: -1.381948238
A83: 131.5402047 | B83: 2.29580967 | C83: 3.942745097 | D83: 45.90265374 | E83: 0.3666666667 | F83: 0.1344444444 | G83: 0.3684747727 | H83: 0.2340303282 | J83: 0.903837224 | K83: -128.2139417 | L83: -1.372691182
A84: 132.5402047 | B84: 2.313262963 | C84: 3.957048537 | D84: 46.72218048 | E84: 0.375 | F84: 0.140625 | G84: 0.3766700401 | H84: 0.2360450401 | J84: 0.9199510333 | K84: -127.2906884 | L84: -1.363458649
A85: 133.5402047 | B85: 2.330716255 | C85: 3.971344775 | D85: 47.54129462 | E85: 0.3833333333 | F85: 0.1469444444 | G85: 0.3848611815 | H85: 0.237916737 | J85: 0.9360225354 | K85: -126.3698592 | L85: -1.354250357
A86: 134.5402047 | B86: 2.348169548 | C86: 3.985634487 | D86: 48.3600348 | E86: 0.3916666667 | F86: 0.1534027778 | G86: 0.3930485832 | H86: 0.2396458055 | J86: 0.9520522236 | K86: -125.4514257 | L86: -1.345066022
A87: 135.5402047 | B87: 2.365622841 | C87: 3.99991834 | D87: 49.1784393 | E87: 0.4 | F87: 0.16 | G87: 0.4012326282 | H87: 0.2412326282 | J87: 0.9680405906 | K87: -124.5353598 | L87: -1.335905362
A88: 136.5402047 | B88: 2.383076133 | C88: 4.014196996 | D88: 49.99654603 | E88: 0.4083333333 | F88: 0.1667361111 | G88: 0.4094136956 | H88: 0.2426775845 | J88: 0.983988128 | K88: -123.6216332 | L88: -1.326768096
A89: 137.5402047 | B89: 2.400529426 | C89: 4.028471111 | D89: 50.81439256 | E89: 0.4166666667 | F89: 0.1736111111 | G89: 0.4175921609 | H89: 0.2439810498 | J89: 0.9998953264 | K89: -122.7102178 | L89: -1.317653943
A90: 138.5402047 | B90: 2.417982718 | C90: 4.042741334 | D90: 51.6320161 | E90: 0.425 | F90: 0.180625 | G90: 0.4257683962 | H90: 0.2451433962 | J90: 1.015762675 | K90: -121.8010857 | L90: -1.308562622
A91: 139.5402047 | B91: 2.435436011 | C91: 4.057008308 | D91: 52.4494535 | E91: 0.4333333333 | F91: 0.1877777778 | G91: 0.4339427702 | H91: 0.2461649924 | J91: 1.031590663 | K91: -120.8942088 | L91: -1.299493853
A92: 140.5402047 | B92: 2.452889303 | C92: 4.071272671 | D92: 53.26674129 | E92: 0.4416666667 | F92: 0.1950694444 | G92: 0.4421156481 | H92: 0.2470462037 | J92: 1.047379778 | K92: -119.9895592 | L92: -1.290447356
A93: 141.5402047 | B93: 2.470342596 | C93: 4.085535054 | D93: 54.08391567 | E93: 0.45 | F93: 0.2025 | G93: 0.4502873919 | H93: 0.2477873919 | J93: 1.063130506 | K93: -119.0871089 | L93: -1.281422854
A94: 142.5402047 | B94: 2.487795888 | C94: 4.099796084 | D94: 54.9010125 | E94: 0.4583333333 | F94: 0.2100694444 | G94: 0.4584583603 | H94: 0.2483889158 | J94: 1.078843333 | K94: -118.1868303 | L94: -1.272420067
A95: 143.5402047 | B95: 2.505249181 | C95: 4.114056381 | D95: 55.71806733 | E95: 0.4666666667 | F95: 0.2177777778 | G95: 0.4666289086 | H95: 0.2488511308 | J95: 1.094518744 | K95: -117.2886954 | L95: -1.263438719
A96: 144.5402047 | B96: 2.522702473 | C96: 4.12831656 | D96: 56.5351154 | E96: 0.475 | F96: 0.225625 | G96: 0.4747993893 | H96: 0.2491743893 | J96: 1.110157221 | K96: -116.3926766 | L96: -1.254478531
A97: 145.5402047 | B97: 2.540155766 | C97: 4.142577231 | D97: 57.35219164 | E97: 0.4833333333 | F97: 0.2336111111 | G97: 0.4829701516 | H97: 0.2493590405 | J97: 1.125759249 | K97: -115.4987463 | L97: -1.245539228
A98: 146.5402047 | B98: 2.557609058 | C98: 4.156838997 | D98: 58.16933066 | E98: 0.4916666667 | F98: 0.2417361111 | G98: 0.4911415418 | H98: 0.2494054307 | J98: 1.141325309 | K98: -114.6068768 | L98: -1.236620532
A99: 147.5402047 | B99: 2.575062351 | C99: 4.171102459 | D99: 58.9865668 | E99: 0.5 | F99: 0.25 | G99: 0.4993139033 | H99: 0.2493139033 | J99: 1.156855881 | K99: -113.7170405 | L99: -1.22772217
A100: 148.5402047 | B100: 2.592515643 | C100: 4.185368209 | D100: 59.80393411 | E100: 0.5083333333 | F100: 0.2584027778 | G100: 0.5074875764 | H100: 0.2490847986 | J100: 1.172351446 | K100: -112.82921 | L100: -1.218843865
A101: 149.5402047 | B101: 2.609968936 | C101: 4.199636839 | D101: 60.62146635 | E101: 0.5166666667 | F101: 0.2669444444 | G101: 0.5156628987 | H101: 0.2487184543 | J101: 1.187812484 | K101: -111.9433578 | L101: -1.209985343
A102: 150.5402047 | B102: =A102*D_R -> 2.627422228 | C102: 4.213908931 | D102: =C102/D_R-180 -> 61.43919699 | E102: 0.525 | F102: 0.275625 | G102: 0.5238402052 | H102: 0.2482152052 | J102: 1.203239472 | K102: =J102/D_R-180 -> -111.0594565 | L102: -1.20114633
A103: 151.5402047 | B103: 2.644875521 | C103: =fourbar($F$31,$F$32,$G$33,1,-1,B103) -> 4.228185066 | D103: 62.25715927 | E103: =1/$C$7*(A103-$C$4) -> 0.5333333333 | F103: 0.2844444444 | G103: 0.5320198279 | H103: =G103-F103 -> 0.2475753835 | J103: =fourbar($F$31,$F$32,$G$33,1,1,B103) -> 1.218632889 | K103: -110.1774787 | L103: =1/$C$8*(K103-$C$5) -> -1.192326551
A104: 152.5402047 | B104: 2.662328813 | C104: 4.242465818 | D104: 63.07538612 | E104: 0.5416666667 | F104: 0.2934027778 | G104: =1/$C$8*(D104-$C$5) -> 0.5402020965 | H104: 0.2467993187 | J104: 1.233993213 | K104: -109.297397 | L104: -1.183525734
A105: 153.5402047 | B105: 2.679782106 | C105: 4.25675176 | D105: 63.89391026 | E105: 0.55 | F105: 0.3025 | G105: 0.5483873378 | H105: 0.2458873378 | J105: 1.249320919 | K105: -108.4191841 | L105: -1.174743606
A106: 154.5402047 | B106: 2.697235398 | C106: 4.271043456 | D106: 64.71276412 | E106: 0.5583333333 | F106: =E106^2 -> 0.3117361111 | G106: 0.5565758764 | H106: 0.2448397653 | J106: 1.264616484 | K106: -107.5428128 | L106: -1.165979893
A107: =A106+1 -> 155.5402047 | B107: 2.714688691 | C107: 4.285341468 | D107: 65.5319799 | E107: 0.5666666667 | F107: 0.3211111111 | G107: 0.5647680343 | H107: 0.2436569232 | J107: 1.279880383 | K107: -106.6682558 | L107: -1.157234323
A108: 156.5402047 | B108: 2.732141983 | C108: 4.299646356 | D108: 66.35158957 | E108: 0.575 | F108: 0.330625 | G108: 0.572964131 | H108: 0.242339131 | J108: 1.295113091 | K108: -105.7954859 | L108: -1.148506624
A109: 157.5402047 | B109: 2.749595276 | C109: 4.313958671 | D109: 67.17162486 | E109: 0.5833333333 | F109: 0.3402777778 | G109: 0.5811644839 | H109: 0.2408867061 | J109: 1.310315084 | K109: -104.9244759 | L109: -1.139796523
A110: 158.5402047 | B110: 2.767048568 | C110: 4.328278965 | D110: 67.99211727 | E110: 0.5916666667 | F110: 0.3500694444 | G110: 0.589369408 | H110: 0.2392999636 | J110: 1.325486835 | K110: -104.0551985 | L110: -1.13110375
A111: 159.5402047 | B111: 2.784501861 | C111: 4.342607784 | D111: 68.8130981 | E111: 0.6 | F111: 0.36 | G111: 0.5975792162 | H111: 0.2375792162 | J111: 1.340628819 | K111: -103.1876268 | L111: -1.122428032
A112: 160.5402047 | B112: 2.801955154 | C112: 4.356945669 | D112: 69.6345984 | E112: 0.6083333333 | F112: 0.3700694444 | G112: 0.6057942192 | H112: 0.2357247748 | J112: 1.35574151 | K112: -102.3217333 | L112: -1.113769098
A113: 161.5402047 | B113: 2.819408446 | C113: 4.371293159 | D113: 70.45664905 | E113: 0.6166666667 | F113: 0.3802777778 | G113: 0.6140147257 | H113: 0.2337369479 | J113: 1.370825382 | K113: -101.4574912 | L113: -1.105126677
A114: 162.5402047 | B114: 2.836861739 | C114: 4.38565079 | D114: 71.2792807 | E114: 0.625 | F114: 0.390625 | G114: 0.6222410423 | H114: 0.2316160423 | J114: 1.385880907 | K114: -100.5948731 | L114: -1.096500496
A115: 163.5402047 | B115: 2.854315031 | C115: 4.400019093 | D115: 72.10252383 | E115: 0.6333333333 | F115: 0.4011111111 | G115: 0.6304734736 | H115: 0.2293623624 | J115: 1.400908561 | K115: -99.73385195 | L115: -1.087890284
A116: 164.5402047 | B116: 2.871768324 | C116: 4.414398597 | D116: 72.92640871 | E116: 0.6416666667 | F116: 0.4117361111 | G116: 0.6387123224 | H116: 0.2269762113 | J116: 1.415908817 | K116: -98.8744006 | L116: -1.079295771
A117: 165.5402047 | B117: 2.889221616 | C117: 4.428789827 | D117: 73.75096544 | E117: 0.65 | F117: 0.4225 | G117: 0.6469578897 | H117: 0.2244578897 | J117: 1.430882149 | K117: -98.01649187 | L117: -1.070716683
A118: 166.5402047 | B118: 2.906674909 | C118: 4.443193305 | D118: 74.57622393 | E118: 0.6583333333 | F118: 0.4334027778 | G118: 0.6552104746 | H118: 0.2218076968 | J118: 1.445829032 | K118: -97.16009859 | L118: -1.062152751
A119: 167.5402047 | B119: 2.924128201 | C119: 4.45760955 | D119: 75.40221394 | E119: 0.6666666667 | F119: 0.4444444444 | G119: 0.6634703746 | H119: 0.2190259302 | J119: 1.460749939 | K119: -96.30519357 | L119: -1.0536037
A120: 168.5402047 | B120: 2.941581494 | C120: 4.472039079 | D120: 76.22896503 | E120: 0.675 | F120: 0.455625 | G120: 0.6717378856 | H120: 0.2161128856 | J120: 1.475645346 | K120: -95.45174959 | L120: -1.045069261
A121: 169.5402047 | B121: 2.959034786 | C121: 4.486482404 | D121: 77.05650664 | E121: 0.6833333333 | F121: 0.4669444444 | G121: 0.6800133016 | H121: 0.2130688572 | J121: 1.490515729 | K121: -94.59973941 | L121: -1.036549159
A122: 170.5402047 | B122: 2.976488079 | C122: 4.500940038 | D122: 77.88486802 | E122: 0.6916666667 | F122: 0.4784027778 | G122: 0.6882969154 | H122: 0.2098941376 | J122: 1.505361564 | K122: -93.74913575 | L122: -1.028043122
A123: 171.5402047 | B123: 2.993941371 | C123: 4.515412487 | D123: 78.71407829 | E123: 0.7 | F123: 0.49 | G123: 0.6965890181 | H123: 0.2065890181 | J123: 1.520183327 | K123: -92.8999113 | L123: -1.019550878
A124: 172.5402047 | B124: 3.011394664 | C124: 4.529900259 | D124: 79.54416643 | E124: 0.7083333333 | F124: 0.5017361111 | G124: 0.7048898996 | H124: 0.2031537885 | J124: 1.534981495 | K124: -92.0520387 | L124: -1.011072152
A125: 173.5402047 | B125: 3.028847956 | C125: 4.544403855 | D125: 80.37516129 | E125: 0.7166666667 | F125: 0.5136111111 | G125: 0.7131998481 | H125: 0.199588737 | J125: 1.549756547 | K125: -91.20549057 | L125: -1.00260667
A126: 174.5402047 | B126: 3.046301249 | C126: 4.558923777 | D126: 81.20709156 | E126: 0.725 | F126: 0.525625 | G126: 0.7215191509 | H126: 0.1958941509 | J126: 1.564508963 | K126: -90.36023943 | L126: -0.9941541591
A127: 175.5402047 | B127: 3.063754541 | C127: 4.573460525 | D127: 82.03998583 | E127: 0.7333333333 | F127: 0.5377777778 | G127: 0.7298480936 | H127: 0.1920703158 | J127: 1.579239221 | K127: -89.51625779 | L127: -0.9857143427
A128: 176.5402047 | B128: 3.081207834 | C128: 4.588014594 | D128: 82.87387257 | E128: 0.7416666667 | F128: 0.5500694444 | G128: 0.7381869609 | H128: 0.1881175165 | J128: 1.593947804 | K128: -88.67351808 | L128: -0.9772869455
A129: 177.5402047 | B129: 3.098661126 | C129: 4.602586479 | D129: 83.70878011 | E129: 0.75 | F129: 0.5625 | G129: 0.7465360364 | H129: 0.1840360364 | J129: 1.608635193 | K129: -87.83199265 | L129: -0.9688716913
A130: 178.5402047 | B130: 3.116114419 | C130: 4.617176674 | D130: 84.54473671 | E130: 0.7583333333 | F130: 0.5750694444 | G130: 0.7548956024 | H130: 0.1798261579 | J130: 1.623301873 | K130: -86.99165381 | L130: -0.9604683029
A131: 179.5402047 | B131: 3.133567711 | C131: 4.63178567 | D131: 85.3817705 | E131: 0.7666666667 | F131: 0.5877777778 | G131: 0.7632659403 | H131: 0.1754881625 | J131: 1.637948328 | K131: -86.15247377 | L131: -0.9520765025
A132: 180.5402047 | B132: 3.151021004 | C132: 4.646413955 | D132: 86.21990952 | E132: 0.775 | F132: 0.600625 | G132: 0.7716473304 | H132: 0.1710223304 | J132: 1.652575044 | K132: -85.31442466 | L132: -0.9436960113
A133: 181.5402047 | B133: 3.168474296 | C133: 4.661062019 | D133: 87.05918171 | E133: 0.7833333333 | F133: 0.6136111111 | G133: 0.7800400524 | H133: 0.1664289412 | J133: 1.66718251 | K133: -84.47747853 | L133: -0.93532655
A134: 182.5402047 | B134: =A134*D_R -> 3.185927589 | C134: 4.675730345 | D134: =C134/D_R-180 -> 87.89961494 | E134: 0.7916666667 | F134: 0.6267361111 | G134: 0.7884443846 | H134: 0.1617082735 | J134: 1.681771214 | K134: =J134/D_R-180 -> -83.64160732 | L134: -0.926967838
A135: 183.5402047 | B135: 3.203380881 | C135: 4.690419421 | D135: 88.74123698 | E135: 0.8 | F135: 0.64 | G135: 0.796860605 | H135: 0.156860605 | J135: 1.696341649 | K135: -82.8067829 | L135: -0.9186195938
A136: 184.5402047 | B136: 3.220834174 | C136: 4.705129729 | D136: 89.58407553 | E136: 0.8083333333 | F136: 0.6534027778 | G136: 0.8052889906 | H136: 0.1518862128 | J136: 1.710894307 | K136: -81.97297702 | L136: -0.910281535
A137: 185.5402047 | B137: 3.238287467 | C137: 4.719861751 | D137: 90.42815823 | E137: 0.8166666667 | F137: 0.6669444444 | G137: 0.8137298176 | H137: 0.1467853731 | J137: 1.725429683 | K137: -81.14016132 | L137: -0.9019533779
A138: 186.5402047 | B138: 3.255740759 | C138: 4.734615969 | D138: 91.27351264 | E138: 0.825 | F138: 0.680625 | G138: 0.8221833617 | H138: 0.1415583617 | J138: 1.739948274 | K138: -80.30830732 | L138: -0.893634838
A139: 187.5402047 | B139: 3.273194052 | C139: 4.749392862 | D139: 92.12016627 | E139: 0.8333333333 | F139: 0.6944444444 | G139: 0.8306498979 | H139: 0.1362054535 | J139: 1.754450579 | K139: -79.47738644 | L139: -0.8853256291
A140: 188.5402047 | B140: 3.290647344 | C140: 4.76419291 | D140: 92.96814655 | E140: =1/$C$7*(A140-$C$4) -> 0.8416666667 | F140: 0.7084027778 | G140: 0.8391297007 | H140: 0.130726923 | J140: 1.7689371 | K140: -78.64736995 | L140: -0.8770254642
A141: 189.5402047 | B141: 3.308100637 | C141: 4.779016591 | D141: 93.81748089 | E141: =1/$C$7*(A141-$C$4) -> 0.85 | F141: 0.7225 | G141: 0.8476230442 | H141: 0.1251230442 | J141: 1.783408339 | K141: -77.81822901 | L141: -0.8687340548
A142: 190.5402047 | B142: 3.325553929 | C142: 4.793864382 | D142: 94.66819664 | E142: 0.8583333333 | F142: 0.7367361111 | G142: 0.8561302016 | H142: 0.1193940905 | J142: 1.797864804 | K142: -76.98993462 | L142: -0.860451111
A143: 191.5402047 | B143: 3.343007222 | C143: 4.808736759 | D143: 95.5203211 | E143: 0.8666666667 | F143: 0.7511111111 | G143: 0.8646514463 | H143: 0.1135403352 | J143: 1.812307001 | K143: -76.16245767 | L143: -0.8521763414
A144: 192.5402047 | B144: 3.360460514 | C144: 4.8236342 | D144: 96.37388156 | E144: 0.875 | F144: 0.765625 | G144: 0.8731870508 | H144: 0.1075620508 | J144: 1.826735442 | K144: -75.33576886 | L144: -0.8439094534
A145: 193.5402047 | B145: 3.377913807 | C145: 4.838557178 | D145: 97.22890524 | E145: 0.8833333333 | F145: 0.7802777778 | G145: 0.8817372877 | H145: 0.1014595099 | J145: 1.841150642 | K145: -74.50983878 | L145: -0.8356501525
A146: 194.5402047 | B146: 3.395367099 | C146: 4.85350617 | D146: 98.08541937 | E146: 0.8916666667 | F146: 0.7950694444 | G146: 0.890302429 | H146: 0.09523298453 | J146: 1.855553116 | K146: -73.68463781 | L146: -0.8273981429
A147: 195.5402047 | B147: 3.412820392 | C147: 4.868481649 | D147: 98.94345114 | E147: 0.9 | F147: 0.81 | G147: 0.8988827466 | H147: 0.08888274664 | J147: 1.869943383 | K147: -72.86013621 | L147: -0.8191531269
A148: 196.5402047 | B148: 3.430273684 | C148: 4.883484091 | D148: 99.80302772 | E148: 0.9083333333 | F148: 0.8250694444 | G148: 0.9074785124 | H148: 0.08240906796 | J148: 1.884321967 | K148: -72.03630405 | L148: -0.8109148053
A149: 197.5402047 | B149: 3.447726977 | C149: 4.898513968 | D149: 100.6641763 | E149: 0.9166666667 | F149: 0.8402777778 | G149: 0.9160899979 | H149: 0.07581222011 | J149: 1.898689392 | K149: -71.21311121 | L149: -0.8026828769
A150: 198.5402047 | B150: 3.465180269 | C150: 4.913571756 | D150: 101.5269239 | E150: 0.925 | F150: 0.855625 | G150: 0.9247174746 | H150: 0.0690924746 | J150: 1.913046188 | K150: -70.3905274 | L150: -0.7944570388
A151: 199.5402047 | B151: 3.482633562 | C151: 4.928657927 | D151: 102.3912979 | E151: 0.9333333333 | F151: 0.8711111111 | G151: 0.933361214 | H151: 0.06225010288 | J151: 1.927392886 | K151: -69.56852215 | L151: -0.7862369862
A152: 200.5402047 | B152: 3.500086854 | C152: 4.943772956 | D152: 103.2573252 | E152: 0.9416666667 | F152: 0.8867361111 | G152: 0.9420214875 | H152: 0.05528537643 | J152: 1.941730022 | K152: -68.74706476 | L152: -0.7780224123
A153: 201.5402047 | B153: 3.517540147 | C153: 4.958917316 | D153: 104.1250331 | E153: 0.95 | F153: 0.9025 | G153: 0.9506985667 | H153: 0.04819856673 | J153: 1.956058135 | K153: -67.92612436 | L153: -0.7698130084
A154: 202.5402047 | B154: 3.534993439 | C154: 4.974091481 | D154: 104.9944488 | E154: 0.9583333333 | F154: 0.9184027778 | G154: 0.9593927231 | H154: 0.04098994536 | J154: 1.970377768 | K154: -67.10566987 | L154: -0.7616084634
A155: 203.5402047 | B155: 3.552446732 | C155: 4.989295926 | D155: 105.8655993 | E155: 0.9666666667 | F155: 0.9344444444 | G155: 0.9681042284 | H155: 0.033659784 | J155: 1.984689466 | K155: -66.28566997 | L155: -0.7534084644
A156: 204.5402047 | B156: 3.569900024 | C156: 5.004531125 | D156: 106.7385119 | E156: 0.975 | F156: 0.950625 | G156: 0.9768333545 | H156: 0.02620835448 | J156: 1.99899378 | K156: -65.46609314 | L156: -0.7452126962
A157: 205.5402047 | B157: 3.587353317 | C157: 5.019797553 | D157: 107.6132138 | E157: 0.9833333333 | F157: 0.9669444444 | G157: 0.9855803733 | H157: 0.01863592883 | J157: 2.013291264 | K157: -64.64690765 | L157: -0.7370208412
A158: 206.5402047 | B158: 3.604806609 | C158: 5.035095685 | D158: 108.4897322 | E158: 0.9916666667 | F158: 0.9834027778 | G158: 0.9943455571 | H158: 0.01094277928 | J158: 2.027582476 | K158: -63.8280815 | L158: -0.7288325797
A159: 207.5402047 | B159: 3.622259902 | C159: 5.050425996 | D159: 109.3680943 | E159: 1 | F159: 1 | G159: 1.003129178 | H159: 0.003129178343 | J159: 2.041867979 | K159: -63.00958247 | L159: -0.7206475894
A160: 208.5402047 | B160: 3.639713194 | C160: 5.065788963 | D160: 110.2483275 | E160: 1.008333333 | F160: 1.016736111 | G160: 1.01193151 | H160: -0.004804601191

Sheet y=x^2_5DVExtremePoint (3)
B1: y=x^2 | C1: 0<x<1
B3: qin | C3: 77.68292413 | E3: Dq | F3: 100 | H3: Rx | I3: =F3/1 -> 100 | J3: =LN(2) -> 0.6931471806 | N3: 30
B4: fin | C4: 49.57287638 | E4: Df | F4: 100 | H4: Ry | I4: =F4 -> 100 | N4: 10.90943725
F5: =C23*C15+C24*D15+C25-G15 -> 0.002114423327
A6: =C3+180 -> 257.6829241 | N6: 96.55334769
B7: x | C7: y | D7: q | E7: f
B8: 0 | C8: =B8^2 -> 0 | D8: =$C$3+$I$3*(B8) -> 77.68292413 | E8: =$C$4+$I$4*C8 -> 49.57287638 | G8: =D8*D_R -> 1.355822799 | H8: =E8*D_R -> 0.8652099125 | J8: Chebyshev spacing
B9: =0.5-0.5*COS(2*PI()/10) -> 0.09549150281 | C9: =B9^2 -> 0.009118627109 | D9: =$C$3+$I$3*(B9) -> 87.23207441 | E9: =$C$4+$I$4*C9 -> 50.48473909 | G9: 1.522486912 | H9: 0.8811249191
B10: =0.5-0.5*COS(4*PI()/10) -> 0.3454915028 | C10: 0.1193643785 | D10: 112.2320744 | E10: 61.50931423 | G10: 1.958819225 | H10: 1.073540054
B11: =0.5-0.5*COS(6*PI()/10) -> 0.6545084972 | C11: 0.4283813729 | D11: 143.1337739 | E11: 92.41101367 | G11: 2.498155624 | H11: 1.612876454
B12: =0.5-0.5*COS(8*PI()/10) -> 0.9045084972 | C12: 0.8181356215 | D12: 168.1337739 | E12: 131.3864385 | G12: 2.934487937 | H12: 2.293125945
B13: 1 | C13: 1 | D13: =$C$3+$I$3*(B13) -> 177.6829241 | E13: =$C$4+$I$4*C13 -> 149.5728764 | G13: =D13*D_R -> 3.101152051 | H13: =E13*D_R -> 2.610539164
C15: =COS(H8) -> 0.648480338 | D15: =-COS(G8) -> -0.2133215658 | E15: 1 | F15: 1 | G15: =COS(H8-G8) -> 0.8820442528
C16: 0.6362837224 | D16: -0.04829062638 | E16: 1 | F16: -1 | G16: 0.8012816383
C17: 0.47701589 | D17: 0.3783590338 | E17: 1 | F17: 1 | G17: 0.6330734223
C18: -0.04206770909 | D18: 0.8000384462 | E18: 1 | F18: -1 | G18: 0.6330734223
C19: -0.6611343012 | D19: 0.9786303652 | E19: 1 | F19: 1 | G19: 0.8012816383
C20: -0.8622740179 | D20: 0.9991823903 | E20: 1 | F20: -1 | G20: 0.8820442528
A22: =C3+180 -> 257.6829241 | H22: =$C$23*C15+$C$24*D15+$C$25-G15+$C$26*F15 -> -4.510281038e-17 | K22: 5dv
A23: =C4+180 -> 229.5728764 | C23: =MMULT(MINVERSE(C15:F18),G15:G18) -> -0.4364192334 | E23: a2 | F23: =1/C23 -> -2.291374723 | G23: =-F23 -> 2.291374723 | H23: =$C$23*C16+$C$24*D16+$C$25-G16+$C$26*F16 -> 4.510281038e-17 | K23: -2.204608331
C24: -0.5472567695 | E24: a3 | F24: =SQRT(1+F23^2+F25^2-2*C25*F23*F25) -> 0.8905602 | H24: =$C$23*C17+$C$24*D17+$C$25-G17+$C$26*F17 -> 2.87964097e-16 | K24: 0.9714751921
C25: 1.050426297 | E25: a4 | F25: =1/C24 -> -1.827295806 | G25: =-F25 -> 1.827295806 | H25: =$C$23*C18+$C$24*D18+$C$25-G18+$C$26*F18 -> 4.891920202e-16 | K25: -1.698925804
C26: -0.002114423327 | H26: =$C$23*C19+$C$24*D19+$C$25-G19+$C$26*F19 -> -1.31829253e-07
H27: =SQRT(H25^2+H26^2) -> 1.31829253e-07
C28: =$C$23*C19+$C$24*D19+$C$25*E19+$C$26*F19-G19 -> -1.31829253e-07 | E28: =SQRT(C29^2+C28^2) -> 1.694707153e-07
C29: =$C$23*C20+$C$24*D20+$C$25*E20+$C$26*F20-G20 -> 1.06495875e-07 | H29: =MIN(H31:H123) -> -0.004773055573
E30: x | F30: yreq | G30: ygen | H30: =MAX(H31:H123) -> 0.009360224166
A31: =C3 -> 77.68292413 | B31: =A31*D_R+PI() -> 4.497415452 | C31: =fourbar($G$23,$F$24,$G$25,1,1,B31) -> 4.023139239 | D31: =C31/D_R-180 -> 50.50889879 | E31: =1/$I$3*(A31-$A$31) -> 0 | F31: =E31^2 -> 0 | G31: =1/$I$4*(D31-$C$4)+$C$8 -> 0.009360224166 | H31: =G31-F31 -> 0.009360224166
A32: =A31+1 -> 78.68292413 | B32: 4.514868745 | C32: =fourbar($G$23,$F$24,$G$25,1,1,B32) -> 4.014291352 | D32: 50.00195222 | E32: =1/$I$3*(A32-$A$31) -> 0.01 | F32: =E32^2 -> 0.0001 | G32: =1/$I$4*(D32-$C$4)+$C$8 -> 0.004290758446 | H32: =G32-F32 -> 0.004190758446
A33: =A32+1 -> 79.68292413 | B33: 4.532322037 | C33: 4.008971006 | D33: 49.69711885 | E33: 0.02 | F33: 0.0004 | G33: 0.001242424732 | H33: 0.000842424732
A34: 80.68292413 | B34: 4.54977533 | C34: 4.005938877 | D34: 49.52339065 | E34: 0.03 | F34: 0.0009 | G34: -0.0004948572978 | H34: -0.001394857298
A35: 81.68292413 | B35: 4.567228622 | C35: 4.004557206 | D35: 49.44422671 | E35: 0.04 | F35: 0.0016 | G35: -0.00128649666 | H35: -0.00288649666
A36: 82.68292413 | B36: 4.584681915 | C36: 4.004447404 | D36: 49.43793552 | E36: 0.05 | F36: 0.0025 | G36: -0.001349408559 | H36: -0.003849408559
A37: 83.68292413 | B37: 4.602135207 | C37: 4.005363636 | D37: 49.49043178 | E37: 0.06 | F37: 0.0036 | G37: -0.0008244459341 | H37: -0.004424445934
A38: 84.68292413 | B38: 4.6195885 | C38: 4.007136102 | D38: 49.5919866 | E38: 0.07 | F38: 0.0049 | G38: 0.0001911022573 | H38: -0.004708897743
A39: 85.68292413 | B39: 4.637041792 | C39: 4.00964212 | D39: 49.73557082 | E39: 0.08 | F39: 0.0064 | G39: 0.001626944427 | H39: -0.004773055573
A40: 86.68292413 | B40: 4.654495085 | C40: 4.01278998 | D40: 49.91592993 | E40: 0.09 | F40: 0.0081 | G40: 0.003430535571 | H40: -0.004669464429
A41: 87.68292413 | B41: 4.671948377 | C41: 4.016509292 | D41: 50.12903081 | E41: 0.1 | F41: 0.01 | G41: 0.005561544368 | H41: -0.004438455632
A42: 88.68292413 | B42: 4.68940167 | C42: 4.020744886 | D42: 50.37171249 | E42: 0.11 | F42: 0.0121 | G42: 0.007988361092 | H42: -0.004111638908
A43: 89.68292413 | B43: 4.706854963 | C43: 4.025452798 | D43: 50.64145597 | E43: 0.12 | F43: 0.0144 | G43: 0.01068579594 | H43: -0.003714204059
A44: 90.68292413 | B44: 4.724308255 | C44: 4.030597524 | D44: 50.93622706 | E44: 0.13 | F44: 0.0169 | G44: 0.01363350686 | H44: -0.00326649314
A45: 91.68292413 | B45: 4.741761548 | C45: 4.036150091 | D45: 51.25436568 | E45: 0.14 | F45: 0.0196 | G45: 0.01681489301 | H45: -0.00278510699
A46: 92.68292413 | B46: 4.75921484 | C46: 4.042086659 | D46: 51.59450597 | E46: 0.15 | F46: 0.0225 | G46: 0.02021629588 | H46: -0.002283704119
A47: 93.68292413 | B47: 4.776668133 | C47: 4.048387496 | D47: 51.95551735 | E47: 0.16 | F47: 0.0256 | G47: 0.02382640973 | H47: -0.001773590268
A48: 94.68292413 | B48: 4.794121425 | C48: 4.055036203 | D48: 52.33646019 | E48: 0.17 | F48: 0.0289 | G48: 0.02763583812 | H48: -0.001264161879
A49: 95.68292413 | B49: 4.811574718 | C49: 4.062019119 | D49: 52.73655185 | E49: 0.18 | F49: 0.0324 | G49: 0.03163675469 | H49: -0.0007632453071
A50: 96.68292413 | B50: 4.82902801 | C50: 4.069324867 | D50: 53.15514036 | E50: 0.19 | F50: 0.0361 | G50: 0.03582263985 | H50: -0.0002773601524
A51: 97.68292413 | B51: 4.846481303 | C51: 4.076943986 | D51: 53.59168374 | E51: 0.2 | F51: 0.04 | G51: 0.04018807358 | H51: 0.0001880735781
A52: 98.68292413 | B52: 4.863934595 | C52: 4.084868649 | D52: 54.04573343 | E52: 0.21 | F52: 0.0441 | G52: 0.04472857057 | H52: 0.0006285705715
A53: 99.68292413 | B53: 4.881387888 | C53: 4.093092425 | D53: 54.51692113 | E53: 0.22 | F53: 0.0484 | G53: 0.04944044753 | H53: 0.001040447528
A54: 100.6829241 | B54: 4.89884118 | C54: 4.1016101 | D54: 55.00494791 | E54: 0.23 | F54: 0.0529 | G54: 0.05432071536 | H54: 0.001420715362
A55: 101.6829241 | B55: 4.916294473 | C55: 4.110417512 | D55: 55.50957546 | E55: 0.24 | F55: 0.0576 | G55: 0.05936699084 | H55: 0.001766990836
A56: 102.6829241 | B56: 4.933747765 | C56: 4.119511432 | D56: 56.03061873 | E56: 0.25 | F56: 0.0625 | G56: 0.06457742352 | H56: 0.002077423521
A57: 103.6829241 | B57: 4.951201058 | C57: 4.128889455 | D57: 56.56793987 | E57: 0.26 | F57: 0.0676 | G57: 0.06995063496 | H57: 0.002350634961
A58: 104.6829241 | B58: 4.96865435 | C58: 4.13854991 | D58: 57.12144314 | E58: 0.27 | F58: 0.0729 | G58: 0.07548566764 | H58: 0.002585667641
A59: 105.6829241 | B59: 4.986107643 | C59: 4.148491784 | D59: 57.69107056 | E59: 0.28 | F59: 0.0784 | G59: 0.08118194187 | H59: 0.002781941869
A60: 106.6829241 | B60: 5.003560935 | C60: 4.158714661 | D60: 58.27679829 | E60: 0.29 | F60: 0.0841 | G60: 0.0870392191 | H60: 0.002939219103
A61: 107.6829241 | B61: 5.021014228 | C61: 4.169218666 | D61: 58.87863343 | E61: 0.3 | F61: 0.09 | G61: 0.09305757056 | H61: 0.003057570558
A62: 108.6829241 | B62: 5.03846752 | C62: 4.180004416 | D62: 59.49661139 | E62: 0.31 | F62: 0.0961 | G62: 0.09923735014 | H62: 0.003137350138
A63: 109.6829241 | B63: =A63*D_R+PI() -> 5.055920813 | C63: 4.191072982 | D63: =C63/D_R-180 -> 60.13079347 | E63: 0.32 | F63: 0.1024 | G63: 0.1055791709 | H63: 0.003179170939
A64: 110.6829241 | B64: 5.073374105 | C64: 4.202425849 | D64: 60.78126485 | E64: 0.33 | F64: 0.1089 | G64: 0.1120838847 | H64: 0.003183884708
A65: 111.6829241 | B65: 5.090827398 | C65: 4.214064889 | D65: 61.44813275 | E65: 0.34 | F65: 0.1156 | G65: 0.1187525637 | H65: 0.003152563729
A66: 112.6829241 | B66: 5.10828069 | C66: 4.225992332 | D66: 62.13152485 | E66: 0.35 | F66: 0.1225 | G66: 0.1255864847 | H66: 0.00308648473
A67: 113.6829241 | B67: 5.125733983 | C67: 4.238210735 | D67: 62.83158782 | E67: 0.36 | F67: 0.1296 | G67: 0.1325871144 | H67: 0.002987114426
A68: 114.6829241 | B68: 5.143187276 | C68: 4.250722969 | D68: 63.54848602 | E68: 0.37 | F68: 0.1369 | G68: 0.1397560964 | H68: 0.002856096426
A69: 115.6829241 | B69: 5.160640568 | C69: 4.26353219 | D69: 64.2824003 | E69: 0.38 | F69: 0.1444 | G69: 0.1470952392 | H69: 0.002695239215
A70: 116.6829241 | B70: 5.178093861 | C70: 4.276641822 | D70: 65.03352688 | E70: 0.39 | F70: 0.1521 | G70: 0.154606505 | H70: 0.002506504996
A71: 117.6829241 | B71: 5.195547153 | C71: 4.29005554 | D71: 65.8020763 | E71: 0.4 | F71: 0.16 | G71: 0.1622919992 | H71: 0.0022919992
A72: 118.6829241 | B72: 5.213000446 | C72: 4.303777251 | D72: 66.58827242 | E72: 0.41 | F72: 0.1681 | G72: 0.1701539605 | H72: 0.002053960465
A73: 119.6829241 | B73: 5.230453738 | C73: 4.317811077 | D73: 67.39235147 | E73: 0.42 | F73: 0.1764 | G73: 0.178194751 | H73: 0.001794750954
A74: 120.6829241 | B74: 5.247907031 | C74: 4.332161342 | D74: 68.21456106 | E74: 0.43 | F74: 0.1849 | G74: 0.1864168468 | H74: 0.001516846835
A75: 121.6829241 | B75: 5.265360323 | C75: 4.346832548 | D75: 69.05515926 | E75: 0.44 | F75: 0.1936 | G75: 0.1948228288 | H75: 0.001222828821
A76: 122.6829241 | B76: 5.282813616 | C76: 4.361829366 | D76: 69.91441364 | E76: 0.45 | F76: 0.2025 | G76: 0.2034153726 | H76: 0.00091537261
A77: 123.6829241 | B77: 5.300266908 | C77: 4.377156615 | D77: 70.79260029 | E77: 0.46 | F77: 0.2116 | G77: 0.2121972391 | H77: 0.0005972391354
A78: 124.6829241 | B78: 5.317720201 | C78: 4.392819244 | D78: 71.69000283 | E78: 0.47 | F78: 0.2209 | G78: 0.2211712645 | H78: 0.0002712644921
A79: 125.6829241 | B79: 5.335173493 | C79: 4.408822316 | D79: 72.60691132 | E79: 0.48 | F79: 0.2304 | G79: 0.2303403494 | H79: -5.96505614e-05
A80: 126.6829241 | B80: 5.352626786 | C80: 4.425170988 | D80: 73.54362121 | E80: 0.49 | F80: 0.2401 | G80: 0.2397074484 | H80: -0.0003925516367
A81: 127.6829241 | B81: 5.370080078 | C81: 4.441870489 | D81: 74.50043214 | E81: 0.5 | F81: 0.25 | G81: 0.2492755576 | H81: -0.0007244423894
A82: 128.6829241 | B82: 5.387533371 | C82: 4.4589261 | D82: 75.47764668 | E82: 0.51 | F82: 0.2601 | G82: 0.2590477031 | H82: -0.001052296937
A83: 129.6829241 | B83: 5.404986663 | C83: 4.476343131 | D83: 76.47556907 | E83: 0.52 | F83: 0.2704 | G83: 0.2690269269 | H83: -0.001373073122
A84: 130.6829241 | B84: 5.422439956 | C84: 4.494126895 | D84: 77.49450371 | E84: 0.53 | F84: 0.2809 | G84: 0.2792162733 | H84: -0.001683726722
A85: 131.6829241 | B85: 5.439893248 | C85: 4.512282683 | D85: 78.53475371 | E85: 0.54 | F85: 0.2916 | G85: 0.2896187733 | H85: -0.001981226706
A86: 132.6829241 | B86: 5.457346541 | C86: 4.530815732 | D86: 79.59661921 | E86: 0.55 | F86: 0.3025 | G86: 0.3002374284 | H86: -0.00226257163
A87: 133.6829241 | B87: 5.474799833 | C87: 4.5497312 | D87: 80.68039565 | E87: 0.56 | F87: 0.3136 | G87: 0.3110751927 | H87: -0.002524807266
A88: 134.6829241 | B88: 5.492253126 | C88: 4.569034125 | D88: 81.78637182 | E88: 0.57 | F88: 0.3249 | G88: 0.3221349544 | H88: -0.002765045561
A89: 135.6829241 | B89: 5.509706418 | C89: 4.588729399 | D89: 82.91482788 | E89: 0.58 | F89: 0.3364 | G89: 0.333419515 | H89: -0.002980484995
A90: 136.6829241 | B90: 5.527159711 | C90: 4.608821721 | D90: 84.06603313 | E90: 0.59 | F90: 0.3481 | G90: 0.3449315676 | H90: -0.003168432432
A91: 137.6829241 | B91: 5.544613003 | C91: 4.629315562 | D91: 85.24024373 | E91: 0.6 | F91: 0.36 | G91: 0.3566736735 | H91: -0.003326326514
A92: 138.6829241 | B92: 5.562066296 | C92: 4.650215118 | D92: 86.43770011 | E92: 0.61 | F92: 0.3721 | G92: 0.3686482373 | H92: -0.003451762666
A93: 139.6829241 | B93: 5.579519589 | C93: 4.671524267 | D93: 87.6586244 | E93: 0.62 | F93: 0.3844 | G93: 0.3808574802 | H93: -0.003542519752
A94: 140.6829241 | B94: 5.596972881 | C94: 4.693246515 | D94: 88.90321754 | E94: 0.63 | F94: 0.3969 | G94: 0.3933034116 | H94: -0.003596588399
A95: 141.6829241 | B95: =A95*D_R+PI() -> 5.614426174 | C95: 4.715384948 | D95: =C95/D_R-180 -> 90.17165628 | E95: 0.64 | F95: 0.4096 | G95: 0.405987799 | H95: -0.003612200999
A96: 142.6829241 | B96: 5.631879466 | C96: =fourbar($G$23,$F$24,$G$25,1,1,B96) -> 4.737942172 | D96: 91.46409004 | E96: =1/$I$3*(A96-$A$31) -> 0.65 | F96: =E96^2 -> 0.4225 | G96: =1/$I$4*(D96-$C$4)+$C$8 -> 0.4189121366 | H96: =G96-F96 -> -0.003587863363
A97: =A96+1 -> 143.6829241 | B97: 5.649332759 | C97: 4.760920261 | D97: 92.78063758 | E97: 0.66 | F97: 0.4356 | G97: 0.432077612 | H97: -0.003522387975
A98: 144.6829241 | B98: 5.666786051 | C98: 4.784320692 | D98: 94.1213835 | E98: 0.67 | F98: 0.4489 | G98: 0.4454850712 | H98: -0.003414928762
A99: 145.6829241 | B99: 5.684239344 | C99: 4.808144282 | D99: 95.48637465 | E99: 0.68 | F99: 0.4624 | G99: 0.4591349828 | H99: -0.003265017247
A100: 146.6829241 | B100: 5.701692636 | C100: 4.832391124 | D100: 96.87561639 | E100: 0.69 | F100: 0.4761 | G100: 0.4730274001 | H100: -0.00307259992
A101: 147.6829241 | B101: 5.719145929 | C101: 4.857060521 | D101: 98.28906872 | E101: 0.7 | F101: 0.49 | G101: 0.4871619234 | H101: -0.002838076601
A102: 148.6829241 | B102: 5.736599221 | C102: 4.882150916 | D102: 99.72664243 | E102: 0.71 | F102: 0.5041 | G102: 0.5015376605 | H102: -0.002562339512
A103: 149.6829241 | B103: 5.754052514 | C103: 4.907659822 | D103: 101.1881951 | E103: 0.72 | F103: 0.5184 | G103: 0.5161531873 | H103: -0.002246812725
A104: 150.6829241 | B104: 5.771505806 | C104: 4.933583758 | D104: 102.6735272 | E104: 0.73 | F104: 0.5329 | G104: 0.5310065084 | H104: -0.001893491568
A105: 151.6829241 | B105: 5.788959099 | C105: 4.959918176 | D105: 104.1823782 | E105: 0.74 | F105: 0.5476 | G105: 0.5460950185 | H105: -0.001504981515
A106: 152.6829241 | B106: 5.806412391 | C106: 4.986657398 | D106: 105.7144228 | E106: 0.75 | F106: 0.5625 | G106: 0.561415464 | H106: -0.001084536001
A107: 153.6829241 | B107: 5.823865684 | C107: 5.013794551 | D107: 107.2692671 | E107: 0.76 | F107: 0.5776 | G107: 0.5769639075 | H107: -0.0006360925375
A108: 154.6829241 | B108: 5.841318976 | C108: 5.041321511 | D108: 108.8464457 | E108: 0.77 | F108: 0.5929 | G108: 0.5927356936 | H108: -0.0001643064174
A109: 155.6829241 | B109: 5.858772269 | C109: 5.069228846 | D109: 110.4454183 | E109: 0.78 | F109: 0.6084 | G109: 0.6087254188 | H109: 0.000325418775
A110: 156.6829241 | B110: 5.876225561 | C110: 5.097505773 | D110: 112.0655668 | E110: 0.79 | F110: 0.6241 | G110: 0.6249269047 | H110: 0.000826904685
A111: 157.6829241 | B111: 5.893678854 | C111: 5.12614012 | D111: 113.706194 | E111: 0.8 | F111: 0.64 | G111: 0.6413331767 | H111: 0.001333176652
A112: 158.6829241 | B112: 5.911132146 | C112: 5.155118295 | D112: 115.3665212 | E112: 0.81 | F112: 0.6561 | G112: 0.6579364481 | H112: 0.001836448065
A113: 159.6829241 | B113: 5.928585439 | C113: 5.184425276 | D113: 117.0456875 | E113: 0.82 | F113: 0.6724 | G113: 0.6747281116 | H113: 0.002328111575
A114: 160.6829241 | B114: 5.946038731 | C114: 5.214044607 | D114: 118.7427502 | E114: 0.83 | F114: 0.6889 | G114: 0.6916987382 | H114: 0.002798738152
A115: 161.6829241 | B115: 5.963492024 | C115: 5.243958411 | D115: 120.4566849 | E115: 0.84 | F115: 0.7056 | G115: 0.7088380849 | H115: 0.003238084925
A116: 162.6829241 | B116: 5.980945316 | C116: 5.274147419 | D116: 122.1863876 | E116: 0.85 | F116: 0.7225 | G116: 0.7261351127 | H116: 0.003635112688
A117: 163.6829241 | B117: 5.998398609 | C117: 5.304591025 | D117: 123.9306778 | E117: 0.86 | F117: 0.7396 | G117: 0.7435780139 | H117: 0.003978013879
A118: 164.6829241 | B118: 6.015851902 | C118: 5.335267347 | D118: 125.6883015 | E118: 0.87 | F118: 0.7569 | G118: 0.7611542517 | H118: 0.004254251653
A119: 165.6829241 | B119: 6.033305194 | C119: 5.36615332 | D119: 127.4579374 | E119: 0.88 | F119: 0.7744 | G119: 0.7788506105 | H119: 0.004450610531
A120: 166.6829241 | B120: 6.050758487 | C120: 5.397224802 | D120: 129.2382023 | E120: 0.89 | F120: 0.7921 | G120: 0.7966532588 | H120: 0.004553258833
A121: 167.6829241 | B121: 6.068211779 | C121: 5.428456708 | D121: 131.0276587 | E121: 0.9 | F121: 0.81 | G121: 0.8145478229 | H121: 0.004547822874
A122: 168.6829241 | B122: 6.085665072 | C122: 5.459823154 | D122: 132.8248236 | E122: 0.91 | F122: 0.8281 | G122: 0.8325194725 | H122: 0.004419472539
A123: 169.6829241 | B123: 6.103118364 | C123: 5.491297628 | D123: 134.6281781 | E123: 0.92 | F123: 0.8464 | G123: 0.8505530175 | H123: 0.004153017546
A124: 170.6829241 | B124: 6.120571657 | C124: 5.522853173 | D124: 136.4361777 | E124: 0.93 | F124: 0.8649 | G124: 0.8686330133 | H124: 0.003733013339
A125: 171.6829241 | B125: 6.138024949 | C125: 5.55446259 | D125: 138.2472639 | E125: 0.94 | F125: 0.8836 | G125: 0.8867438752 | H125: 0.003143875163
A126: 172.6829241 | B126: 6.155478242 | C126: 5.586098644 | D126: 140.0598762 | E126: 0.95 | F126: 0.9025 | G126: 0.9048699985 | H126: 0.002369998547
A127: 173.6829241 | B127: =A127*D_R+PI() -> 6.172931534 | C127: 5.617734282 | D127: =C127/D_R-180 -> 141.8724648 | E127: 0.96 | F127: 0.9216 | G127: 0.9229958841 | H127: 0.001395884085
A128: 174.6829241 | B128: 6.190384827 | C128: 5.649342858 | D128: 143.6835028 | E128: 0.97 | F128: 0.9409 | G128: 0.9411062641 | H128: 0.0002062641357
A129: 175.6829241 | B129: 6.207838119 | C129: 5.680898349 | D129: 145.4914993 | E129: 0.98 | F129: 0.9604 | G129: 0.9591862289 | H129: -0.001213771127
A130: 176.6829241 | B130: 6.225291412 | C130: 5.712375572 | D130: 147.2950113 | E130: 0.99 | F130: 0.9801 | G130: 0.977221349 | H130: -0.002878650991
A131: 177.6829241 | B131: 6.242744704 | C131: 5.743750385 | D131: 149.0926556 | E131: 1 | F131: 1 | G131: 0.9951977925 | H131: -0.004802207494

Sheet y=ex_6DVExtremePoint (2)
B1: y=e^x | C1: 0<x<1
B3: qin | C3: 232.8071565 | E3: Dq | F3: 100 | H3: Rx | I3: =F3 -> 100 | J3: =LN(2) -> 0.6931471806 | N3: 30
B4: fin | C4: 215.8413225 | E4: Df | F4: 100 | H4: Ry | I4: =F4/(C13-1) -> 58.19767069 | N4: 10.90943725
F5: =C23*C15+C24*D15+C25-G15 -> 0.0001155307335
A6: =C4+180 -> 395.8413225 | N6: 96.55334769
A7: =C3+180 -> 412.8071565 | B7: x | C7: y | D7: q | E7: f
B8: 0 | C8: =EXP(B8) -> 1 | D8: =$C$3+$I$3*(B8) -> 232.8071565 | E8: =$C$4+$I$4*(C8-$C$8) -> 215.8413225 | G8: =D8*D_R -> 4.063251402 | H8: =E8*D_R -> 3.76714174 | J8: Chebyshev spacing
B9: =0.5-0.5*COS(2*PI()/10) -> 0.09549150281 | C9: =EXP(B9) -> 1.100199473 | D9: =$C$3+$I$3*(B9) -> 242.3563067 | E9: =$C$4+$I$4*(C9-$C$8) -> 221.6726985 | G9: 4.229915516 | H9: 3.868918451
B10: =0.5-0.5*COS(4*PI()/10) -> 0.3454915028 | C10: 1.412684087 | D10: =$C$3+$I$3*(B10) -> 267.3563067 | E10: 239.8585751 | G10: 4.666247829 | H10: 4.186321875
B11: =0.5-0.5*COS(6*PI()/10) -> 0.6545084972 | C11: 1.924196537 | D11: 298.2580062 | E11: 269.6274082 | G11: 5.205584228 | H11: 4.705886027
B12: =0.5-0.5*COS(8*PI()/10) -> 0.9045084972 | C12: 2.47071726 | D12: 323.2580062 | E12: =$C$4+$I$4*(C12-$C$8) -> 301.4336413 | G12: 5.641916541 | H12: 5.261009517
B13: 1 | C13: 2.718281828 | D13: =$C$3+$I$3*(B13) -> 332.8071565 | E13: 315.8413225 | G13: =D13*D_R -> 5.808580654 | H13: =E13*D_R -> 5.512470992
C15: =COS(H8) -> -0.8106417282 | D15: =-COS(G8) -> 0.6044996205 | E15: 1 | F15: 1 | G15: =COS(H8-G8) -> 0.9564789303
C16: -0.7469550805 | D16: 0.4639717114 | E16: 1 | F16: -1 | G16: 0.9355451182
C17: -0.5021361105 | D17: 0.046124781 | E17: 1 | F17: 1 | G17: 0.8870291136
C18: -0.006502907053 | D18: -0.4734427532 | E18: 1 | F18: -1 | G18: 0.8777272122
C19: 0.5215107058 | D19: -0.8013374113 | E19: 1 | F19: 1 | G19: 0.9283278198
C20: 0.7174132267 | D20: -0.8894734596 | E20: 1 | F20: -1 | G20: 0.9564789303
A22: =C3+180 -> 412.8071565 | H22: =$C$23*C15+$C$24*D15+$C$25-G15+$C$26*F15 -> 4.128641873e-16
A23: =C4+180 -> 395.8413225 | C23: =MMULT(MINVERSE(C15:F18),G15:G18) -> 0.2641336684 | E23: a2 | F23: =1/C23 -> 3.785961881 | G23: =-F23 -> -3.785961881 | H23: 4.753142324e-16
C24: 0.2703140014 | E24: a3 | F24: =SQRT(1+F23^2+F25^2-2*C25*F23*F25) -> 0.8959896227 | H24: 5.238864897e-16
C25: 1.007307523 | E25: a4 | F25: =1/C24 -> 3.699401418 | G25: =-F25 -> -3.699401418 | H25: 3.6429193e-16
C26: -0.0001155307335 | H26: -1.367876038e-08
C27: =C23*C19+C24*D19+C25+C26*F19-G19 -> -1.367876035e-08 | E27: =SQRT(C27^2+C28^2) -> 2.346060284e-08 | H27: -1.906020461e-08
C28: =C23*C20+C24*D20+C25+C26*F20-G20 -> -1.906020464e-08 | H28: =SQRT(H27^2+H26^2) -> 2.346060283e-08
H29: =MIN(H31:H123) -> -0.0006456216718 | I29: =SUM(I31:I132) -> 2.278526587e-05 | K29: 0.0001391152672
E30: x | F30: yreq | G30: ygen | H30: =MAX(H31:H123) -> 0.0008323781708
A31: =C3 -> 232.8071565 | B31: =A31*D_R+PI() -> 7.204844056 | C31: =fourbar($G$23,$F$24,$F$25,1,1,B31) -> 3.767987221 | D31: =C31/D_R -> 215.889765 | E31: =1/$I$3*(A31-$A$31) -> 0 | F31: =EXP(E31) -> 1 | G31: =1/$I$4*(D31-$C$4)+$C$8 -> 1.000832378 | H31: =G31-F31 -> 0.0008323781708 | I31: =H31^2 -> 6.928534191e-07
A32: =A31+1 -> 233.8071565 | B32: 7.222297349 | C32: =fourbar($G$23,$F$24,$F$25,1,1,B32) -> 3.77778566 | D32: 216.4511742 | E32: 0.01 | F32: =EXP(E32) -> 1.010050167 | G32: =1/$I$4*(D32-$C$4)+$C$8 -> 1.01047897 | H32: =G32-F32 -> 0.0004288031998 | I32: =H32^2 -> 1.838721841e-07
A33: =A32+1 -> 234.8071565 | B33: 7.239750641 | C33: 3.78777322 | D33: 217.0234192 | E33: 0.02 | F33: 1.02020134 | G33: 1.020311753 | H33: 0.0001104126922 | I33: 1.21909626e-08
A34: 235.8071565 | B34: 7.257203934 | C34: 3.79793697 | D34: 217.6057592 | E34: 0.03 | F34: 1.030454534 | G34: 1.030317995 | H34: -0.0001365389643 | I34: 1.864288877e-08
A35: 236.8071565 | B35: 7.274657226 | C35: 3.808266367 | D35: 218.1975901 | E35: 0.04 | F35: 1.040810774 | G35: 1.040487317 | H35: -0.0003234567411 | I35: 1.046242634e-07
A36: 237.8071565 | B36: 7.292110519 | C36: 3.818752757 | D36: 218.798416 | E36: 0.05 | F36: 1.051271096 | G36: 1.050811199 | H36: -0.00045989758 | I36: 2.115057841e-07
A37: 238.8071565 | B37: 7.309563811 | C37: 3.829388997 | D37: 219.4078276 | E37: 0.06 | F37: 1.061836547 | G37: 1.061282609 | H37: -0.0005539375844 | I37: 3.068468474e-07
A38: 239.8071565 | B38: 7.327017104 | C38: 3.840169179 | D38: 220.0254866 | E38: 0.07 | F38: 1.072508181 | G38: 1.071895731 | H38: -0.0006124506274 | I38: 3.75095771e-07
A39: 240.8071565 | B39: 7.344470396 | C39: 3.851088409 | D39: 220.6511124 | E39: 0.08 | F39: 1.083287068 | G39: 1.082645745 | H39: -0.0006413230862 | I39: 4.112953009e-07
A40: 241.8071565 | B40: 7.361923689 | C40: 3.862142634 | D40: 221.2844728 | E40: 0.09 | F40: 1.094174284 | G40: 1.093528662 | H40: -0.0006456216718 | I40: 4.168273432e-07
A41: 242.8071565 | B41: 7.379376981 | C41: 3.873328512 | D41: 221.9253764 | E41: 0.1 | F41: 1.105170918 | G41: 1.104541192 | H41: -0.0006297262483 | I41: 3.965551478e-07
A42: 243.8071565 | B42: 7.396830274 | C42: 3.8846433 | D42: 222.573666 | E42: 0.11 | F42: 1.11627807 | G42: 1.115680634 | H42: -0.0005974361348 | I42: 3.569299351e-07
A43: 244.8071565 | B43: 7.414283566 | C43: 3.89608477 | D43: 223.2292139 | E43: 0.12 | F43: 1.127496852 | G43: 1.126944796 | H43: -0.0005520560564 | I43: 3.047658894e-07
A44: 245.8071565 | B44: 7.431736859 | C44: 3.907651136 | D44: 223.8919179 | E44: 0.13 | F44: 1.138828383 | G44: 1.138331917 | H44: -0.0004964662886 | I44: 2.464787757e-07
A45: 246.8071565 | B45: 7.449190151 | C45: 3.919340995 | D45: 224.5616975 | E45: 0.14 | F45: 1.150273799 | G45: 1.149840618 | H45: -0.0004331803909 | I45: 1.87645251e-07
A46: 247.8071565 | B46: 7.466643444 | C46: 3.931153282 | D46: 225.2384917 | E46: 0.15 | F46: 1.161834243 | G46: 1.16146985 | H46: -0.0003643930983 | I46: 1.327823301e-07
A47: 248.8071565 | B47: 7.484096736 | C47: 3.943087224 | D47: 225.9222562 | E47: 0.16 | F47: 1.173510871 | G47: 1.173218851 | H47: -0.0002920203371 | I47: 8.527587725e-08
A48: 249.8071565 | B48: 7.501550029 | C48: 3.955142309 | D48: 226.6129617 | E48: 0.17 | F48: 1.185304851 | G48: 1.185087118 | H48: -0.0002177328851 | I48: 4.740760925e-08
A49: 250.8071565 | B49: 7.519003321 | C49: 3.96731826 | D49: 227.3105923 | E49: 0.18 | F49: 1.197217363 | G49: 1.197074378 | H49: -0.0001429848643 | I49: 2.044467141e-08
A50: 251.8071565 | B50: 7.536456614 | C50: 3.979615005 | D50: 228.0151439 | E50: 0.19 | F50: 1.209249598 | G50: 1.20918056 | H50: -6.90380011e-05 | I50: 4.766245596e-09
A51: 252.8071565 | B51: 7.553909906 | C51: 3.992032658 | D51: 228.726623 | E51: 0.2 | F51: 1.221402758 | G51: 1.221405776 | H51: 3.017600403e-06 | I51: 9.105912194e-12
A52: 253.8071565 | B52: 7.571363199 | C52: 4.004571502 | D52: 229.4450458 | E52: 0.21 | F52: 1.23367806 | G52: 1.233750306 | H52: 7.224557806e-05 | I52: 5.21942355e-09
A53: 254.8071565 | B53: 7.588816492 | C53: 4.017231975 | D53: 230.1704375 | E53: 0.22 | F53: 1.246076731 | G53: 1.246214578 | H53: 0.0001378478414 | I53: 1.900202738e-08
A54: 255.8071565 | B54: 7.606269784 | C54: 4.030014651 | D54: 230.9028309 | E54: 0.23 | F54: 1.25860001 | G54: 1.258799161 | H54: 0.0001991511214 | I54: 3.966116916e-08
A55: 256.8071565 | B55: 7.623723077 | C55: 4.042920234 | D55: 231.6422663 | E55: 0.24 | F55: 1.27124915 | G55: 1.271504746 | H55: 0.0002555952202 | I55: 6.532891659e-08
A56: 257.8071565 | B56: 7.641176369 | C56: 4.055949543 | D56: 232.3887908 | E56: 0.25 | F56: 1.284025417 | G56: 1.284332139 | H56: 0.0003067226969 | I56: 9.407881278e-08
A57: 258.8071565 | B57: 7.658629662 | C57: 4.069103508 | D57: 233.1424574 | E57: 0.26 | F57: 1.296930087 | G57: 1.297282256 | H57: 0.0003521697717 | I57: 1.240235481e-07
A58: 259.8071565 | B58: 7.676082954 | C58: 4.082383156 | D58: 233.9033252 | E58: 0.27 | F58: 1.309964451 | G58: 1.310356109 | H58: 0.0003916582664 | I58: 1.533961977e-07
A59: 260.8071565 | B59: 7.693536247 | C59: 4.095789608 | D59: 234.6714583 | E59: 0.28 | F59: 1.323129812 | G59: 1.323554801 | H59: 0.0004249884286 | I59: 1.806151644e-07
A60: 261.8071565 | B60: 7.710989539 | C60: 4.109324071 | D60: 235.4469259 | E60: 0.29 | F60: 1.336427488 | G60: 1.336879521 | H60: 0.0004520325111 | I60: 2.043333911e-07
A61: 262.8071565 | B61: 7.728442832 | C61: 4.122987835 | D61: 236.2298019 | E61: 0.3 | F61: 1.349858808 | G61: 1.350331537 | H61: 0.0004727289989 | I61: 2.234727064e-07
A62: 263.8071565 | B62: 7.745896124 | C62: 4.136782263 | D62: 237.0201644 | E62: 0.31 | F62: 1.363425114 | G62: 1.363912192 | H62: 0.0004870773896 | I62: 2.372443835e-07
A63: 264.8071565 | B63: =A63*D_R+PI() -> 7.763349417 | C63: 4.150708789 | D63: 237.8180956 | E63: =1/$I$3*(A63-$A$31) -> 0.32 | F63: 1.377127764 | G63: 1.377622898 | H63: 0.0004951334491 | I63: 2.451571324e-07
A64: 265.8071565 | B64: 7.780802709 | C64: 4.164768915 | D64: 238.6236815 | E64: 0.33 | F64: 1.390968128 | G64: 1.391465133 | H64: 0.0004970048739 | I64: 2.470138447e-07
A65: 266.8071565 | B65: 7.798256002 | C65: 4.178964204 | D65: 239.4370116 | E65: 0.34 | F65: 1.404947591 | G65: 1.405440438 | H65: 0.0004928473014 | I65: 2.428984625e-07
A66: 267.8071565 | B66: 7.815709294 | C66: 4.19329628 | D66: 240.2581791 | E66: 0.35 | F66: 1.419067549 | G66: 1.419550409 | H66: 0.0004828606165 | I66: 2.33154375e-07
A67: 268.8071565 | B67: 7.833162587 | C67: 4.207766821 | D67: 241.08728 | E67: 0.36 | F67: 1.433329415 | G67: 1.4337967 | H67: 0.0004672855103 | I67: 2.183557481e-07
A68: 269.8071565 | B68: 7.850615879 | C68: 4.222377559 | D68: 241.9244137 | E68: 0.37 | F68: 1.447734615 | G68: 1.448181015 | H68: 0.0004464002509 | I68: 1.99273184e-07
A69: 270.8071565 | B69: 7.868069172 | C69: 4.237130275 | D69: 242.769682 | E69: 0.38 | F69: 1.462284589 | G69: 1.462705107 | H69: 0.0004205176323 | I69: 1.768350791e-07
A70: 271.8071565 | B70: 7.885522464 | C70: 4.252026795 | D70: 243.6231898 | E70: 0.39 | F70: 1.476980794 | G70: 1.477370776 | H70: 0.00038998207 | I70: 1.520860149e-07
A71: 272.8071565 | B71: 7.902975757 | C71: 4.267068993 | D71: 244.4850442 | E71: 0.4 | F71: 1.491824698 | G71: 1.492179864 | H71: 0.0003551668156 | I71: 1.261434669e-07
A72: 273.8071565 | B72: 7.920429049 | C72: 4.282258782 | D72: 245.355355 | E72: 0.41 | F72: 1.506817785 | G72: 1.507134256 | H72: 0.0003164712667 | I72: 1.001540626e-07
A73: 274.8071565 | B73: 7.937882342 | C73: 4.297598114 | D73: 246.234234 | E73: 0.42 | F73: 1.521961556 | G73: 1.522235874 | H73: 0.0002743183482 | I73: 7.525055615e-08
A74: 275.8071565 | B74: 7.955335634 | C74: 4.313088978 | D74: 247.1217951 | E74: 0.43 | F74: 1.537257524 | G74: 1.537486675 | H74: 0.0002291519464 | I74: 5.251061454e-08
A75: 276.8071565 | B75: 7.972788927 | C75: 4.328733397 | D75: 248.0181543 | E75: 0.44 | F75: 1.552707219 | G75: 1.552888653 | H75: 0.0001814343761 | I75: 3.291843282e-08
A76: 277.8071565 | B76: 7.990242219 | C76: 4.344533427 | D76: 248.9234293 | E76: 0.45 | F76: 1.568312185 | G76: 1.568443829 | H76: 0.0001316438642 | I76: 1.733010699e-08
A77: 278.8071565 | B77: 8.007695512 | C77: 4.360491152 | D77: 249.8377396 | E77: 0.46 | F77: 1.584073985 | G77: 1.584154257 | H77: 8.027203465e-05 | I77: 6.443599547e-09
A78: 279.8071565 | B78: 8.025148805 | C78: 4.376608684 | D78: 250.7612062 | E78: 0.47 | F78: 1.599994193 | G78: 1.600022015 | H78: 2.7821379e-05 | I78: 7.740291292e-10
A79: 280.8071565 | B79: 8.042602097 | C79: 4.392888157 | D79: 251.6939513 | E79: 0.48 | F79: 1.616074402 | G79: 1.616049205 | H79: -2.519729938e-05 | I79: 6.349038962e-10
A80: 281.8071565 | B80: 8.06005539 | C80: 4.409331732 | D80: 252.6360987 | E80: 0.49 | F80: 1.63231622 | G80: 1.632237952 | H80: -7.826748125e-05 | I80: 6.125798621e-09
A81: 282.8071565 | B81: 8.077508682 | C81: 4.425941584 | D81: 253.5877731 | E81: 0.5 | F81: 1.648721271 | G81: 1.648590401 | H81: -0.0001308695788 | I81: 1.712684664e-08
A82: 283.8071565 | B82: 8.094961975 | C82: 4.442719908 | D82: 254.5491003 | E82: 0.51 | F82: 1.665291195 | G82: 1.665108711 | H82: -0.0001824836453 | I82: 3.330028078e-08
A83: 284.8071565 | B83: 8.112415267 | C83: 4.459668914 | D83: 255.5202068 | E83: 0.52 | F83: 1.68202765 | G83: 1.681795058 | H83: -0.0002325921581 | I83: 5.4099112e-08
A84: 285.8071565 | B84: 8.12986856 | C84: 4.476790821 | D84: 256.5012198 | E84: 0.53 | F84: 1.698932309 | G84: 1.698651626 | H84: -0.0002806828839 | I84: 7.87828813e-08
A85: 286.8071565 | B85: 8.147321852 | C85: 4.494087858 | D85: 257.492267 | E85: 0.54 | F85: 1.716006862 | G85: 1.71568061 | H85: -0.000326251836 | I85: 1.064402605e-07
A86: 287.8071565 | B86: 8.164775145 | C86: 4.51156226 | D86: 258.4934765 | E86: 0.55 | F86: 1.733253018 | G86: 1.732884212 | H86: -0.0003688063319 | I86: 1.360181104e-07
A87: 288.8071565 | B87: 8.182228437 | C87: 4.529216266 | D87: 259.5049765 | E87: 0.56 | F87: 1.7506725 | G87: 1.750264632 | H87: -0.0004078681595 | I87: 1.663564355e-07
A88: 289.8071565 | B88: 8.19968173 | C88: 4.547052111 | D88: 260.5268952 | E88: 0.57 | F88: 1.768267051 | G88: 1.767824075 | H88: -0.0004429768588 | I88: 1.962284975e-07
A89: 290.8071565 | B89: 8.217135022 | C89: 4.565072029 | D89: 261.5593604 | E89: 0.58 | F89: 1.786038431 | G89: 1.785564738 | H89: -0.0004736931266 | I89: 2.243851782e-07
A90: 291.8071565 | B90: 8.234588315 | C90: 4.583278247 | D90: 262.6024999 | E90: 0.59 | F90: 1.803988415 | G90: 1.803488813 | H90: -0.0004996023493 | I90: 2.496025074e-07
A91: 292.8071565 | B91: 8.252041607 | C91: 4.60167298 | D91: 263.6564404 | E91: 0.6 | F91: 1.8221188 | G91: 1.821598482 | H91: -0.0005203182702 | I91: 2.707311023e-07
A92: 293.8071565 | B92: 8.2694949 | C92: 4.620258429 | D92: 264.7213082 | E92: 0.61 | F92: 1.840431399 | G92: 1.839895912 | H92: -0.0005354867958 | I92: 2.867461085e-07
A93: 294.8071565 | B93: 8.286948192 | C93: 4.639036778 | D93: 265.7972284 | E93: 0.62 | F93: 1.858928042 | G93: 1.858383252 | H93: -0.0005447899442 | I93: 2.967960833e-07
A94: 295.8071565 | B94: 8.304401485 | C94: 4.658010186 | D94: 266.8843246 | E94: 0.63 | F94: 1.877610579 | G94: 1.877062629 | H94: -0.0005479499389 | I94: 3.002491355e-07
A95: 296.8071565 | B95: =A95*D_R+PI() -> 8.321854777 | C95: 4.67718079 | D95: =C95/D_R -> 267.9827193 | E95: =1/$I$3*(A95-$A$31) -> 0.64 | F95: 1.896480879 | G95: 1.895936146 | H95: -0.0005447334507 | I95: 2.967345323e-07
A96: 297.8071565 | B96: 8.33930807 | C96: =fourbar($G$23,$F$24,$F$25,1,1,B96) -> 4.696550694 | D96: 269.092533 | E96: 0.65 | F96: =EXP(E96) -> 1.915540829 | G96: =1/$I$4*(D96-$C$4)+$C$8 -> 1.915005873 | H96: -0.0005349559868 | I96: =H96^2 -> 2.861779078e-07
A97: =A96+1 -> 298.8071565 | B97: 8.356761362 | C97: 4.716121965 | D97: 270.2138843 | E97: 0.66 | F97: 1.934792334 | G97: 1.934273848 | H97: -0.0005184864277 | I97: 2.688281757e-07
A98: 299.8071565 | B98: 8.374214655 | C98: 4.735896635 | D98: 271.3468894 | E98: 0.67 | F98: 1.954237321 | G98: 1.953742069 | H98: =G98-F98 -> -0.0004952517093 | I98: 2.452742556e-07
A99: 300.8071565 | B99: 8.391667947 | C99: 4.755876688 | D99: 272.4916621 | E99: 0.68 | F99: 1.973877732 | G99: 1.973412491 | H99: -0.0004652416469 | I99: 2.1644979e-07
A100: 301.8071565 | B100: 8.40912124 | C100: 4.776064061 | D100: 273.6483134 | E100: 0.69 | F100: 1.993715533 | G100: 1.993287019 | H100: -0.0004285138952 | I100: 1.836241584e-07
A101: 302.8071565 | B101: 8.426574532 | C101: 4.796460637 | D101: 274.8169511 | E101: 0.7 | F101: 2.013752707 | G101: 2.013367508 | H101: -0.0003851990365 | I101: 1.483782977e-07
A102: 303.8071565 | B102: 8.444027825 | C102: 4.817068238 | D102: 275.9976796 | E102: 0.71 | F102: 2.033991259 | G102: 2.033655753 | H102: -0.0003355057881 | I102: 1.125641339e-07
A103: 304.8071565 | B103: 8.461481118 | C103: 4.837888623 | D103: 277.1905999 | E103: 0.72 | F103: 2.054433211 | G103: 2.054153484 | H103: -0.000279726315 | I103: 7.824681128e-08
A104: 305.8071565 | B104: 8.47893441 | C104: 4.858923483 | D104: 278.3958086 | E104: 0.73 | F104: 2.075080608 | G104: 2.074862366 | H104: -0.0002182416325 | I104: 4.762941014e-08
A105: 306.8071565 | B105: 8.496387703 | C105: 4.880174431 | D105: 279.6133982 | E105: 0.74 | F105: 2.095935514 | G105: 2.095783987 | H105: -0.0001515270805 | I105: 2.296045611e-08
A106: 307.8071565 | B106: 8.513840995 | C106: 4.901643001 | D106: 280.8434567 | E106: 0.75 | F106: 2.117000017 | G106: 2.116919859 | H106: -8.015784494e-05 | I106: 6.425280105e-09
A107: 308.8071565 | B107: 8.531294288 | C107: 4.923330643 | D107: 282.086067 | E107: 0.76 | F107: 2.13827622 | G107: 2.138271406 | H107: -4.814499774e-06 | I107: 2.317940808e-11
A108: 309.8071565 | B108: 8.54874758 | C108: 4.945238712 | D108: 283.3413069 | E108: 0.77 | F108: 2.159766254 | G108: 2.159839965 | H108: 7.371146393e-05 | I108: 5.433379915e-09
A109: 310.8071565 | B109: 8.566200873 | C109: 4.96736847 | D109: 284.6092486 | E109: 0.78 | F109: 2.181472265 | G109: 2.181626778 | H109: 0.0001545121601 | I109: 2.387400763e-08
A110: 311.8071565 | B110: 8.583654165 | C110: 4.989721076 | D110: 285.8899586 | E110: 0.79 | F110: 2.203396426 | G110: 2.203632984 | H110: 0.0002365579273 | I110: 5.595965297e-08
A111: 312.8071565 | B111: 8.601107458 | C111: 5.012297581 | D111: 287.183497 | E111: 0.8 | F111: 2.225540928 | G111: 2.225859621 | H111: 0.0003186920987 | I111: 1.015646537e-07
A112: 313.8071565 | B112: 8.61856075 | C112: 5.035098926 | D112: 288.4899179 | E112: 0.81 | F112: 2.247907987 | G112: 2.248307613 | H112: 0.0003996259869 | I112: 1.597009294e-07
A113: 314.8071565 | B113: 8.636014043 | C113: 5.058125935 | D113: 289.8092683 | E113: 0.82 | F113: 2.270499838 | G113: 2.270977772 | H113: 0.0004779341574 | I113: 2.284210588e-07
A114: 315.8071565 | B114: 8.653467335 | C114: 5.081379312 | D114: 291.1415887 | E114: 0.83 | F114: 2.29331874 | G114: 2.29387079 | H114: 0.0005520500777 | I114: 3.047592883e-07
A115: 316.8071565 | B115: 8.670920628 | C115: 5.104859636 | D115: 292.4869122 | E115: 0.84 | F115: 2.316366977 | G115: 2.316987239 | H115: 0.0006202622465 | I115: 3.847252544e-07
A116: 317.8071565 | B116: 8.68837392 | C116: 5.12856736 | D116: 293.8452647 | E116: 0.85 | F116: 2.339646852 | G116: 2.340327563 | H116: 0.0006807109248 | I116: 4.633673632e-07
A117: 318.8071565 | B117: 8.705827213 | C117: 5.152502804 | D117: 295.2166646 | E117: 0.86 | F117: 2.363160694 | G117: 2.363892079 | H117: 0.0007313856156 | I117: 5.349249186e-07
A118: 319.8071565 | B118: 8.723280505 | C118: 5.176666162 | D118: 296.6011231 | E118: 0.87 | F118: 2.386910854 | G118: 2.387680977 | H118: 0.0007701234634 | I118: 5.930901489e-07
A119: 320.8071565 | B119: 8.740733798 | C119: 5.201057494 | D119: 297.9986434 | E119: 0.88 | F119: 2.410899706 | G119: 2.411694315 | H119: 0.0007946087871 | I119: 6.314031245e-07
A120: 321.8071565 | B120: 8.75818709 | C120: 5.225676729 | D120: 299.4092217 | E120: 0.89 | F120: 2.435129651 | G120: 2.435932025 | H120: 0.0008023739941 | I120: 6.438040264e-07
A121: 322.8071565 | B121: 8.775640383 | C121: 5.250523671 | D121: 300.8328466 | E121: 0.9 | F121: 2.459603111 | G121: 2.460393913 | H121: 0.0007908021876 | I121: 6.253680999e-07
A122: 323.8071565 | B122: 8.793093675 | C122: 5.275598001 | D122: 302.2694998 | E122: 0.91 | F122: 2.484322533 | G122: 2.485079665 | H122: 0.0007571318424 | I122: 5.732486267e-07
A123: 324.8071565 | B123: 8.810546968 | C123: 5.300899284 | D123: 303.7191566 | E123: 0.92 | F123: 2.50929039 | G123: 2.509988854 | H123: 0.0006984640186 | I123: 4.878519852e-07
A124: 325.8071565 | B124: 8.82800026 | C124: 5.326426984 | D124: 305.1817861 | E124: 0.93 | F124: 2.534509178 | G124: 2.53512095 | H124: 0.000611772697 | I124: 3.742658328e-07
A125: 326.8071565 | B125: 8.845453553 | C125: 5.352180474 | D125: 306.6573523 | E125: 0.94 | F125: 2.559981418 | G125: 2.560475337 | H125: 0.0004939189745 | I125: 2.439559534e-07
A126: 327.8071565 | B126: 8.862906845 | C126: 5.378159057 | D126: 308.1458155 | E126: 0.95 | F126: 2.585709659 | G126: 2.586051329 | H126: 0.0003416700593 | I126: 1.167384294e-07
A127: 328.8071565 | B127: =A127*D_R+PI() -> 8.880360138 | C127: 5.404361993 | D127: 309.6471331 | E127: =1/$I$3*(A127-$A$31) -> 0.96 | F127: 2.611696473 | G127: 2.611848198 | H127: 0.0001517242793 | I127: 2.302025694e-08
A128: 329.8071565 | B128: 8.897813431 | C128: 5.430788531 | D128: 311.1612623 | E128: 0.97 | F128: 2.637944459 | G128: 2.637865203 | H128: -7.925631432e-05 | I128: 6.281563359e-09
A129: 330.8071565 | B129: 8.915266723 | C129: 5.457437953 | D129: 312.6881617 | E129: 0.98 | F129: 2.664456242 | G129: 2.664101638 | H129: -0.0003546036602 | I129: 1.257437558e-07
A130: 331.8071565 | B130: 8.932720016 | C130: 5.48430963 | D130: 314.2277953 | E130: 0.99 | F130: 2.691234472 | G130: 2.690556883 | H130: -0.0006775889162 | I130: 4.591267394e-07
A131: 332.8071565 | B131: 8.950173308 | C131: 5.511403091 | D131: 315.7801363 | E131: 1 | F131: 2.718281828 | G131: 2.717230477 | H131: -0.001051351408 | I131: 1.105339784e-06
A132: 333.8071565 | B132: 8.967626601 | C132: 5.538718125 | D132: 317.3451725 | E132: 1.01 | F132: 2.745601015 | G132: 2.744122209 | H132: -0.001478806057 | I132: 2.186867353e-06

Sheet y=ex_5DVExtremePoint
B1: y=e^x | C1: 0<x<1
B3: qin | C3: 161.9477044 | E3: Dq | F3: 100 | H3: Rx | I3: =F3 -> 100 | J3: =LN(2) -> 0.6931471806 | N3: 30
B4: fin | C4: 80 | E4: Df | F4: 100 | H4: Ry | I4: =F4/(C12-1) -> 58.19767069 | N4: 10.90943725
F5: =C20*C14+C21*D14+C22-G14 -> 0.001996542386
N6: 96.55334769
B7: x | C7: y | D7: q | E7: f
B8: 0 | C8: =EXP(B8) -> 1 | D8: =$C$3+$I$3*(B8) -> 161.9477044 | E8: =$C$4+$I$4*(C8-$C$8) -> 80 | G8: =D8*D_R -> 2.826520657 | H8: =E8*D_R -> 1.396263402
B9: =0.5-0.5*COS(2*PI()/8) -> 0.1464466094 | C9: =EXP(B9) -> 1.157713118 | D9: =$C$3+$I$3*(B9) -> 176.5923653 | E9: =$C$4+$I$4*(C9-$C$8) -> 89.17853611 | G9: 3.082118209 | H9: 1.556459077
B10: =0.5-0.5*COS(4*PI()/8) -> 0.5 | C10: 1.648721271 | D10: =$C$3+$I$3*(B10) -> 211.9477044 | E10: 117.7540669 | G10: 3.699185283 | H10: 2.055196175
B11: =0.5-0.5*COS(6*PI()/8) -> 0.8535533906 | C11: 2.347975319 | D11: 247.3030434 | E11: 158.4490237 | G11: 4.316252358 | H11: 2.765457161
B12: 1 | C12: 2.718281828 | D12: 261.9477044 | E12: 180 | G12: 4.571849909 | H12: 3.141592654
C14: =COS(H8) -> 0.1736481777 | D14: =-COS(G8) -> 0.9507740708 | E14: 1 | F14: 1 | G14: =COS(H8-G8) -> 0.1400768911
C15: =COS(H9) -> 0.0143367583 | D15: =-COS(G9) -> 0.9982319165 | E15: 1 | F15: -1 | G15: =COS(H9-G9) -> 0.04512187018
C16: -0.465677336 | D16: 0.8485314165 | E16: 1 | F16: 1 | G16: =COS(H10-G10) -> -0.07312744824 | H16: Det
C17: -0.9300911223 | D17: 0.3858570384 | E17: 1 | F17: -1 | G17: =COS(H11-G11) -> 0.01999979586
C18: -1 | D18: 0.1400768911 | E18: 1 | F18: 1 | G18: =COS(H12-G12) -> 0.1400768911
A19: =C3+180 -> 341.9477044 | H19: =$C$20*C14+$C$21*D14+$C$22-G14+$C$23*F14 -> -7.719519468e-17
A20: =C4+180 -> 260 | C20: =MMULT(MINVERSE(C14:F17),G14:G17) -> 0.4339519889 | E20: a2 | F20: =1/C20 -> 2.304402389 | G20: =-F20 -> -2.304402389 | H20: =$C$20*C15+$C$21*D15+$C$22-G15+$C$23*F15 -> 2.168404345e-17
C21: -0.6282332875 | E21: a3 | F21: =SQRT(1+F20^2+F22^2-2*C22*F20*F22) -> 3.703427492 | H21: 4.770489559e-17
C22: 0.6640263816 | E22: a4 | F22: =1/C21 -> -1.591765384 | G22: =-F22 -> 1.591765384 | H22: 0
C23: -0.001996542386 | H23: -6.518581308e-09
C24: =C20*C17+C21*D17+C22-G17 -> -0.001996542386 | E24: =SQRT(C24^2+C25^2) -> 0.00282353271
C25: =C20*C18+C21*D18+C22-G18 -> 0.001996535867 | H25: =MIN(H27:H119) -> -0.001826367016 | I25: =SUM(I27:I128) -> 0.0001391152672
E26: x | F26: yreq | G26: ygen | H26: =MAX(H27:H119) -> 0.001602384729
A27: =C3 -> 161.9477044 | B27: =A27*D_R -> 2.826520657 | C27: =fourbar($F$20,$F$21,$G$22,1,-1,B27) -> 4.539264597 | D27: =C27/D_R-180 -> 80.08070348 | E27: =1/$I$3*(A27-$A$27) -> 0 | F27: =EXP(E27) -> 1 | G27: =1/$I$4*(D27-$C$4)+$C$8 -> 1.001386713 | H27: =G27-F27 -> 0.001386713146 | I27: =H27^2 -> 1.922973351e-06
A28: =A27+1 -> 162.9477044 | B28: 2.84397395 | C28: =fourbar($F$20,$F$21,$G$22,1,-1,B28) -> 4.549121704 | D28: 80.64547416 | E28: 0.01 | F28: =EXP(E28) -> 1.010050167 | G28: =1/$I$4*(D28-$C$4)+$C$8 -> 1.011091065 | H28: =G28-F28 -> 0.001040898092 | I28: =H28^2 -> 1.083468839e-06
A29: =A28+1 -> 163.9477044 | B29: 2.861427242 | C29: 4.559108194 | D29: 81.21765784 | E29: 0.02 | F29: 1.02020134 | G29: 1.020922793 | H29: 0.0007214534179 | I29: 5.204950342e-07
A30: 164.9477044 | B30: 2.878880535 | C30: 4.569224291 | D30: 81.79726753 | E30: 0.03 | F30: 1.030454534 | G30: 1.030882121 | H30: 0.0004275874873 | I30: 1.828310593e-07
A31: 165.9477044 | B31: 2.896333827 | C31: 4.579470239 | D31: 82.38431712 | E31: 0.04 | F31: 1.040810774 | G31: 1.040969288 | H31: 0.0001585135518 | I31: 2.512654612e-08
A32: 166.9477044 | B32: 2.91378712 | C32: 4.589846295 | D32: 82.97882132 | E32: 0.05 | F32: 1.051271096 | G32: 1.051184546 | H32: -8.655087323e-05 | I32: 7.491053656e-09
A33: 167.9477044 | B33: 2.931240413 | C33: 4.60035273 | D33: 83.58079571 | E33: 0.06 | F33: 1.061836547 | G33: 1.061528162 | H33: -0.0003083845839 | I33: 9.510105159e-08
A34: 168.9477044 | B34: 2.948693705 | C34: 4.61098983 | D34: 84.19025662 | E34: 0.07 | F34: 1.072508181 | G34: 1.072000418 | H34: -0.0005077632139 | I34: 2.578234814e-07
A35: 169.9477044 | B35: 2.966146998 | C35: 4.621757893 | D35: 84.80722118 | E35: 0.08 | F35: 1.083287068 | G35: 1.082601608 | H35: -0.0006854597141 | I35: 4.698550196e-07
A36: 170.9477044 | B36: 2.98360029 | C36: 4.632657231 | D36: 85.43170727 | E36: 0.09 | F36: 1.094174284 | G36: 1.093332039 | H36: -0.0008422447847 | I36: 7.093762774e-07
A37: 171.9477044 | B37: 3.001053583 | C37: 4.64368817 | D37: 86.0637335 | E37: 0.1 | F37: 1.105170918 | G37: 1.104192031 | H37: -0.0009788872623 | I37: 9.582202724e-07
A38: 172.9477044 | B38: 3.018506875 | C38: 4.654851046 | D38: 86.70331922 | E38: 0.11 | F38: 1.11627807 | G38: 1.115181916 | H38: -0.00109615446 | I38: 1.201554601e-06
A39: 173.9477044 | B39: 3.035960168 | C39: 4.666146211 | D39: 87.35048448 | E39: 0.12 | F39: 1.127496852 | G39: 1.126302039 | H39: -0.001194812464 | I39: 1.427576824e-06
A40: 174.9477044 | B40: 3.05341346 | C40: 4.677574026 | D40: 88.00525005 | E40: 0.13 | F40: 1.138828383 | G40: 1.137552757 | H40: -0.001275626382 | I40: 1.627222667e-06
A41: 175.9477044 | B41: 3.070866753 | C41: 4.689134866 | D41: 88.66763739 | E41: 0.14 | F41: 1.150273799 | G41: 1.148934438 | H41: -0.001339360553 | I41: 1.793886692e-06
A42: 176.9477044 | B42: 3.088320045 | C42: 4.700829118 | D42: 89.33766867 | E42: 0.15 | F42: 1.161834243 | G42: 1.160447464 | H42: -0.001386778706 | I42: 1.92315518e-06
A43: 177.9477044 | B43: 3.105773338 | C43: 4.712657181 | D43: 90.01536675 | E43: 0.16 | F43: 1.173510871 | G43: 1.172092227 | H43: -0.001418644078 | I43: 2.01255102e-06
A44: 178.9477044 | B44: 3.12322663 | C44: 4.724619466 | D44: 90.70075518 | E44: 0.17 | F44: 1.185304851 | G44: 1.183869132 | H44: -0.001435719487 | I44: 2.061290446e-06
A45: 179.9477044 | B45: 3.140679923 | C45: 4.736716396 | D45: 91.39385824 | E45: 0.18 | F45: 1.197217363 | G45: 1.195778596 | H45: -0.001438767364 | I45: 2.070051528e-06
A46: 180.9477044 | B46: 3.158133215 | C46: 4.748948408 | D46: 92.09470091 | E46: 0.19 | F46: 1.209249598 | G46: 1.207821048 | H46: -0.001428549733 | I46: 2.040754339e-06
A47: 181.9477044 | B47: 3.175586508 | C47: 4.76131595 | D47: 92.80330888 | E47: 0.2 | F47: 1.221402758 | G47: 1.21999693 | H47: -0.001405828155 | I47: 1.976352803e-06
A48: 182.9477044 | B48: 3.1930398 | C48: 4.773819484 | D48: 93.51970861 | E48: 0.21 | F48: 1.23367806 | G48: 1.232306696 | H48: -0.001371363626 | I48: 1.880638194e-06
A49: 183.9477044 | B49: 3.210493093 | C49: 4.786459485 | D49: 94.24392728 | E49: 0.22 | F49: 1.246076731 | G49: 1.244750814 | H49: -0.001325916422 | I49: 1.758054358e-06
A50: 184.9477044 | B50: 3.227946385 | C50: 4.799236439 | D50: 94.97599286 | E50: 0.23 | F50: 1.25860001 | G50: 1.257329764 | H50: -0.001270245914 | I50: 1.613524681e-06
A51: 185.9477044 | B51: 3.245399678 | C51: 4.81215085 | D51: 95.71593411 | E51: 0.24 | F51: 1.27124915 | G51: 1.27004404 | H51: -0.001205110323 | I51: 1.452290891e-06
A52: 186.9477044 | B52: 3.26285297 | C52: 4.825203234 | D52: 96.4637806 | E52: 0.25 | F52: 1.284025417 | G52: 1.28289415 | H52: -0.001131266442 | I52: 1.279763763e-06
A53: 187.9477044 | B53: 3.280306263 | C53: 4.838394121 | D53: 97.21956273 | E53: 0.26 | F53: 1.296930087 | G53: 1.295880617 | H53: -0.001049469302 | I53: 1.101385816e-06
A54: 188.9477044 | B54: 3.297759555 | C54: 4.851724057 | D54: 97.98331181 | E54: 0.27 | F54: 1.309964451 | G54: 1.309003979 | H54: -0.0009604717982 | I54: 9.22506075e-07
A55: 189.9477044 | B55: 3.315212848 | C55: 4.865193604 | D55: 98.75506001 | E55: 0.28 | F55: 1.323129812 | G55: 1.322264788 | H55: -0.0008650242662 | I55: 7.482669811e-07
A56: 190.9477044 | B56: 3.33266614 | C56: 4.87880334 | D56: 99.53484047 | E56: 0.29 | F56: 1.336427488 | G56: 1.335663614 | H56: -0.0007638740127 | I56: 5.835035073e-07
A57: 191.9477044 | B57: 3.350119433 | C57: 4.892553861 | D57: 100.3226873 | E57: 0.3 | F57: 1.349858808 | G57: 1.349201043 | H57: -0.0006577647962 | I57: 4.326545271e-07
A58: 192.9477044 | B58: 3.367572726 | C58: 4.90644578 | D58: 101.1186356 | E58: 0.31 | F58: 1.363425114 | G58: 1.362877678 | H58: -0.0005474362595 | I58: 2.996864582e-07
A59: 193.9477044 | B59: =A59*D_R -> 3.385026018 | C59: 4.920479728 | D59: =C59/D_R-180 -> 101.9227216 | E59: 0.32 | F59: 1.377127764 | G59: 1.376694141 | H59: -0.0004336233127 | I59: 1.880291773e-07
A60: 194.9477044 | B60: 3.402479311 | C60: 4.934656355 | D60: 102.7349825 | E60: 0.33 | F60: 1.390968128 | G60: 1.390651073 | H60: -0.0003170554652 | I60: 1.00524168e-07
A61: 195.9477044 | B61: 3.419932603 | C61: 4.948976334 | D61: 103.5554568 | E61: 0.34 | F61: 1.404947591 | G61: 1.404749134 | H61: -0.0001984561058 | I61: 3.938482594e-08
A62: 196.9477044 | B62: 3.437385896 | C62: 4.963440356 | D62: 104.3841842 | E62: 0.35 | F62: 1.419067549 | G62: 1.418989007 | H62: -7.854173055e-05 | I62: 6.168803438e-09
A63: 197.9477044 | B63: 3.454839188 | C63: 4.978049135 | D63: 105.2212056 | E63: 0.36 | F63: 1.433329415 | G63: 1.433371393 | H63: 4.197888439e-05 | I63: 1.762226734e-09
A64: 198.9477044 | B64: 3.472292481 | C64: 4.992803409 | D64: 106.0665633 | E64: 0.37 | F64: 1.447734615 | G64: 1.44789702 | H64: 0.0001624055644 | I64: 2.637556733e-08
A65: 199.9477044 | B65: 3.489745773 | C65: 5.00770394 | D65: 106.9203008 | E65: 0.38 | F65: 1.462284589 | G65: 1.462566637 | H65: 0.0002820476753 | I65: 7.955089117e-08
A66: 200.9477044 | B66: 3.507199066 | C66: 5.022751515 | D66: 107.7824633 | E66: 0.39 | F66: 1.476980794 | G66: 1.477381019 | H66: 0.0004002251214 | I66: 1.601801478e-07
A67: 201.9477044 | B67: 3.524652358 | C67: 5.037946947 | D67: 108.6530975 | E67: 0.4 | F67: 1.491824698 | G67: 1.492340967 | H67: 0.0005162694025 | I67: 2.665340959e-07
A68: 202.9477044 | B68: 3.542105651 | C68: 5.053291078 | D68: 109.5322514 | E68: 0.41 | F68: 1.506817785 | G68: 1.50744731 | H68: 0.0006295247343 | I68: 3.963013911e-07
A69: 203.9477044 | B69: 3.559558943 | C69: 5.06878478 | D69: 110.4199751 | E69: 0.42 | F69: 1.521961556 | G69: 1.522700905 | H69: 0.000739349233 | I69: 5.466372883e-07
A70: 204.9477044 | B70: 3.577012236 | C70: 5.084428953 | D70: 111.3163202 | E70: 0.43 | F70: 1.537257524 | G70: 1.53810264 | H70: 0.0008451161659 | I70: 7.142213338e-07
A71: 205.9477044 | B71: 3.594465528 | C71: 5.100224531 | D71: 112.2213402 | E71: 0.44 | F71: 1.552707219 | G71: 1.553653434 | H71: 0.0009462152717 | I71: 8.953233405e-07
A72: 206.9477044 | B72: 3.611918821 | C72: 5.116172483 | D72: 113.1350905 | E72: 0.45 | F72: 1.568312185 | G72: 1.56935424 | H72: 0.001042054153 | I72: 1.085876858e-06
A73: 207.9477044 | B73: 3.629372113 | C73: 5.132273811 | D73: 114.0576287 | E73: 0.46 | F73: 1.584073985 | G73: 1.585206045 | H73: 0.001132059743 | I73: 1.281559261e-06
A74: 208.9477044 | B74: 3.646825406 | C74: 5.148529555 | D74: 114.9890142 | E74: 0.47 | F74: 1.599994193 | G74: 1.601209873 | H74: 0.00121567985 | I74: 1.477877497e-06
A75: 209.9477044 | B75: 3.664278698 | C75: 5.164940795 | D75: 115.929309 | E75: 0.48 | F75: 1.616074402 | G75: 1.617366787 | H75: 0.001292384786 | I75: 1.670258434e-06
A76: 210.9477044 | B76: 3.681731991 | C76: 5.181508649 | D76: 116.8785771 | E76: 0.49 | F76: 1.63231622 | G76: 1.633677889 | H76: 0.001361669078 | I76: 1.854142678e-06
A77: 211.9477044 | B77: 3.699185283 | C77: 5.198234282 | D77: 117.8368853 | E77: 0.5 | F77: 1.648721271 | G77: 1.650144324 | H77: 0.001423053272 | I77: 2.025080614e-06
A78: 212.9477044 | B78: 3.716638576 | C78: 5.2151189 | D78: 118.8043026 | E78: 0.51 | F78: 1.665291195 | G78: 1.666767281 | H78: 0.001476085826 | I78: 2.178829367e-06
A79: 213.9477044 | B79: 3.734091868 | C79: 5.232163759 | D79: 119.7809011 | E79: 0.52 | F79: 1.68202765 | G79: 1.683547995 | H79: 0.001520345113 | I79: 2.311449264e-06
A80: 214.9477044 | B80: 3.751545161 | C80: 5.249370162 | D80: 120.7667554 | E80: 0.53 | F80: 1.698932309 | G80: 1.70048775 | H80: 0.001555441516 | I80: 2.419398311e-06
A81: 215.9477044 | B81: 3.768998453 | C81: 5.266739467 | D81: 121.7619432 | E81: 0.54 | F81: 1.716006862 | G81: 1.717587882 | H81: 0.001581019643 | I81: 2.499623112e-06
A82: 216.9477044 | B82: 3.786451746 | C82: 5.284273082 | D82: 122.7665454 | E82: 0.55 | F82: 1.733253018 | G82: 1.734849779 | H82: 0.001596760657 | I82: 2.549644595e-06
A83: 217.9477044 | B83: 3.803905039 | C83: 5.301972477 | D83: 123.780646 | E83: 0.56 | F83: 1.7506725 | G83: 1.752274885 | H83: 0.001602384729 | I83: 2.56763682e-06
A84: 218.9477044 | B84: 3.821358331 | C84: 5.319839178 | D84: 124.8043326 | E84: 0.57 | F84: 1.768267051 | G84: 1.769864705 | H84: 0.001597653627 | I84: 2.552497112e-06
A85: 219.9477044 | B85: 3.838811624 | C85: 5.337874775 | D85: 125.8376962 | E85: 0.58 | F85: 1.786038431 | G85: 1.787620804 | H85: 0.00158237344 | I85: 2.503905703e-06
A86: 220.9477044 | B86: 3.856264916 | C86: 5.356080925 | D86: 126.8808317 | E86: 0.59 | F86: 1.803988415 | G86: 1.805544813 | H86: 0.001556397458 | I86: 2.422373047e-06
A87: 221.9477044 | B87: 3.873718209 | C87: 5.374459353 | D87: 127.9338381 | E87: 0.6 | F87: 1.8221188 | G87: 1.82363843 | H87: 0.001519629209 | I87: 2.309272932e-06
A88: 222.9477044 | B88: 3.891171501 | C88: 5.393011857 | D88: 128.9968182 | E88: 0.61 | F88: 1.840431399 | G88: 1.841903424 | H88: 0.001472025666 | I88: 2.166859562e-06
A89: 223.9477044 | B89: 3.908624794 | C89: 5.41174031 | D89: 130.0698796 | E89: 0.62 | F89: 1.858928042 | G89: 1.860341642 | H89: 0.001413600644 | I89: 1.998266781e-06
A90: 224.9477044 | B90: 3.926078086 | C90: 5.430646668 | D90: 131.1531341 | E90: 0.63 | F90: 1.877610579 | G90: 1.878955008 | H90: 0.001344428382 | I90: 1.807487676e-06
A91: 225.9477044 | B91: =A91*D_R -> 3.943531379 | C91: 5.449732968 | D91: =C91/D_R-180 -> 132.2466985 | E91: =1/$I$3*(A91-$A$27) -> 0.64 | F91: 1.896480879 | G91: 1.897745527 | H91: 0.00126464735 | I91: 1.59933292e-06
A92: 226.9477044 | B92: 3.960984671 | C92: =fourbar($F$20,$F$21,$G$22,1,-1,B92) -> 5.469001337 | D92: 133.3506948 | E92: 0.65 | F92: =EXP(E92) -> 1.915540829 | G92: =1/$I$4*(D92-$C$4)+$C$8 -> 1.916715293 | H92: 0.001174464271 | I92: =H92^2 -> 1.379366323e-06
A93: =A92+1 -> 227.9477044 | B93: 3.978437964 | C93: 5.488453995 | D93: 134.46525 | E93: 0.66 | F93: 1.934792334 | G93: 1.935866493 | H93: 0.001074158395 | I93: 1.153816257e-06
A94: 228.9477044 | B94: 3.995891256 | C94: 5.508093259 | D94: 135.5904969 | E94: 0.67 | F94: 1.954237321 | G94: 1.955201407 | H94: =G94-F94 -> 0.0009640860369 | I94: 9.294618866e-07
A95: 229.9477044 | B95: 4.013344549 | C95: 5.52792155 | D95: 136.7265743 | E95: 0.68 | F95: 1.973877732 | G95: 1.974722418 | H95: 0.0008446853972 | I95: 7.134934203e-07
A96: 230.9477044 | B96: 4.030797841 | C96: 5.547941395 | D96: 137.8736269 | E96: 0.69 | F96: 1.993715533 | G96: 1.994432015 | H96: 0.0007164816916 | I96: 5.133460144e-07
A97: 231.9477044 | B97: 4.048251134 | C97: 5.568155438 | D97: 139.0318063 | E97: 0.7 | F97: 2.013752707 | G97: 2.0143328 | H97: 0.0005800926179 | I97: 3.365074453e-07
A98: 232.9477044 | B98: 4.065704426 | C98: 5.588566441 | D98: 140.2012706 | E98: 0.71 | F98: 2.033991259 | G98: 2.034427493 | H98: 0.0004362341848 | I98: 1.903002639e-07
A99: 233.9477044 | B99: 4.083157719 | C99: 5.609177292 | D99: 141.3821854 | E99: 0.72 | F99: 2.054433211 | G99: 2.054718938 | H99: 0.0002857269365 | I99: 8.163988224e-08
A100: 234.9477044 | B100: 4.100611011 | C100: 5.629991016 | D100: 142.5747239 | E100: 0.73 | F100: 2.075080608 | G100: 2.07521011 | H100: 0.0001295026079 | I100: 1.677092546e-08
A101: 235.9477044 | B101: 4.118064304 | C101: 5.651010775 | D101: 143.7790674 | E101: 0.74 | F101: 2.095935514 | G101: 2.095904126 | H101: -3.138875092e-05 | I101: 9.852536841e-10
A102: 236.9477044 | B102: 4.135517596 | C102: 5.672239883 | D102: 144.9954057 | E102: 0.75 | F102: 2.117000017 | G102: 2.116804245 | H102: -0.000195771137 | I102: 3.832633808e-08
A103: 237.9477044 | B103: 4.152970889 | C103: 5.69368181 | D103: 146.2239376 | E103: 0.76 | F103: 2.13827622 | G103: 2.137913886 | H103: -0.0003623343947 | I103: 1.312862136e-07
A104: 238.9477044 | B104: 4.170424181 | C104: 5.715340193 | D104: 147.4648715 | E104: 0.77 | F104: 2.159766254 | G104: 2.159236628 | H104: -0.0005296254009 | I104: 2.805030653e-07
A105: 239.9477044 | B105: 4.187877474 | C105: 5.737218846 | D105: 148.718426 | E105: 0.78 | F105: 2.181472265 | G105: 2.180776227 | H105: -0.0006960385733 | I105: 4.844696955e-07
A106: 240.9477044 | B106: 4.205330766 | C106: 5.759321769 | D106: 149.9848302 | E106: 0.79 | F106: 2.203396426 | G106: 2.202536621 | H106: -0.0008598056348 | I106: 7.392657295e-07
A107: 241.9477044 | B107: 4.222784059 | C107: 5.781653163 | D107: 151.2643248 | E107: 0.8 | F107: 2.225540928 | G107: 2.224521944 | H107: -0.001018984558 | I107: 1.038329529e-06
A108: 242.9477044 | B108: 4.240237352 | C108: 5.804217437 | D108: 152.5571625 | E108: 0.81 | F108: 2.247907987 | G108: 2.246736539 | H108: -0.001171447602 | I108: 1.372289483e-06
A109: 243.9477044 | B109: 4.257690644 | C109: 5.827019228 | D109: 153.8636089 | E109: 0.82 | F109: 2.270499838 | G109: 2.269184969 | H109: -0.001314868349 | I109: 1.728878774e-06
A110: 244.9477044 | B110: 4.275143937 | C110: 5.850063407 | D110: 155.1839431 | E110: 0.83 | F110: 2.29331874 | G110: 2.291872033 | H110: -0.001446707626 | I110: 2.092962957e-06
A111: 245.9477044 | B111: 4.292597229 | C111: 5.873355105 | D111: 156.5184591 | E111: 0.84 | F111: 2.316366977 | G111: 2.314802779 | H111: -0.001564198195 | I111: 2.446715993e-06
A112: 246.9477044 | B112: 4.310050522 | C112: 5.896899722 | D112: 157.8674663 | E112: 0.85 | F112: 2.339646852 | G112: 2.337982524 | H112: -0.001664328056 | I112: 2.769987877e-06
A113: 247.9477044 | B113: 4.327503814 | C113: 5.920702949 | D113: 159.2312908 | E113: 0.86 | F113: 2.363160694 | G113: 2.361416871 | H113: -0.001743822226 | I113: 3.040915955e-06
A114: 248.9477044 | B114: 4.344957107 | C114: 5.944770789 | D114: 160.6102764 | E114: 0.87 | F114: 2.386910854 | G114: 2.385111731 | H114: -0.001799122789 | I114: 3.236842809e-06
A115: 249.9477044 | B115: 4.362410399 | C115: 5.969109576 | D115: 162.0047862 | E115: 0.88 | F115: 2.410899706 | G115: 2.409073339 | H115: -0.001826367016 | I115: 3.335616478e-06
A116: 250.9477044 | B116: 4.379863692 | C116: 5.993726007 | D116: 163.4152037 | E116: 0.89 | F116: 2.435129651 | G116: 2.433308288 | H116: -0.001821363319 | I116: 3.317364339e-06
A117: 251.9477044 | B117: 4.397316984 | C117: 6.018627159 | D117: 164.8419347 | E117: 0.9 | F117: 2.459603111 | G117: 2.457823546 | H117: -0.001779564746 | I117: 3.166850685e-06
A118: 252.9477044 | B118: 4.414770277 | C118: 6.043820529 | D118: 166.2854084 | E118: 0.91 | F118: 2.484322533 | G118: 2.482626494 | H118: -0.001696039716 | I118: 2.87655072e-06
A119: 253.9477044 | B119: 4.432223569 | C119: 6.069314059 | D119: 167.7460801 | E119: 0.92 | F119: 2.50929039 | G119: 2.50772495 | H119: -0.001565439605 | I119: 2.450601156e-06
A120: 254.9477044 | B120: 4.449676862 | C120: 6.09511618 | D120: 169.2244328 | E120: 0.93 | F120: 2.534509178 | G120: 2.533127215 | H120: -0.001381962751 | I120: 1.909821044e-06
A121: 255.9477044 | B121: 4.467130154 | C121: 6.121235847 | D121: 170.7209794 | E121: 0.94 | F121: 2.559981418 | G121: 2.558842104 | H121: -0.001139314384 | I121: 1.298037266e-06
A122: 256.9477044 | B122: 4.484583447 | C122: 6.147682586 | D122: 172.236266 | E122: 0.95 | F122: 2.585709659 | G122: 2.584878997 | H122: -0.000830661872 | I122: 6.899991455e-07
A123: 257.9477044 | B123: =A123*D_R -> 4.502036739 | C123: 6.174466549 | D123: =C123/D_R-180 -> 173.770874 | E123: 0.96 | F123: 2.611696473 | G123: 2.611247889 | H123: -0.0004485845831 | I123: 2.012281282e-07
A124: 258.9477044 | B124: 4.519490032 | C124: 6.201598568 | D124: 175.3254242 | E124: 0.97 | F124: 2.637944459 | G124: 2.637959442 | H124: 1.498245182e-05 | I124: 2.244738626e-10
A125: 259.9477044 | B125: 4.536943324 | C125: 6.229090219 | D125: 176.9005798 | E125: 0.98 | F125: 2.664456242 | G125: 2.665025054 | H125: 0.0005688120765 | I125: 3.235471784e-07
A126: 260.9477044 | B126: 4.554396617 | C126: 6.256953899 | D126: 178.497051 | E126: 0.99 | F126: 2.691234472 | G126: 2.692456929 | H126: 0.001222456912 | I126: 1.494400901e-06
A127: 261.9477044 | B127: 4.571849909 | C127: 6.285202905 | D127: 180.1155998 | E127: 1 | F127: 2.718281828 | G127: 2.720268159 | H127: 0.00198633104 | I127: 3.945510999e-06
A128: 262.9477044 | B128: 4.589303202 | C128: 6.313851532 | D128: 181.7570453 | E128: 1.01 | F128: 2.745601015 | G128: 2.748472818 | H128: 0.002871803167 | I128: 8.247253428e-06

Sheet y=ex_6DVExtremePoint (3)
B1: y=e^x | C1: 0<x<1
B3: qin | C3: 154.0770879 | E3: Dq | F3: 100 | H3: Rx | I3: =F3 -> 100 | J3: =LN(2) -> 0.6931471806 | N3: 30
B4: fin | C4: 89.33640928 | E4: Df | F4: 100 | H4: Ry | I4: =F4/(C13-1) -> 58.19767069 | N4: 10.90943725
F5: =C23*C15+C24*D15+C25-G15 -> 0.001838334381
N6: 96.55334769
B7: x | C7: y | D7: q | E7: f | I7: Bunda x değerleri manuel değiştirerek error curve iyileştirildi
B8: 0 | C8: =EXP(B8) -> 1 | D8: =$C$3+$I$3*(B8) -> 154.0770879 | E8: =$C$4+$I$4*(C8-$C$8) -> 89.33640928 | G8: =D8*D_R -> 2.689152485 | H8: =E8*D_R -> 1.559214484
B9: 0.2 | C9: =EXP(B9) -> 1.221402758 | D9: =$C$3+$I$3*(B9) -> 174.0770879 | E9: =$C$4+$I$4*(C9-$C$8) -> 102.2215341 | G9: 3.038218336 | H9: 1.784102336
B10: 0.52 | C10: 1.68202765 | D10: =$C$3+$I$3*(B10) -> 206.0770879 | E10: 129.0288298 | G10: 3.596723696 | H10: 2.251977911
B11: 0.88 | C11: 2.410899706 | D11: 242.0770879 | E11: 171.4474858 | G11: 4.225042227 | H11: 2.992323121
B12: 0.998 | C12: 2.712850698 | D12: 253.8770879 | E12: =$C$4+$I$4*(C12-$C$8) -> 189.0203301 | G12: 4.430991079 | H12: 3.299027114 | K12: qin | L12: 154.0770879
B13: 1 | C13: 2.718281828 | D13: 254.0770879 | E13: 189.3364093 | G13: 4.434481737 | H13: 3.304543736 | K13: fin | L13: 89.33640928
C15: =COS(H8) -> 0.01158158397 | D15: =-COS(G8) -> 0.8993830335 | E15: 1 | F15: 1 | G15: =COS(H8-G8) -> 0.4267158793
C16: =COS(H9) -> -0.2116921343 | D16: =-COS(G9) -> 0.9946616317 | E16: 1 | F16: -1 | G16: =COS(H9-G9) -> 0.3114136822
C17: =COS(H10) -> -0.6297113523 | D17: =-COS(G10) -> 0.8982034321 | E17: 1 | F17: 1 | G17: =COS(H10-G10) -> 0.2241303001
C18: =COS(H11) -> -0.9888799738 | D18: =-COS(G11) -> 0.4682831876 | E18: 1 | F18: -1 | G18: =COS(H11-G11) -> 0.3316737675
C19: =COS(H12) -> -0.9876327711 | D19: =-COS(G12) -> 0.2776988389 | E19: 1 | F19: 1 | G19: =COS(H12-G12) -> 0.4248827524
A22: =C3+180 -> 334.0770879 | H22: =$C$23*C15+$C$24*D15+$C$25-G15+$C$26*F15 -> -2.15105711e-16
A23: =C4+180 -> 269.3364093 | C23: =MMULT(MINVERSE(C15:F18),G15:G18) -> 0.3168330499 | E23: a2 | F23: =1/C23 -> 3.156236385 | G23: =-F23 -> -3.156236385 | H23: =$C$23*C16+$C$24*D16+$C$25-G16+$C$26*F16 -> -1.734723476e-16
C24: -0.5062875993 | E24: a3 | F24: =SQRT(1+F23^2+F25^2-2*C25*F23*F25) -> 5.083104713 | H24: =$C$23*C17+$C$24*D17+$C$25-G17+$C$26*F17 -> -1.318389842e-16
C25: 0.880231262 | E25: a4 | F25: =1/C24 -> -1.975161946 | G25: =-F25 -> 1.975161946 | H25: =$C$23*C18+$C$24*D18+$C$25-G18+$C$26*F18 -> -1.179611964e-16
C26: -0.001838334381 | H26: =$C$23*C19+$C$24*D19+$C$25-G19+$C$26*F19 -> -6.23599377e-09
C27: =C23*C18+C24*D18+C25-G18+C26*F18 -> -1.179611964e-16 | E27: =SQRT(C27^2+C28^2) -> 6.23599377e-09 | H27: =SQRT(H25^2+H26^2) -> 6.23599377e-09
C28: =C23*C19+C24*D19+C25-G19+C26 -> -6.23599377e-09
H29: =MIN(H31:H123) -> -0.001826079812
E30: x | F30: yreq | G30: ygen | H30: =MAX(H31:H123) -> 0.001546094432
A31: =C3 -> 154.0770879 | B31: =A31*D_R -> 2.689152485 | C31: =fourbar($F$23,$F$24,$G$25,1,-1,B31) -> 4.702312885 | D31: =C31/D_R-180 -> 89.42268224 | E31: =1/$I$3*(A31-$A$31) -> 0 | F31: =EXP(E31) -> 1 | G31: =1/$I$4*(D31-$C$4)+$C$8 -> 1.001482412 | H31: =G31-F31 -> 0.001482412496
A32: =A31+1 -> 155.0770879 | B32: 2.706605778 | C32: =fourbar($F$23,$F$24,$G$25,1,-1,B32) -> 4.712138038 | D32: 89.98562205 | E32: 0.01 | F32: =EXP(E32) -> 1.010050167 | G32: =1/$I$4*(D32-$C$4)+$C$8 -> 1.011155305 | H32: =G32-F32 -> 0.001105137838
A33: =A32+1 -> 156.0770879 | B33: 2.72405907 | C33: 4.722097147 | D33: 90.55623695 | E33: 0.02 | F33: 1.02020134 | G33: 1.020960077 | H33: 0.0007587370401
A34: 157.0770879 | B34: 2.741512363 | C34: 4.732190041 | D34: 91.13451721 | E34: 0.03 | F34: 1.030454534 | G34: 1.030896562 | H34: 0.0004420278328
A35: 158.0770879 | B35: 2.758965655 | C35: 4.742416589 | D35: 91.72045526 | E35: 0.04 | F35: 1.040810774 | G35: 1.040964629 | H35: 0.0001538545767
A36: 159.0770879 | B36: 2.776418948 | C36: 4.752776694 | D36: 92.31404556 | E36: 0.05 | F36: 1.051271096 | G36: 1.051164183 | H36: -0.0001069132822
A37: 160.0770879 | B37: 2.793872241 | C37: 4.763270295 | D37: 92.91528458 | E37: 0.06 | F37: 1.061836547 | G37: 1.061495164 | H37: -0.0003413826526
A38: 161.0770879 | B38: 2.811325533 | C38: 4.773897362 | D38: 93.52417068 | E38: 0.07 | F38: 1.072508181 | G38: 1.071957543 | H38: -0.000550638143
A39: 162.0770879 | B39: 2.828778826 | C39: 4.7846579 | D39: 94.14070407 | E39: 0.08 | F39: 1.083287068 | G39: 1.082551324 | H39: -0.0007357433145
A40: 163.0770879 | B40: 2.846232118 | C40: 4.795551943 | D40: 94.76488675 | E40: 0.09 | F40: 1.094174284 | G40: 1.093276542 | H40: -0.0008977418467
A41: 164.0770879 | B41: 2.863685411 | C41: 4.806579556 | D41: 95.39672242 | E41: 0.1 | F41: 1.105170918 | G41: 1.104133259 | H41: -0.001037658621
A42: 165.0770879 | B42: 2.881138703 | C42: 4.817740832 | D42: 96.03621649 | E42: 0.11 | F42: 1.11627807 | G42: 1.11512157 | H42: -0.001156500725
A43: 166.0770879 | B43: 2.898591996 | C43: 4.829035896 | D43: 96.68337595 | E43: 0.12 | F43: 1.127496852 | G43: 1.126241593 | H43: -0.001255258378
A44: 167.0770879 | B44: 2.916045288 | C44: 4.840464896 | D44: 97.33820941 | E44: 0.13 | F44: 1.138828383 | G44: 1.137493478 | H44: -0.001334905791
A45: 168.0770879 | B45: 2.933498581 | C45: 4.852028009 | D45: 98.000727 | E45: 0.14 | F45: 1.150273799 | G45: 1.148877397 | H45: -0.001396401947
A46: 169.0770879 | B46: 2.950951873 | C46: 4.863725439 | D46: 98.67094037 | E46: 0.15 | F46: 1.161834243 | G46: 1.160393551 | H46: -0.001440691323
A47: 170.0770879 | B47: 2.968405166 | C47: 4.875557415 | D47: 99.34886263 | E47: 0.16 | F47: 1.173510871 | G47: 1.172042166 | H47: -0.00146870454
A48: 171.0770879 | B48: 2.985858458 | C48: 4.88752419 | D48: 100.0345084 | E48: 0.17 | F48: 1.185304851 | G48: 1.183823492 | H48: -0.001481358952
A49: 172.0770879 | B49: 3.003311751 | C49: 4.899626044 | D49: 100.7278935 | E49: 0.18 | F49: 1.197217363 | G49: 1.195737804 | H49: -0.001479559177
A50: 173.0770879 | B50: 3.020765043 | C50: 4.911863281 | D50: 101.4290356 | E50: 0.19 | F50: 1.209249598 | G50: 1.2077854 | H50: -0.001464197563
A51: 174.0770879 | B51: 3.038218336 | C51: 4.924236229 | D51: 102.1379532 | E51: 0.2 | F51: 1.221402758 | G51: 1.219966604 | H51: -0.001436154596
A52: 175.0770879 | B52: 3.055671628 | C52: 4.936745239 | D52: 102.8546667 | E52: 0.21 | F52: 1.23367806 | G52: 1.232281761 | H52: -0.001396299257
A53: 176.0770879 | B53: 3.073124921 | C53: 4.949390686 | D53: 103.5791975 | E53: 0.22 | F53: 1.246076731 | G53: 1.244731241 | H53: -0.001345489314
A54: 177.0770879 | B54: 3.090578213 | C54: 4.962172971 | D54: 104.3115684 | E54: 0.23 | F54: 1.25860001 | G54: 1.257315438 | H54: -0.001284571564
A55: 178.0770879 | B55: 3.108031506 | C55: 4.975092515 | D55: 105.0518038 | E55: 0.24 | F55: 1.27124915 | G55: 1.270034768 | H55: -0.001214382022
A56: 179.0770879 | B56: 3.125484798 | C56: 4.988149766 | D56: 105.7999292 | E56: 0.25 | F56: 1.284025417 | G56: 1.282889671 | H56: -0.001135746047
A57: 180.0770879 | B57: 3.142938091 | C57: 5.001345194 | D57: 106.5559715 | E57: 0.26 | F57: 1.296930087 | G57: 1.295880608 | H57: -0.001049478429
A58: 181.0770879 | B58: 3.160391383 | C58: 5.014679292 | D58: 107.319959 | E58: 0.27 | F58: 1.309964451 | G58: 1.309008067 | H58: -0.0009563834064
A59: 182.0770879 | B59: 3.177844676 | C59: 5.028152578 | D59: 108.0919215 | E59: 0.28 | F59: 1.323129812 | G59: 1.322272558 | H59: -0.0008572546417
A60: 183.0770879 | B60: 3.195297968 | C60: 5.041765595 | D60: 108.8718899 | E60: 0.29 | F60: 1.336427488 | G60: 1.335674613 | H60: -0.0007528751399
A61: 184.0770879 | B61: 3.212751261 | C61: 5.055518908 | D61: 109.6598967 | E61: 0.3 | F61: 1.349858808 | G61: 1.34921479 | H61: -0.0006440171128
A62: 185.0770879 | B62: 3.230204554 | C62: 5.069413108 | D62: 110.4559757 | E62: 0.31 | F62: 1.363425114 | G62: 1.362893672 | H62: -0.0005314417908
A63: 186.0770879 | B63: =A63*D_R -> 3.247657846 | C63: 5.083448813 | D63: =C63/D_R-180 -> 111.2601624 | E63: =1/$I$3*(A63-$A$31) -> 0.32 | F63: 1.377127764 | G63: 1.376711865 | H63: -0.0004158991798
A64: 187.0770879 | B64: 3.265111139 | C64: 5.097626663 | D64: 112.0724933 | E64: 0.33 | F64: 1.390968128 | G64: 1.390670001 | H64: -0.0002981277635
A65: 188.0770879 | B65: 3.282564431 | C65: 5.111947327 | D65: 112.8930069 | E65: 0.34 | F65: 1.404947591 | G65: 1.404768736 | H65: -0.0001788541506
A66: 189.0770879 | B66: 3.300017724 | C66: 5.126411498 | D66: 113.7217429 | E66: 0.35 | F66: 1.419067549 | G66: 1.419008756 | H66: -5.879266451e-05
A67: 190.0770879 | B67: 3.317471016 | C67: 5.141019898 | D67: 114.5587426 | E67: 0.36 | F67: 1.433329415 | G67: 1.43339077 | H67: 6.135512339e-05
A68: 191.0770879 | B68: 3.334924309 | C68: 5.155773278 | D68: 115.404049 | E68: 0.37 | F68: 1.447734615 | G68: 1.447915516 | H68: 0.0001809009199
A69: 192.0770879 | B69: 3.352377601 | C69: 5.170672415 | D69: 116.2577066 | E69: 0.38 | F69: 1.462284589 | G69: 1.46258376 | H69: 0.0002991702958
A70: 193.0770879 | B70: 3.369830894 | C70: 5.185718116 | D70: 117.1197618 | E70: 0.39 | F70: 1.476980794 | G70: 1.477396297 | H70: 0.0004155033341
A71: 194.0770879 | B71: 3.387284186 | C71: 5.20091122 | D71: 117.9902625 | E71: 0.4 | F71: 1.491824698 | G71: 1.492353953 | H71: 0.0005292553408
A72: 195.0770879 | B72: 3.404737479 | C72: 5.216252595 | D72: 118.8692586 | E72: 0.41 | F72: 1.506817785 | G72: 1.507457583 | H72: 0.000639797622
A73: 196.0770879 | B73: 3.422190771 | C73: 5.231743144 | D73: 119.7568016 | E73: 0.42 | F73: 1.521961556 | G73: 1.522708074 | H73: 0.0007465183281
A74: 197.0770879 | B74: 3.439644064 | C74: 5.247383801 | D74: 120.6529453 | E74: 0.43 | F74: 1.537257524 | G74: 1.538106347 | H74: 0.0008488233687
A75: 198.0770879 | B75: 3.457097356 | C75: 5.263175535 | D75: 121.557745 | E75: 0.44 | F75: 1.552707219 | G75: 1.553653356 | H75: 0.0009461373998
A76: 199.0770879 | B76: 3.474550649 | C76: 5.279119351 | D76: 122.4712583 | E76: 0.45 | F76: 1.568312185 | G76: 1.56935009 | H76: 0.001037904887
A77: 200.0770879 | B77: 3.492003941 | C77: 5.295216292 | D77: 123.3935451 | E77: 0.46 | F77: 1.584073985 | G77: 1.585197576 | H77: 0.001123591249
A78: 201.0770879 | B78: 3.509457234 | C78: 5.311467437 | D78: 124.3246672 | E78: 0.47 | F78: 1.599994193 | G78: 1.601196877 | H78: 0.00120268408
A79: 202.0770879 | B79: 3.526910526 | C79: 5.327873908 | D79: 125.2646887 | E79: 0.48 | F79: 1.616074402 | G79: 1.617349097 | H79: 0.001274694464
A80: 203.0770879 | B80: 3.544363819 | C80: 5.344436866 | D80: 126.2136763 | E80: 0.49 | F80: 1.63231622 | G80: 1.633655378 | H80: 0.001339158377
A81: 204.0770879 | B81: 3.561817111 | C81: 5.361157517 | D81: 127.1716991 | E81: 0.5 | F81: 1.648721271 | G81: 1.650116909 | H81: 0.001395638183
A82: 205.0770879 | B82: 3.579270404 | C82: 5.378037111 | D82: 128.1388285 | E82: 0.51 | F82: 1.665291195 | G82: 1.666734919 | H82: 0.001443724236
A83: 206.0770879 | B83: 3.596723696 | C83: 5.395076945 | D83: 129.1151391 | E83: 0.52 | F83: 1.68202765 | G83: 1.683510686 | H83: 0.001483036584
A84: 207.0770879 | B84: 3.614176989 | C84: 5.412278365 | D84: 130.1007079 | E84: 0.53 | F84: 1.698932309 | G84: 1.700445535 | H84: 0.001513226788
A85: 208.0770879 | B85: 3.631630281 | C85: 5.429642769 | D85: 131.0956149 | E85: 0.54 | F85: 1.716006862 | G85: 1.717540842 | H85: 0.00153397986
A86: 209.0770879 | B86: 3.649083574 | C86: 5.447171606 | D86: 132.0999433 | E86: 0.55 | F86: 1.733253018 | G86: 1.734798034 | H86: 0.001545016327
A87: 210.0770879 | B87: 3.666536867 | C87: 5.464866383 | D87: 133.1137793 | E87: 0.56 | F87: 1.7506725 | G87: 1.752218595 | H87: 0.001546094432
A88: 211.0770879 | B88: 3.683990159 | C88: 5.482728664 | D88: 134.1372127 | E88: 0.57 | F88: 1.768267051 | G88: 1.769804064 | H88: 0.001537012478
A89: 212.0770879 | B89: 3.701443452 | C89: 5.500760076 | D89: 135.1703365 | E89: 0.58 | F89: 1.786038431 | G89: 1.787556042 | H89: 0.001517611326
A90: 213.0770879 | B90: 3.718896744 | C90: 5.518962307 | D90: 136.2132475 | E90: 0.59 | F90: 1.803988415 | G90: 1.805476192 | H90: 0.001487777059
A91: 214.0770879 | B91: 3.736350037 | C91: 5.537337114 | D91: 137.2660464 | E91: 0.6 | F91: 1.8221188 | G91: 1.823566244 | H91: 0.001447443821
A92: 215.0770879 | B92: 3.753803329 | C92: 5.555886323 | D92: 138.3288377 | E92: 0.61 | F92: 1.840431399 | G92: 1.841827996 | H92: 0.001396596846
A93: 216.0770879 | B93: 3.771256622 | C93: 5.574611835 | D93: 139.4017305 | E93: 0.62 | F93: 1.858928042 | G93: 1.860263318 | H93: 0.001335275691
A94: 217.0770879 | B94: 3.788709914 | C94: 5.593515627 | D94: 140.484838 | E94: 0.63 | F94: 1.877610579 | G94: 1.878874157 | H94: 0.001263577692
A95: 218.0770879 | B95: =A95*D_R -> 3.806163207 | C95: 5.612599758 | D95: =C95/D_R-180 -> 141.5782782 | E95: =1/$I$3*(A95-$A$31) -> 0.64 | F95: 1.896480879 | G95: 1.897662541 | H95: 0.001181661654
A96: 219.0770879 | B96: 3.823616499 | C96: =fourbar($F$23,$F$24,$G$25,1,-1,B96) -> 5.631866373 | D96: 142.682174 | E96: 0.65 | F96: =EXP(E96) -> 1.915540829 | G96: =1/$I$4*(D96-$C$4)+$C$8 -> 1.916630581 | H96: 0.001089751797
A97: =A96+1 -> 220.0770879 | B97: 3.841069792 | C97: 5.651317707 | D97: 143.7966533 | E97: 0.66 | F97: 1.934792334 | G97: 1.935780476 | H97: 0.0009881419848
A98: 221.0770879 | B98: 3.858523084 | C98: 5.670956088 | D98: 144.9218496 | E98: 0.67 | F98: 1.954237321 | G98: 1.955114521 | H98: =G98-F98 -> 0.0008772002502
A99: 222.0770879 | B99: 3.875976377 | C99: 5.690783946 | D99: 146.0579022 | E99: 0.68 | F99: 1.973877732 | G99: 1.974635106 | H99: 0.000757373654
A100: 223.0770879 | B100: 3.893429669 | C100: 5.710803815 | D100: 147.2049562 | E100: 0.69 | F100: 1.993715533 | G100: 1.994344727 | H100: 0.0006291934965
A101: 224.0770879 | B101: 3.910882962 | C101: 5.731018342 | D101: 148.3631633 | E101: 0.7 | F101: 2.013752707 | G101: 2.014245988 | H101: 0.000493280922
A102: 225.0770879 | B102: 3.928336254 | C102: 5.75143029 | D102: 149.5326818 | E102: 0.71 | F102: 2.033991259 | G102: 2.034341612 | H102: 0.0003503529473
A103: 226.0770879 | B103: 3.945789547 | C103: 5.772042547 | D103: 150.7136771 | E103: 0.72 | F103: 2.054433211 | G103: 2.05463444 | H103: 0.0002012289584
A104: 227.0770879 | B104: 3.963242839 | C104: 5.792858132 | D104: 151.9063223 | E104: 0.73 | F104: 2.075080608 | G104: 2.075127445 | H104: 4.683771702e-05
A105: 228.0770879 | B105: 3.980696132 | C105: 5.813880206 | D105: 153.1107984 | E105: 0.74 | F105: 2.095935514 | G105: 2.095823739 | H105: -0.000111775069
A106: 229.0770879 | B106: 3.998149424 | C106: 5.835112076 | D106: 154.3272949 | E106: 0.75 | F106: 2.117000017 | G106: 2.116726578 | H106: -0.000273438558
A107: 230.0770879 | B107: 4.015602717 | C107: 5.856557206 | D107: 155.5560104 | E107: 0.76 | F107: 2.13827622 | G107: 2.137839373 | H107: -0.0004368479028
A108: 231.0770879 | B108: 4.033056009 | C108: 5.87821923 | D108: 156.7971529 | E108: 0.77 | F108: 2.159766254 | G108: 2.159165699 | H108: -0.0006005546249
A109: 232.0770879 | B109: 4.050509302 | C109: 5.900101957 | D109: 158.0509408 | E109: 0.78 | F109: 2.181472265 | G109: 2.180709309 | H109: -0.000762956153
A110: 233.0770879 | B110: 4.067962594 | C110: 5.922209389 | D110: 159.3176034 | E110: 0.79 | F110: 2.203396426 | G110: 2.202474142 | H110: -0.0009222844335
A111: 234.0770879 | B111: 4.085415887 | C111: 5.944545729 | D111: 160.5973814 | E111: 0.8 | F111: 2.225540928 | G111: 2.224464335 | H111: -0.001076593508
A112: 235.0770879 | B112: 4.10286918 | C112: 5.967115398 | D112: 161.8905282 | E112: 0.81 | F112: 2.247907987 | G112: 2.246684241 | H112: -0.001223745944
A113: 236.0770879 | B113: 4.120322472 | C113: 5.989923048 | D113: 163.1973102 | E113: 0.82 | F113: 2.270499838 | G113: 2.26913844 | H113: -0.001361397973
A114: 237.0770879 | B114: 4.137775765 | C114: 6.01297358 | D114: 164.5180085 | E114: 0.83 | F114: 2.29331874 | G114: 2.291831757 | H114: -0.001486983193
A115: 238.0770879 | B115: 4.155229057 | C115: 6.036272164 | D115: 165.852919 | E115: 0.84 | F115: 2.316366977 | G115: 2.314769282 | H115: -0.001597694659
A116: 239.0770879 | B116: 4.17268235 | C116: 6.059824256 | D116: 167.2023545 | E116: 0.85 | F116: 2.339646852 | G116: 2.337956387 | H116: -0.001690465136
A117: 240.0770879 | B117: 4.190135642 | C117: 6.083635623 | D117: 168.5666453 | E117: 0.86 | F117: 2.363160694 | G117: 2.361398748 | H117: -0.001761945317
A118: 241.0770879 | B118: 4.207588935 | C118: 6.107712367 | D118: 169.9461411 | E118: 0.87 | F118: 2.386910854 | G118: 2.385102374 | H118: -0.001808479697
A119: 242.0770879 | B119: 4.225042227 | C119: 6.13206095 | D119: 171.3412122 | E119: 0.88 | F119: 2.410899706 | G119: 2.409073627 | H119: -0.001826079812
A120: 243.0770879 | B120: 4.24249552 | C120: 6.15668823 | D120: 172.7522514 | E120: 0.89 | F120: 2.435129651 | G120: 2.433319257 | H120: -0.001810394473
A121: 244.0770879 | B121: 4.259948812 | C121: 6.18160149 | D121: 174.179676 | E121: 0.9 | F121: 2.459603111 | G121: 2.457846435 | H121: -0.00175667655
A122: 245.0770879 | B122: 4.277402105 | C122: 6.206808476 | D122: 175.6239299 | E122: 0.91 | F122: 2.484322533 | G122: 2.482662788 | H122: -0.001659745829
A123: 246.0770879 | B123: 4.294855397 | C123: 6.232317445 | D123: 177.0854862 | E123: 0.92 | F123: 2.50929039 | G123: 2.507776443 | H123: -0.001513947322
A124: 247.0770879 | B124: 4.31230869 | C124: 6.258137205 | D124: 178.5648495 | E124: 0.93 | F124: 2.534509178 | G124: 2.533196073 | H124: -0.001313104348
A125: 248.0770879 | B125: 4.329761982 | C125: 6.284277176 | D125: 180.0625595 | E125: 0.94 | F125: 2.559981418 | G125: 2.558930953 | H125: -0.001050465552
A126: 249.0770879 | B126: 4.347215275 | C126: 6.310747449 | D126: 181.5791944 | E126: 0.95 | F126: 2.585709659 | G126: 2.584991014 | H126: -0.0007186448478
A127: 250.0770879 | B127: =A127*D_R -> 4.364668567 | C127: 6.337558852 | D127: =C127/D_R-180 -> 183.1153746 | E127: =1/$I$3*(A127-$A$31) -> 0.96 | F127: 2.611696473 | G127: 2.61138692 | H127: -0.000309553114
A128: 251.0770879 | B128: 4.38212186 | C128: 6.364723035 | D128: 184.6717677 | E128: 0.97 | F128: 2.637944459 | G128: 2.638130139 | H128: 0.0001856798053
A129: 252.0770879 | B129: 4.399575152 | C129: 6.392252558 | D129: 186.2490932 | E129: 0.98 | F129: 2.664456242 | G129: 2.665233036 | H129: 0.0007767945434
A130: 253.0770879 | B130: 4.417028445 | C130: 6.420160997 | D130: 187.8481289 | E130: 0.99 | F130: 2.691234472 | G130: 2.692708978 | H130: 0.001474505221
A131: 254.0770879 | B131: 4.434481737 | C131: 6.448463065 | D131: 189.469718 | E131: 1 | F131: 2.718281828 | G131: 2.720572447 | H131: 0.00229061864
A132: 255.0770879 | B132: 4.45193503 | C132: 6.477174751 | D132: 191.1147764 | E132: 1.01 | F132: 2.745601015 | G132: 2.748839188 | H132: 0.003238172891

Sheet y=logx_6DVExtremePoint (2)
B1: y=logx | C1: 0<x<1
B3: qin | C3: 47.01374572 | E3: Dq | F3: 90 | H3: Rx | I3: =F3/9 -> 10 | J3: =LN(2) -> 0.6931471806 | N3: 30
B4: fin | C4: 108.6527419 | E4: Df | F4: 60 | H4: Ry | I4: =F4 -> 60 | N4: 10.90943725
F5: =C25*C17+C26*D17+C27-G17 -> 3.813622489e-05
A6: =C3+180 -> 227.0137457 | N6: 96.55334769
B7: x | C7: y | D7: q | E7: f
B8: 1 | C8: =LOG(B8) -> 0 | D8: =$C$3+$I$3*(B8-1) -> 47.01374572 | E8: =$C$4+$I$4*C8 -> 108.6527419 | G8: =D8*D_R -> 0.8205446566 | H8: =E8*D_R -> 1.896348087 | J8: Chebyshev spacing
B9: =5.5-4.5*COS(2*PI()/10) -> 1.859423525 | C9: =LOG(B9) -> 0.2693783213 | D9: =$C$3+$I$3*(B9-1) -> 55.60798098 | E9: =$C$4+$I$4*C9 -> 124.8154411 | G9: 0.9705423584 | H9: 2.178440405
B10: =5.5-4.5*COS(4*PI()/10) -> 4.109423525 | C10: 0.6137809028 | D10: 78.10798098 | E10: 145.479596 | G10: 1.36324144 | H10: 2.539097945
B11: =5.5-4.5*COS(6*PI()/10) -> 6.890576475 | C11: 0.8382555571 | D11: 105.9195105 | E11: 158.9480753 | G11: 1.8486442 | H11: 2.774167253
B12: =5.5-4.5*COS(8*PI()/10) -> 9.140576475 | C12: 0.9609735865 | D12: 128.4195105 | E12: 166.311157 | G12: 2.241343281 | H12: 2.902677273
B13: 10 | C13: 1 | D13: 137.0137457 | E13: 168.6527419 | G13: 2.391340983 | H13: 2.943545638
C17: =COS(H8) -> -0.3198316128 | D17: =-COS(G8) -> -0.6818228827 | E17: 1 | F17: 1 | G17: =COS(H8-G8) -> 0.4750254006
C18: =COS(H9) -> -0.5709348455 | D18: =-COS(G9) -> -0.5648520643 | E18: 1 | F18: -1 | G18: 0.3549852411
C19: -0.8239244297 | D19: -0.2060678827 | E19: 1 | F19: 1 | G19: 0.3847526439
C20: -0.9332552696 | D20: 0.2742866968 | E20: 1 | F20: -1 | G20: 0.6014167887
C21: -0.9715952204 | D21: 0.6214146091 | E21: 1 | F21: 1 | G21: 0.789173636
C22: -0.9804527066 | D22: 0.7315172975 | E22: 1 | F22: -1 | G22: 0.8513701064
A24: =C3+180 -> 227.0137457 | H24: =$C$25*C17+$C$26*D17+$C$27-G17+$C$28*F17 -> 1.387778781e-16
A25: =C4+180 -> 288.6527419 | C25: =MMULT(MINVERSE(C17:F20),G17:G20) -> 0.7700351016 | E25: a2 | F25: =1/C25 -> 1.298642098 | G25: =-F25 -> -1.298642098 | H25: =$C$25*C18+$C$26*D18+$C$27-G18+$C$28*F18 -> 2.775557562e-17
C26: 0.6261550729 | E26: a3 | F26: =SQRT(1+F25^2+F27^2-2*C27*F25*F27) -> 0.6884881489 | H26: =$C$25*C19+$C$26*D19+$C$27-G19+$C$28*F19 -> 2.498001805e-16
C27: 1.148271962 | E27: a4 | F27: =1/C26 -> 1.597048468 | G27: =-F27 -> -1.597048468 | H27: =$C$25*C20+$C$26*D20+$C$27-G20+$C$28*F20 -> 3.053113318e-16
C28: -3.813622489e-05 | H28: =$C$25*C21+$C$26*D21+$C$27-G21+$C$28*F21 -> -3.245058719e-07
H29: =SQRT(H27^2+H28^2) -> 3.245058719e-07
C30: =$C$25*C21+$C$26*D21+$C$27*E21+$C$28*F21-G21 -> -3.24505872e-07 | E30: =SQRT(C30^2+C31^2) -> 4.153031592e-07
C31: =$C$25*C22+$C$26*D22+$C$27*E22+$C$28*F22-G22 -> 2.591768762e-07 | H31: =MIN(H33:H125) -> -0.0009697227939
E32: x | F32: yreq | G32: ygen | H32: =MAX(H33:H125) -> 0.002518002686
A33: =C3 -> 47.01374572 | B33: =A33*D_R -> 0.8205446566 | C33: =fourbar($F$25,$F$26,$F$27,1,-1,B33) -> 1.896094339 | D33: =C33/D_R -> 108.6382032 | E33: =1/$I$3*(A33-$A$33)+1 -> 1 | F33: =LOG(E33) -> 0 | G33: =1/$I$4*(D33-$C$4)+$C$8 -> -0.0002423110147 | H33: =G33-F33 -> -0.0002423110147
A34: =A33+1 -> 48.01374572 | B34: 0.8379979491 | C34: =fourbar($F$25,$F$26,$F$27,1,-1,B34) -> 1.941670727 | D34: 111.2495379 | E34: 1.1 | F34: =LOG(E34) -> 0.04139268516 | G34: =1/$I$4*(D34-$C$4)+$C$8 -> 0.04327993389 | H34: =G34-F34 -> 0.001887248734
A35: =A34+1 -> 49.01374572 | B35: 0.8554512416 | C35: 1.98190334 | D35: 113.5546968 | E35: 1.2 | F35: 0.07918124605 | G35: 0.08169924873 | H35: 0.002518002686
A36: 50.01374572 | B36: 0.8729045341 | C36: 2.018255767 | D36: 115.6375374 | E36: 1.3 | F36: 0.1139433523 | G36: 0.1164132593 | H36: 0.002469907027
A37: 51.01374572 | B37: 0.8903578266 | C37: 2.051594946 | D37: 117.5477317 | E37: 1.4 | F37: 0.1461280357 | G37: 0.1482498305 | H37: 0.00212179482
A38: 52.01374572 | B38: 0.9078111192 | C38: 2.082489419 | D38: 119.3178546 | E38: 1.5 | F38: 0.1760912591 | G38: 0.1777518789 | H38: 0.001660619828
A39: 53.01374572 | B39: 0.9252644117 | C39: 2.111338757 | D39: 120.9707999 | E39: 1.6 | F39: 0.2041199827 | G39: 0.2053009672 | H39: 0.001180984505
A40: 54.01374572 | B40: 0.9427177042 | C40: 2.138438241 | D40: 122.523486 | E40: 1.7 | F40: 0.2304489214 | G40: 0.2311790685 | H40: 0.0007301471572
A41: 55.01374572 | B41: 0.9601709967 | C41: 2.164014553 | D41: 123.9889007 | E41: 1.8 | F41: 0.2552725051 | G41: 0.2556026477 | H41: 0.0003301425585
A42: 56.01374572 | B42: 0.9776242892 | C42: 2.188246978 | D42: 125.3773164 | E42: 1.9 | F42: 0.278753601 | G42: 0.278742909 | H42: -1.069199887e-05
A43: 57.01374572 | B43: 0.9950775818 | C43: 2.211280748 | D43: 126.6970542 | E43: 2 | F43: 0.3010299957 | G43: 0.3007385388 | H43: -0.0002914568857
A44: 58.01374572 | B44: 1.012530874 | C44: 2.233235835 | D44: 127.954988 | E44: 2.1 | F44: 0.3222192947 | G44: 0.3217041028 | H44: -0.0005151919194
A45: 59.01374572 | B45: 1.029984167 | C45: 2.254212973 | D45: 129.1568895 | E45: 2.2 | F45: 0.3424226808 | G45: 0.341735794 | H45: -0.0006868868439
A46: 60.01374572 | B46: 1.047437459 | C46: 2.274297908 | D46: 130.3076715 | E46: 2.3 | F46: 0.361727836 | G46: 0.3609154938 | H46: -0.0008123422459
A47: 61.01374572 | B47: 1.064890752 | C47: 2.293564486 | D47: 131.4115651 | E47: 2.4 | F47: 0.3802112417 | G47: 0.3793137205 | H47: -0.0008975212247
A48: 62.01374572 | B48: 1.082344044 | C48: 2.312076948 | D48: 132.472251 | E48: 2.5 | F48: 0.3979400087 | G48: 0.3969918197 | H48: -0.0009481889564
A49: 63.01374572 | B49: 1.099797337 | C49: 2.329891669 | D49: 133.4929594 | E49: 2.6 | F49: 0.414973348 | G49: 0.4140036252 | H49: -0.0009697227939
A50: 64.01374572 | B50: 1.117250629 | C50: 2.347058499 | D50: 134.4765463 | E50: 2.7 | F50: 0.4313637642 | G50: 0.4303967405 | H50: -0.0009670236203
A51: 65.01374572 | B51: 1.134703922 | C51: 2.363621818 | D51: 135.4255545 | E51: 2.8 | F51: 0.4471580313 | G51: 0.4462135444 | H51: -0.0009444869211
A52: 66.01374572 | B52: 1.152157214 | C52: 2.379621368 | D52: 136.3422612 | E52: 2.9 | F52: 0.4623979979 | G52: 0.4614919895 | H52: -0.0009060084039
A53: 67.01374572 | B53: 1.169610507 | C53: 2.395092933 | D53: 137.2287166 | E53: 3 | F53: 0.4771212547 | G53: 0.4762662459 | H53: -0.0008550088146
A54: 68.01374572 | B54: 1.187063799 | C54: 2.410068884 | D54: 138.0867754 | E54: 3.1 | F54: 0.4913616938 | G54: 0.4905672252 | H54: -0.0007944685859
A55: 69.01374572 | B55: 1.204517092 | C55: 2.424578629 | D55: 138.9181226 | E55: 3.2 | F55: 0.5051499783 | G55: 0.5044230117 | H55: -0.0007269666363
A56: 70.01374572 | B56: 1.221970385 | C56: 2.438648994 | D56: 139.724295 | E56: 3.3 | F56: 0.5185139399 | G56: 0.51785922 | H56: -0.0006547199256
A57: 71.01374572 | B57: 1.239423677 | C57: 2.452304529 | D57: 140.5066996 | E57: 3.4 | F57: 0.531478917 | G57: 0.5308992952 | H57: -0.0005796217985
A58: 72.01374572 | B58: 1.25687697 | C58: 2.465567779 | D58: 141.2666278 | E58: 3.5 | F58: 0.5440680444 | G58: 0.5435647663 | H58: -0.0005032780391
A59: 73.01374572 | B59: 1.274330262 | C59: 2.478459508 | D59: 142.0052695 | E59: 3.6 | F59: 0.5563025008 | G59: 0.5558754607 | H59: -0.0004270401066
A60: 74.01374572 | B60: 1.291783555 | C60: 2.49099889 | D60: 142.7237232 | E60: 3.7 | F60: 0.5682017241 | G60: 0.5678496887 | H60: -0.0003520353652
A61: 75.01374572 | B61: 1.309236847 | C61: 2.503203678 | D61: 143.423006 | E61: 3.8 | F61: 0.5797835966 | G61: 0.5795044023 | H61: -0.0002791943209
A62: 76.01374572 | B62: 1.32669014 | C62: 2.515090343 | D62: 144.1040618 | E62: 3.9 | F62: 0.591064607 | G62: 0.590855332 | H62: -0.0002092749969
A63: 77.01374572 | B63: 1.344143432 | C63: 2.526674207 | D63: 144.7677683 | E63: 4 | F63: 0.6020599913 | G63: 0.6019171067 | H63: -0.0001428846391
A64: 78.01374572 | B64: 1.361596725 | C64: 2.537969542 | D64: 145.4149433 | E64: 4.1 | F64: 0.6127838567 | G64: 0.6127033577 | H64: -8.049897678e-05
A65: 79.01374572 | B65: =A65*D_R -> 1.379050017 | C65: 2.548989677 | D65: =C65/D_R -> 146.0463505 | E65: =1/$I$3*(A65-$A$33)+1 -> 4.2 | F65: 0.6232492904 | G65: 0.6232268111 | H65: -2.247926523e-05
A66: 80.01374572 | B66: 1.39650331 | C66: 2.559747074 | D66: 146.6627039 | E66: 4.3 | F66: 0.6334684556 | G66: 0.6334993682 | H66: 3.091266308e-05
A67: 81.01374572 | B67: 1.413956602 | C67: 2.570253407 | D67: 147.2646725 | E67: 4.4 | F67: 0.6434526765 | G67: 0.6435321776 | H67: 7.950112636e-05
A68: 82.01374572 | B68: 1.431409895 | C68: 2.58051963 | D68: 147.8528838 | E68: 4.5 | F68: 0.6532125138 | G68: 0.6533356987 | H68: 0.0001231849032
A69: 83.01374572 | B69: 1.448863187 | C69: 2.590556035 | D69: 148.4279274 | E69: 4.6 | F69: 0.6627578317 | G69: 0.6629197586 | H69: 0.0001619269443
A70: 84.01374572 | B70: 1.46631648 | C70: 2.600372302 | D70: 148.990358 | E70: 4.7 | F70: 0.6720978579 | G70: 0.6722936033 | H70: 0.0001957453233
A71: 85.01374572 | B71: 1.483769772 | C71: 2.609977553 | D71: 149.5406984 | E71: 4.8 | F71: 0.6812412374 | G71: 0.6814659427 | H71: 0.0002247052814
A72: 86.01374572 | B72: 1.501223065 | C72: 2.619380392 | D72: 150.0794414 | E72: 4.9 | F72: 0.69019608 | G72: 0.6904449923 | H72: 0.0002489122358
A73: 87.01374572 | B73: 1.518676357 | C73: 2.628588942 | D73: 150.6070525 | E73: 5 | F73: 0.6989700043 | G73: 0.69923851 | H73: 0.0002685056366
A74: 88.01374572 | B74: 1.53612965 | C74: 2.637610884 | D74: 151.1239716 | E74: 5.1 | F74: 0.7075701761 | G74: 0.7078538297 | H74: 0.0002836535695
A75: 89.01374572 | B75: 1.553582942 | C75: 2.646453485 | D75: 151.6306154 | E75: 5.2 | F75: 0.7160033436 | G75: 0.7162978916 | H75: 0.0002945480147
A76: 90.01374572 | B76: 1.571036235 | C76: 2.65512363 | D76: 152.1273781 | E76: 5.3 | F76: 0.7242758696 | G76: 0.7245772703 | H76: 0.0003014006827
A77: 91.01374572 | B77: 1.588489527 | C77: 2.663627847 | D77: 152.6146338 | E77: 5.4 | F77: 0.7323937598 | G77: 0.7326981992 | H77: 0.000304439355
A78: 92.01374572 | B78: 1.60594282 | C78: 2.67197233 | D78: 153.0927375 | E78: 5.5 | F78: 0.7403626895 | G78: 0.7406665942 | H78: 0.0003039046697
A79: 93.01374572 | B79: 1.623396112 | C79: 2.680162965 | D79: 153.5620263 | E79: 5.6 | F79: 0.748188027 | G79: 0.7484880743 | H79: 0.0003000472962
A80: 94.01374572 | B80: 1.640849405 | C80: 2.688205345 | D80: 154.0228207 | E80: 5.7 | F80: 0.7558748557 | G80: 0.7561679811 | H80: 0.0002931254512
A81: 95.01374572 | B81: 1.658302698 | C81: 2.696104791 | D81: 154.4754256 | E81: 5.8 | F81: 0.7634279936 | G81: 0.7637113963 | H81: 0.000283402714
A82: 96.01374572 | B82: 1.67575599 | C82: 2.703866369 | D82: 154.9201313 | E82: 5.9 | F82: 0.7708520116 | G82: 0.7711231577 | H82: 0.0002711461025
A83: 97.01374572 | B83: 1.693209283 | C83: 2.711494907 | D83: 155.3572143 | E83: 6 | F83: 0.7781512504 | G83: 0.7784078748 | H83: 0.0002566243779
A84: 98.01374572 | B84: 1.710662575 | C84: 2.718995006 | D84: 155.7869383 | E84: 6.1 | F84: 0.785329835 | G84: 0.7855699416 | H84: 0.0002401065477
A85: 99.01374572 | B85: 1.728115868 | C85: 2.726371055 | D85: 156.2095549 | E85: 6.2 | F85: 0.7923916895 | G85: 0.79261355 | H85: 0.0002218605428
A86: 100.0137457 | B86: 1.74556916 | C86: 2.733627246 | D86: 156.6253039 | E86: 6.3 | F86: 0.7993405495 | G86: 0.7995427015 | H86: 0.0002021520422
A87: 101.0137457 | B87: 1.763022453 | C87: 2.740767579 | D87: 157.0344149 | E87: 6.4 | F87: 0.806179974 | G87: 0.8063612174 | H87: 0.0001812434291
A88: 102.0137457 | B88: 1.780475745 | C88: 2.747795879 | D88: 157.4371068 | E88: 6.5 | F88: 0.8129133566 | G88: 0.8130727495 | H88: 0.0001593928557
A89: 103.0137457 | B89: 1.797929038 | C89: 2.754715802 | D89: 157.8335892 | E89: 6.6 | F89: 0.8195439355 | G89: 0.8196807889 | H89: 0.0001368534035
A90: 104.0137457 | B90: 1.81538233 | C90: 2.761530844 | D90: 158.2240624 | E90: 6.7 | F90: 0.8260748027 | G90: 0.826188675 | H90: 0.0001138723217
A91: 105.0137457 | B91: 1.832835623 | C91: 2.768244352 | D91: 158.608718 | E91: 6.8 | F91: 0.8325089127 | G91: 0.832599603 | H91: 9.069033179e-05
A92: 106.0137457 | B92: 1.850288915 | C92: 2.774859529 | D92: 158.9877398 | E92: 6.9 | F92: 0.8388490907 | G92: 0.8389166317 | H92: 6.754098528e-05
A93: 107.0137457 | B93: 1.867742208 | C93: 2.781379442 | D93: 159.3613033 | E93: 7 | F93: 0.84509804 | G93: 0.8451426901 | H93: 4.4650063e-05
A94: 108.0137457 | B94: 1.8851955 | C94: 2.787807029 | D94: 159.7295769 | E94: 7.1 | F94: 0.8512583487 | G94: 0.8512805837 | H94: 2.223500581e-05
A95: 109.0137457 | B95: 1.902648793 | C95: 2.794145106 | D95: 160.0927219 | E95: 7.2 | F95: 0.8573324964 | G95: 0.8573330008 | H95: 5.043664993e-07
A96: 110.0137457 | B96: 1.920102085 | C96: 2.800396369 | D96: 160.4508929 | E96: 7.3 | F96: 0.8633228601 | G96: 0.8633025174 | H96: -2.034272658e-05
A97: 111.0137457 | B97: =A97*D_R -> 1.937555378 | C97: 2.806563404 | D97: =C97/D_R -> 160.804238 | E97: =1/$I$3*(A97-$A$33)+1 -> 7.4 | F97: 0.8692317197 | G97: 0.8691916026 | H97: -4.011710322e-05
A98: 112.0137457 | B98: 1.95500867 | C98: =fourbar($F$25,$F$26,$F$27,1,-1,B98) -> 2.812648691 | D98: 161.1528993 | E98: 7.5 | F98: =LOG(E98) -> 0.8750612634 | G98: =1/$I$4*(D98-$C$4)+$C$8 -> 0.8750026233 | H98: =G98-F98 -> -5.864009132e-05
A99: =A98+1 -> 113.0137457 | B99: 1.972461963 | C99: 2.818654605 | D99: 161.4970127 | E99: 7.6 | F99: 0.8808135923 | G99: 0.8807378482 | H99: -7.574407219e-05
A100: 114.0137457 | B100: 1.989915255 | C100: 2.824583422 | D100: 161.836709 | E100: 7.7 | F100: 0.8864907252 | G100: 0.8863994521 | H100: -9.127305986e-05
A101: 115.0137457 | B101: 2.007368548 | C101: 2.830437327 | D101: 162.172113 | E101: 7.8 | F101: 0.8920946027 | G101: 0.8919895194 | H101: -0.0001050833139
A102: 116.0137457 | B102: 2.02482184 | C102: 2.83621841 | D102: 162.5033447 | E102: 7.9 | F102: 0.8976270913 | G102: 0.8975100473 | H102: -0.000117043995
A103: 117.0137457 | B103: 2.042275133 | C103: 2.841928676 | D103: 162.8305188 | E103: 8 | F103: 0.903089987 | G103: 0.9029629491 | H103: -0.0001270378742
A104: 118.0137457 | B104: 2.059728425 | C104: 2.847570042 | D104: 163.1537453 | E104: 8.1 | F104: 0.9084850189 | G104: 0.9083500568 | H104: -0.0001349621054
A105: 119.0137457 | B105: 2.077181718 | C105: 2.853144344 | D105: 163.4731293 | E105: 8.2 | F105: 0.9138138524 | G105: 0.9136731233 | H105: -0.0001407290743
A106: 120.0137457 | B106: 2.094635011 | C106: 2.858653338 | D106: 163.7887714 | E106: 8.3 | F106: 0.9190780924 | G106: 0.918933825 | H106: -0.000144267336
A107: 121.0137457 | B107: 2.112088303 | C107: 2.864098701 | D107: 164.1007677 | E107: 8.4 | F107: 0.9242792861 | G107: 0.9241337634 | H107: -0.0001455226566
A108: 122.0137457 | B108: 2.129541596 | C108: 2.869482032 | D108: 164.4092098 | E108: 8.5 | F108: 0.9294189257 | G108: 0.9292744665 | H108: -0.0001444591731
A109: 123.0137457 | B109: 2.146994888 | C109: 2.874804858 | D109: 164.7141853 | E109: 8.6 | F109: 0.9344984512 | G109: 0.9343573906 | H109: -0.0001410606929
A110: 124.0137457 | B110: 2.164448181 | C110: 2.880068628 | D110: 165.0157771 | E110: 8.7 | F110: 0.9395192526 | G110: 0.9393839205 | H110: -0.0001353321509
A111: 125.0137457 | B111: 2.181901473 | C111: 2.885274719 | D111: 165.3140641 | E111: 8.8 | F111: 0.9444826722 | G111: 0.9443553709 | H111: -0.0001273012505
A112: 126.0137457 | B112: 2.199354766 | C112: 2.890424433 | D112: 165.609121 | E112: 8.9 | F112: 0.9493900066 | G112: 0.9492729863 | H112: -0.0001170203143
A113: 127.0137457 | B113: 2.216808058 | C113: 2.895519002 | D113: 165.9010183 | E113: 9 | F113: 0.9542425094 | G113: 0.9541379411 | H113: -0.000104568378
A114: 128.0137457 | B114: 2.234261351 | C114: 2.90055958 | D114: 166.1898222 | E114: 9.1 | F114: 0.9590413923 | G114: 0.9589513388 | H114: -9.005356385e-05
A115: 129.0137457 | B115: 2.251714643 | C115: 2.905547249 | D115: 166.4755945 | E115: 9.2 | F115: 0.9637878273 | G115: 0.9637142116 | H115: -7.361577846e-05
A116: 130.0137457 | B116: 2.269167936 | C116: 2.910483013 | D116: 166.758393 | E116: 9.3 | F116: 0.9684829486 | G116: 0.9684275188 | H116: -5.542978512e-05
A117: 131.0137457 | B117: 2.286621228 | C117: 2.915367798 | D117: 167.0382705 | E117: 9.4 | F117: 0.9731278536 | G117: 0.9730921449 | H117: -3.570871301e-05
A118: 132.0137457 | B118: 2.304074521 | C118: 2.92020245 | D118: 167.3152757 | E118: 9.5 | F118: 0.9777236053 | G118: 0.9777088972 | H118: -1.470807468e-05
A119: 133.0137457 | B119: 2.321527813 | C119: 2.924987729 | D119: 167.589452 | E119: 9.6 | F119: 0.982271233 | G119: 0.9822785027 | H119: 7.26962128e-06
A120: 134.0137457 | B120: 2.338981106 | C120: 2.92972431 | D120: 167.8608381 | E120: 9.7 | F120: 0.9867717343 | G120: 0.9868016038 | H120: 2.986955894e-05
A121: 135.0137457 | B121: 2.356434398 | C121: 2.934412771 | D121: 168.1294671 | E121: 9.8 | F121: 0.9912260757 | G121: 0.9912787542 | H121: 5.267847999e-05
A122: 136.0137457 | B122: 2.373887691 | C122: 2.939053592 | D122: 168.3953666 | E122: 9.9 | F122: 0.9956351946 | G122: 0.9957104122 | H122: 7.521757364e-05
A123: 137.0137457 | B123: 2.391340983 | C123: 2.943647147 | D123: 168.6585579 | E123: 10 | F123: 1 | G123: 1.000096934 | H123: 9.693420681e-05
A124: 138.0137457 | B124: 2.408794276 | C124: 2.948193693 | D124: 168.9190558 | E124: 10.1 | F124: 1.004321374 | G124: 1.004438566 | H124: 0.0001171922686
A125: 139.0137457 | B125: 2.426247568 | C125: 2.952693361 | D125: 169.1768678 | E125: 10.2 | F125: 1.008600172 | G125: 1.008735433 | H125: 0.0001352608499
A126: 140.0137457 | B126: 2.443700861 | C126: 2.957146143 | D126: 169.4319934 | E126: 10.3 | F126: 1.012837225 | G126: 1.012987526 | H126: 0.0001503009133
A127: 141.0137457 | B127: 2.461154153 | C127: 2.961551874 | D127: 169.6844232 | E127: 10.4 | F127: 1.017033339 | G127: 1.017194689 | H127: 0.000161349519
A128: 142.0137457 | B128: 2.478607446 | C128: 2.965910217 | D128: 169.9341379 | E128: 10.5 | F128: 1.021189299 | G128: 1.0213566 | H128: 0.0001673010657
A129: 143.0137457 | B129: =A129*D_R -> 2.496060738 | C129: 2.970220639 | D129: =C129/D_R -> 170.1811069 | E129: 10.6 | F129: 1.025305865 | G129: 1.02547275 | H129: 0.0001668848551
A130: 144.0137457 | B130: 2.513514031 | C130: 2.974482383 | D130: 170.4252868 | E130: 10.7 | F130: 1.029383778 | G130: 1.029542416 | H130: 0.0001586380991
A131: 145.0137457 | B131: 2.530967324 | C131: 2.978694435 | D131: 170.6666196 | E131: 10.8 | F131: 1.033423755 | G131: 1.033564629 | H131: 0.0001408732318
A132: 146.0137457 | B132: 2.548420616 | C132: 2.982855482 | D132: 170.90503 | E132: 10.9 | F132: 1.037426498 | G132: 1.037538136 | H132: 0.0001116380471
A133: 147.0137457 | B133: 2.565873909 | C133: 2.986963864 | D133: 171.140423 | E133: 11 | F133: 1.041392685 | G133: 1.041461352 | H133: 6.866670882e-05

Sheet y=logx_5DVExtremePoint
B1: y=logx | C1: 1<x<10
B3: qin | C3: 15 | E3: Dq | F3: 90 | H3: Rx | I3: =F3/9 -> 10 | J3: =LN(2) -> 0.6931471806 | N3: 30
B4: fin | C4: 120.5966262 | E4: Df | F4: 60 | H4: Ry | I4: =F4 -> 60 | N4: 10.90943725
F5: =C23*C15+C24*D15+C25-G15 -> -0.002592781792
A6: =C4+180 -> 300.5966262 | N6: 96.55334769
A7: =A6-360 -> -59.40337375 | B7: x | C7: y | D7: q | E7: f
B8: 1 | C8: =LOG(B8) -> 0 | D8: =$C$3+$I$3*(B8-1) -> 15 | E8: =$C$4+$I$4*C8 -> 120.5966262 | G8: =D8*D_R -> 0.2617993878 | H8: =E8*D_R -> 2.104808195 | J8: Chebyshev spacing
B9: =5.5-4.5*COS(2*PI()/8) -> 2.318019485 | C9: =LOG(B9) -> 0.3651170822 | D9: =$C$3+$I$3*(B9-1) -> 28.18019485 | E9: =$C$4+$I$4*C9 -> 142.5036512 | G9: 0.4918371839 | H9: 2.487157909
B10: =5.5-4.5*COS(4*PI()/8) -> 5.5 | C10: 0.7403626895 | D10: 60 | E10: 165.0183876 | G10: 1.047197551 | H10: 2.88011419
B11: =5.5-4.5*COS(6*PI()/8) -> 8.681980515 | C11: 0.9386188068 | D11: 91.81980515 | E11: 176.9137547 | G11: 1.602557918 | H11: 3.087727511
B12: 10 | C12: 1 | D12: 105 | E12: 180.5966262 | G12: 1.832595715 | H12: 3.152005746
C15: =COS(H8) -> -0.5089907317 | D15: =-COS(G8) -> -0.9659258263 | E15: 1 | F15: 1 | G15: =COS(H8-G8) -> -0.2688631061
C16: =COS(H9) -> -0.7933921321 | D16: =-COS(G9) -> -0.8814667437 | E16: 1 | F16: -1 | G16: =COS(H9-G9) -> -0.4118874437
C17: =COS(H10) -> -0.9660088379 | D17: =-COS(G10) -> -0.5 | E17: 1 | F17: 1 | G17: =COS(H10-G10) -> -0.259129021
C18: =COS(H11) -> -0.9985496239 | D18: =-COS(G11) -> 0.03175625177 | E18: 1 | F18: -1 | G18: =COS(H11-G11) -> 0.08552213781
C19: =COS(H12) -> -0.9999457842 | D19: =-COS(G12) -> 0.2588190451 | E19: 1 | F19: 1 | G19: =COS(H12-G12) -> 0.2487469199
A22: =C3+180 -> 195 | H22: =$C$23*C15+$C$24*D15+$C$25-G15+$C$26*F15 -> 2.029626467e-16
A23: =C4+180 -> 300.5966262 | C23: =MMULT(MINVERSE(C15:F18),G15:G18) -> 0.6926242354 | E23: a2 | F23: =1/C23 -> 1.443784305 | G23: =-F23 -> -1.443784305 | H23: =$C$23*C16+$C$24*D16+$C$25-G16+$C$26*F16 -> 7.459310947e-17
C24: 0.7002743422 | E24: a3 | F24: =SQRT(1+F23^2+F25^2-2*C25*F23*F25) -> 1.414286949 | H24: =$C$23*C17+$C$24*D17+$C$25-G17+$C$26*F17 -> 2.029626467e-16
C25: 0.757496501 | E25: a4 | F25: =1/C24 -> 1.428011766 | G25: =-F25 -> -1.428011766 | H25: =$C$23*C18+$C$24*D18+$C$25-G18+$C$26*F18 -> 1.301042607e-16
C26: 0.002592781792
C28: =$C$23*C19+$C$24*D19+$C$25*E19+$C$26*F19-G19 -> 1.525203933e-08
H29: =MIN(H31:H123) -> -0.01097801298
E30: x | F30: yreq | G30: ygen | H30: =MAX(H31:H123) -> 0.006741259862
A31: =C3 -> 15 | B31: =A31*D_R -> 0.2617993878 | C31: =fourbar($F$23,$F$24,$F$25,1,-1,B31) -> 2.111867626 | D31: =C31/D_R -> 121.0011018 | E31: =1/$I$3*(A31-$A$31)+1 -> 1 | F31: =LOG(E31) -> 0 | G31: =1/$I$4*(D31-$C$4)+$C$8 -> 0.006741259862 | H31: =G31-F31 -> 0.006741259862
A32: =A31+1 -> 16 | B32: 0.2792526803 | C32: =fourbar($F$23,$F$24,$F$25,1,-1,B32) -> 2.148110294 | D32: 123.0776537 | E32: =1/$I$3*(A32-$A$31)+1 -> 1.1 | F32: =LOG(E32) -> 0.04139268516 | G32: =1/$I$4*(D32-$C$4)+$C$8 -> 0.04135045836 | H32: =G32-F32 -> -4.222680254e-05
A33: =A32+1 -> 17 | B33: 0.2967059728 | C33: 2.182795476 | D33: 125.0649683 | E33: 1.2 | F33: 0.07918124605 | G33: 0.07447236777 | H33: -0.004708878274
A34: 18 | B34: 0.3141592654 | C34: 2.215975525 | D34: 126.9660451 | E34: 1.3 | F34: 0.1139433523 | G34: 0.1061569805 | H34: -0.007786371785
A35: 19 | B35: 0.3316125579 | C35: 2.247707231 | D35: 128.7841379 | E35: 1.4 | F35: 0.1461280357 | G35: 0.1364585279 | H35: -0.009669507806
A36: 20 | B36: 0.3490658504 | C36: 2.278050286 | D36: 130.5226669 | E36: 1.5 | F36: 0.1760912591 | G36: 0.1654340111 | H36: -0.01065724793
A37: 21 | B37: 0.3665191429 | C37: 2.307065992 | D37: 132.1851444 | E37: 1.6 | F37: 0.2041199827 | G37: 0.1931419697 | H37: -0.01097801298
A38: 22 | B38: 0.3839724354 | C38: 2.334816204 | D38: 133.7751144 | E38: 1.7 | F38: 0.2304489214 | G38: 0.2196414692 | H38: -0.01080745216
A39: 23 | B39: 0.401425728 | C39: 2.361362472 | D39: 135.2961036 | E39: 1.8 | F39: 0.2552725051 | G39: 0.2449912885 | H39: -0.01028121662
A40: 24 | B40: 0.4188790205 | C40: 2.386765382 | D40: 136.7515831 | E40: 1.9 | F40: 0.278753601 | G40: 0.2692492803 | H40: -0.009504320665
A41: 25 | B41: 0.436332313 | C41: 2.411084034 | D41: 138.1449392 | E41: 2 | F41: 0.3010299957 | G41: 0.2924718826 | H41: -0.008558113049
A42: 26 | B42: 0.4537856055 | C42: 2.43437567 | D42: 139.4794516 | E42: 2.1 | F42: 0.3222192947 | G42: 0.3147137565 | H42: -0.007505538247
A43: 27 | B43: 0.471238898 | C43: 2.4566954 | D43: 140.758278 | E43: 2.2 | F43: 0.3424226808 | G43: 0.3360275291 | H43: -0.006395151725
A44: 28 | B44: 0.4886921906 | C44: 2.478096028 | D44: 141.9844436 | E44: 2.3 | F44: 0.361727836 | G44: 0.3564636231 | H44: -0.00526421289
A45: 29 | B45: 0.5061454831 | C45: 2.498627941 | D45: 143.1608356 | E45: 2.4 | F45: 0.3802112417 | G45: 0.3760701555 | H45: -0.004141086221
A46: 30 | B46: 0.5235987756 | C46: 2.518339063 | D46: 144.2901997 | E46: 2.5 | F46: 0.3979400087 | G46: 0.3948928912 | H46: -0.003047117509
A47: 31 | B47: 0.5410520681 | C47: 2.537274855 | D47: 145.3751406 | E47: 2.6 | F47: 0.414973348 | G47: 0.41297524 | H47: -0.001998107949
A48: 32 | B48: 0.5585053606 | C48: 2.555478339 | D48: 146.4181234 | E48: 2.7 | F48: 0.4313637642 | G48: 0.4303582866 | H48: -0.001005477564
A49: 33 | B49: 0.5759586532 | C49: 2.57299016 | D49: 147.4214769 | E49: 2.8 | F49: 0.4471580313 | G49: 0.4470808445 | H49: -7.71868847e-05
A50: 34 | B50: 0.5934119457 | C50: 2.589848663 | D50: 148.387398 | E50: 2.9 | F50: 0.4623979979 | G50: 0.4631795285 | H50: 0.0007815306401
A51: 35 | B51: 0.6108652382 | C51: 2.606089976 | D51: 149.3179566 | E51: 3 | F51: 0.4771212547 | G51: 0.4786888399 | H51: 0.001567585197
A52: 36 | B52: 0.6283185307 | C52: 2.621748112 | D52: 150.2151018 | E52: 3.1 | F52: 0.4913616938 | G52: 0.4936412588 | H52: 0.002279564966
A53: 37 | B53: 0.6457718232 | C53: 2.636855072 | D53: 151.0806668 | E53: 3.2 | F53: 0.5051499783 | G53: 0.5080673423 | H53: 0.002917363992
A54: 38 | B54: 0.6632251158 | C54: 2.651440944 | D54: 151.9163757 | E54: 3.3 | F54: 0.5185139399 | G54: 0.5219958244 | H54: 0.003481884559
A55: 39 | B55: 0.6806784083 | C55: 2.665534015 | D55: 152.7238492 | E55: 3.4 | F55: 0.531478917 | G55: 0.5354537161 | H55: 0.003974799094
A56: 40 | B56: 0.6981317008 | C56: 2.67916087 | D56: 153.5046105 | E56: 3.5 | F56: 0.5440680444 | G56: 0.5484664041 | H56: 0.004398359747
A57: 41 | B57: 0.7155849933 | C57: 2.692346494 | D57: 154.2600911 | E57: 3.6 | F57: 0.5563025008 | G57: 0.561057747 | H57: 0.004755246259
A58: 42 | B58: 0.7330382858 | C58: 2.705114368 | D58: 154.9916364 | E58: 3.7 | F58: 0.5682017241 | G58: 0.5732501687 | H58: 0.005048444608
A59: 43 | B59: 0.7504915784 | C59: 2.717486565 | D59: 155.7005111 | E59: 3.8 | F59: 0.5797835966 | G59: 0.5850647471 | H59: 0.005281150452
A60: 44 | B60: 0.7679448709 | C60: 2.729483839 | D60: 156.3879042 | E60: 3.9 | F60: 0.591064607 | G60: 0.5965212996 | H60: 0.005456692566
A61: 45 | B61: 0.7853981634 | C61: 2.741125706 | D61: 157.0549341 | E61: 4 | F61: 0.6020599913 | G61: 0.6076384637 | H61: 0.005578472402
A62: 46 | B62: 0.8028514559 | C62: 2.752430528 | D62: 157.7026527 | E62: 4.1 | F62: 0.6127838567 | G62: 0.6184337734 | H62: 0.005649916681
A63: 47 | B63: =A63*D_R -> 0.8203047484 | C63: 2.763415586 | D63: =C63/D_R -> 158.3320501 | E63: 4.2 | F63: 0.6232492904 | G63: 0.6289237309 | H63: 0.005674440486
A64: 48 | B64: 0.837758041 | C64: 2.774097151 | D64: 158.9440587 | E64: 4.3 | F64: 0.6334684556 | G64: 0.6391238744 | H64: 0.005655418844
A65: 49 | B65: 0.8552113335 | C65: 2.784490552 | D65: 159.5395567 | E65: 4.4 | F65: 0.6434526765 | G65: 0.6490488416 | H65: 0.005596165149
A66: 50 | B66: 0.872664626 | C66: 2.794610237 | D66: 160.119372 | E66: 4.5 | F66: 0.6532125138 | G66: 0.6587124289 | H66: 0.005499915089
A67: 51 | B67: 0.8901179185 | C67: 2.80446983 | D67: 160.684285 | E67: 4.6 | F67: 0.6627578317 | G67: 0.6681276467 | H67: 0.005369815004
A68: 52 | B68: 0.907571211 | C68: 2.814082188 | D68: 161.2350326 | E68: 4.7 | F68: 0.6720978579 | G68: 0.6773067717 | H68: 0.005208913792
A69: 53 | B69: 0.9250245036 | C69: 2.823459447 | D69: 161.7723099 | E69: 4.8 | F69: 0.6812412374 | G69: 0.686261395 | H69: 0.00502015765
A70: 54 | B70: 0.9424777961 | C70: 2.832613076 | D70: 162.2967743 | E70: 4.9 | F70: 0.69019608 | G70: 0.6950024671 | H70: 0.004806387079
A71: 55 | B71: 0.9599310886 | C71: 2.841553916 | D71: 162.8090466 | E71: 5 | F71: 0.6989700043 | G71: 0.70354034 | H71: 0.004570335663
A72: 56 | B72: 0.9773843811 | C72: 2.850292221 | D72: 163.3097146 | E72: 5.1 | F72: 0.7075701761 | G72: 0.7118848064 | H72: 0.004314630263
A73: 57 | B73: 0.9948376736 | C73: 2.858837698 | D73: 163.7993344 | E73: 5.2 | F73: 0.7160033436 | G73: 0.7200451359 | H73: 0.004041792295
A74: 58 | B74: 1.012290966 | C74: 2.867199543 | D74: 164.2784328 | E74: 5.3 | F74: 0.7242758696 | G74: 0.7280301094 | H74: 0.003754239849
A75: 59 | B75: 1.029744259 | C75: 2.875386471 | D75: 164.7475093 | E75: 5.4 | F75: 0.7323937598 | G75: 0.7358480503 | H75: 0.003454290449
A76: 60 | B76: 1.047197551 | C76: 2.883406751 | D76: 165.2070375 | E76: 5.5 | F76: 0.7403626895 | G76: 0.7435068538 | H76: 0.003144164277
A77: 61 | B77: 1.064650844 | C77: 2.891268232 | D77: 165.6574671 | E77: 5.6 | F77: 0.748188027 | G77: 0.7510140147 | H77: 0.00282598774
A78: 62 | B78: 1.082104136 | C78: 2.898978369 | D78: 166.0992254 | E78: 5.7 | F78: 0.7558748557 | G78: 0.7583766529 | H78: 0.002501797262
A79: 63 | B79: 1.099557429 | C79: 2.906544249 | D79: 166.5327185 | E79: 5.8 | F79: 0.7634279936 | G79: 0.7656015368 | H79: 0.00217354323
A80: 64 | B80: 1.117010721 | C80: 2.913972617 | D80: 166.9583326 | E80: 5.9 | F80: 0.7708520116 | G80: 0.7726951056 | H80: 0.001843094007
A81: 65 | B81: 1.134464014 | C81: 2.921269893 | D81: 167.3764357 | E81: 6 | F81: 0.7781512504 | G81: 0.7796634904 | H81: 0.001512239979
A82: 66 | B82: 1.151917306 | C82: 2.928442193 | D82: 167.7873782 | E82: 6.1 | F82: 0.785329835 | G82: 0.7865125326 | H82: 0.001182697575
A83: 67 | B83: 1.169370599 | C83: 2.935495351 | D83: 168.1914944 | E83: 6.2 | F83: 0.7923916895 | G83: 0.7932478027 | H83: 0.0008561132391
A84: 68 | B84: 1.186823891 | C84: 2.942434935 | D84: 168.5891033 | E84: 6.3 | F84: 0.7993405495 | G84: 0.7998746168 | H84: 0.0005340673291
A85: 69 | B85: 1.204277184 | C85: 2.94926626 | D85: 168.9805094 | E85: 6.4 | F85: 0.806179974 | G85: 0.8063980519 | H85: 0.0002180779163
A86: 70 | B86: 1.221730476 | C86: 2.955994409 | D86: 169.3660039 | E86: 6.5 | F86: 0.8129133566 | G86: 0.8128229611 | H86: -9.039552097e-05
A87: 71 | B87: 1.239183769 | C87: 2.962624244 | D87: 169.7458655 | E87: 6.6 | F87: 0.8195439355 | G87: 0.819153987 | H87: -0.0003899485214
A88: 72 | B88: 1.256637061 | C88: 2.969160419 | D88: 170.1203607 | E88: 6.7 | F88: 0.8260748027 | G88: 0.8253955745 | H88: -0.000679228189
A89: 73 | B89: 1.274090354 | C89: 2.975607395 | D89: 170.4897452 | E89: 6.8 | F89: 0.8325089127 | G89: 0.8315519828 | H89: -0.000956929868
A90: 74 | B90: 1.291543646 | C90: 2.981969449 | D90: 170.8542641 | E90: 6.9 | F90: 0.8388490907 | G90: 0.8376272968 | H90: -0.001221793948
A91: 75 | B91: 1.308996939 | C91: 2.988250687 | D91: 171.2141525 | E91: 7 | F91: 0.84509804 | G91: 0.8436254372 | H91: -0.001472602793
A92: 76 | B92: 1.326450232 | C92: 2.994455053 | D92: 171.5696365 | E92: 7.1 | F92: 0.8512583487 | G92: 0.8495501709 | H92: -0.001708177807
A93: 77 | B93: 1.343903524 | C93: 3.000586342 | D93: 171.9209334 | E93: 7.2 | F93: 0.8573324964 | G93: 0.8554051198 | H93: -0.001927376609
A94: 78 | B94: 1.361356817 | C94: 3.006648202 | D94: 172.2682524 | E94: 7.3 | F94: 0.8633228601 | G94: 0.8611937698 | H94: -0.002129090345
A95: 79 | B95: =A95*D_R -> 1.378810109 | C95: 3.01264415 | D95: =C95/D_R -> 172.611795 | E95: 7.4 | F95: 0.8692317197 | G95: 0.8669194786 | H95: -0.002312241104
A96: 80 | B96: 1.396263402 | C96: =fourbar($F$23,$F$24,$F$25,1,-1,B96) -> 3.018577577 | D96: 172.9517553 | E96: =1/$I$3*(A96-$A$31)+1 -> 7.5 | F96: =LOG(E96) -> 0.8750612634 | G96: =1/$I$4*(D96-$C$4)+$C$8 -> 0.8725854839 | H96: =G96-F96 -> -0.002475779454
A97: =A96+1 -> 81 | B97: 1.413716694 | C97: 3.024451754 | D97: 173.2883209 | E97: 7.6 | F97: 0.8808135923 | G97: 0.8781949102 | H97: -0.002618682086
A98: 82 | B98: 1.431169987 | C98: 3.030269843 | D98: 173.6216728 | E98: 7.7 | F98: 0.8864907252 | G98: 0.8837507756 | H98: -0.002739949558
A99: 83 | B99: 1.448623279 | C99: 3.036034899 | D99: 173.9519862 | E99: 7.8 | F99: 0.8920946027 | G99: 0.8892559986 | H99: -0.00283860414
A100: 84 | B100: 1.466076572 | C100: 3.04174988 | D100: 174.2794305 | E100: 7.9 | F100: 0.8976270913 | G100: 0.8947134035 | H100: -0.002913687755
A101: 85 | B101: 1.483529864 | C101: 3.047417652 | D101: 174.6041699 | E101: 8 | F101: 0.903089987 | G101: 0.900125727 | H101: -0.002964260004
A102: 86 | B102: 1.500983157 | C102: 3.053040993 | D102: 174.9263636 | E102: 8.1 | F102: 0.9084850189 | G102: 0.9054956226 | H102: -0.002989396284
A103: 87 | B103: 1.518436449 | C103: 3.058622602 | D103: 175.2461662 | E103: 8.2 | F103: 0.9138138524 | G103: 0.9108256664 | H103: -0.002988185975
A104: 88 | B104: 1.535889742 | C104: 3.0641651 | D104: 175.5637279 | E104: 8.3 | F104: 0.9190780924 | G104: 0.9161183617 | H104: -0.002959730714
A105: 89 | B105: 1.553343034 | C105: 3.069671036 | D105: 175.8791948 | E105: 8.4 | F105: 0.9242792861 | G105: 0.9213761433 | H105: -0.002903142735
A106: 90 | B106: 1.570796327 | C106: 3.075142893 | D106: 176.1927092 | E106: 8.5 | F106: 0.9294189257 | G106: 0.9266013824 | H106: -0.002817543276
A107: 91 | B107: 1.588249619 | C107: 3.080583093 | D107: 176.5044097 | E107: 8.6 | F107: 0.9344984512 | G107: 0.9317963902 | H107: -0.00270206105
A108: 92 | B108: 1.605702912 | C108: 3.085993996 | D108: 176.8144316 | E108: 8.7 | F108: 0.9395192526 | G108: 0.9369634218 | H108: -0.002555830782
A109: 93 | B109: 1.623156204 | C109: 3.091377909 | D109: 177.1229071 | E109: 8.8 | F109: 0.9444826722 | G109: 0.9421046804 | H109: -0.002377991794
A110: 94 | B110: 1.640609497 | C110: 3.096737089 | D110: 177.4299654 | E110: 8.9 | F110: 0.9493900066 | G110: 0.94722232 | H110: -0.002167686649
A111: 95 | B111: 1.658062789 | C111: 3.102073743 | D111: 177.7357332 | E111: 9 | F111: 0.9542425094 | G111: 0.9523184496 | H111: -0.001924059842
A112: 96 | B112: 1.675516082 | C112: 3.107390037 | D112: 178.0403344 | E112: 9.1 | F112: 0.9590413923 | G112: 0.9573951358 | H112: -0.001646256544
A113: 97 | B113: 1.692969374 | C113: 3.112688092 | D113: 178.3438906 | E113: 9.2 | F113: 0.9637878273 | G113: 0.962454406 | H113: -0.001333421386
A114: 98 | B114: 1.710422667 | C114: 3.117969994 | D114: 178.6465213 | E114: 9.3 | F114: 0.9684829486 | G114: 0.9674982513 | H114: -0.0009846972847
A115: 99 | B115: 1.727875959 | C115: 3.123237794 | D115: 178.948344 | E115: 9.4 | F115: 0.9731278536 | G115: 0.9725286293 | H115: -0.0005992243149
A116: 100 | B116: 1.745329252 | C116: 3.128493508 | D116: 179.2494742 | E116: 9.5 | F116: 0.9777236053 | G116: 0.9775474667 | H116: -0.0001761386135
A117: 101 | B117: 1.762782545 | C117: 3.133739125 | D117: 179.5500259 | E117: 9.6 | F117: 0.982271233 | G117: 0.9825566617 | H117: 0.0002854286762
A118: 102 | B118: 1.780235837 | C118: 3.138976605 | D118: 179.8501114 | E118: 9.7 | F118: 0.9867717343 | G118: 0.9875580867 | H118: 0.0007863524269
A119: 103 | B119: 1.79768913 | C119: 3.144207884 | D119: 180.1498417 | E119: 9.8 | F119: 0.9912260757 | G119: 0.9925535902 | H119: 0.001327514516
A120: 104 | B120: 1.815142422 | C120: 3.149434875 | D120: 180.4493262 | E120: 9.9 | F120: 0.9956351946 | G120: 0.9975449994 | H120: 0.00190980478
A121: 105 | B121: 1.832595715 | C121: 3.154659472 | D121: 180.7486736 | E121: 10 | F121: 1 | G121: 1.002534122 | H121: 0.002534121944
A122: 106 | B122: 1.850049007 | C122: 3.15988355 | D122: 181.0479911 | E122: 10.1 | F122: 1.004321374 | G122: 1.007522748 | H122: 0.003201374512
A123: 107 | B123: 1.8675023 | C123: 3.165108966 | D123: 181.3473855 | E123: 10.2 | F123: 1.008600172 | G123: 1.012512653 | H123: 0.003912481636
A124: 108 | B124: 1.884955592 | C124: 3.170337566 | D124: 181.6469622 | E124: 10.3 | F124: 1.012837225 | G124: 1.017505599 | H124: 0.00466837395
A125: 109 | B125: 1.902408885 | C125: 3.175571182 | D125: 181.9468263 | E125: 10.4 | F125: 1.017033339 | G125: 1.022503334 | H125: 0.005469994378
A126: 110 | B126: 1.919862177 | C126: 3.180811635 | D126: 182.2470821 | E126: 10.5 | F126: 1.021189299 | G126: 1.027507598 | H126: 0.006318298914
A127: 111 | B127: =A127*D_R -> 1.93731547 | C127: 3.186060739 | D127: =C127/D_R -> 182.5478336 | E127: 10.6 | F127: 1.025305865 | G127: 1.032520123 | H127: 0.007214257371
A128: 112 | B128: 1.954768762 | C128: 3.191320298 | D128: 182.8491842 | E128: 10.7 | F128: 1.029383778 | G128: 1.037542632 | H128: 0.008158854101
A129: 113 | B129: 1.972222055 | C129: 3.196592113 | D129: 183.1512369 | E129: 10.8 | F129: 1.033423755 | G129: 1.042576844 | H129: 0.009153088688
A130: 114 | B130: 1.989675347 | C130: 3.201877979 | D130: 183.4540947 | E130: 10.9 | F130: 1.037426498 | G130: 1.047624475 | H130: 0.01019797661
A131: 115 | B131: 2.00712864 | C131: 3.207179689 | D131: 183.7578603 | E131: 11 | F131: 1.041392685 | G131: 1.052687235 | H131: 0.01129454985

Sheet result
A1: r
C2: y=x2, 0≤ x ≤ 1, Dq=100o, Df=100o
C3: Extreme Point Syn. 5 Design P | D3: x1= | E3: 0 | F3: L= | G3: 0.0012823306
D4: x2= | E4: 0.1464466094 | F4: a2= | G4: -2.204608331
D5: x3= | E5: 0.5 | F5: a3= | G5: 0.9714751921
D6: x4= | E6: 0.8535533906 | F6: a4= | G6: 1.698925804
D7: x5= | E7: 1 | F7: fin | G7: 226.25000o
D8: qin | E8: 80o
C9: Extreme Point Syn. 6 Design P | D9: x1= | E9: 0 | F9: L= | G9: -0.002114423327
D10: x2= | E10: 0.09549150281 | F10: a2= | G10: -2.291374723
D11: x3= | E11: 0.3454915028 | F11: a3= | G11: 0.8905602
D12: x4= | E12: 0.6545084972 | F12: a4= | G12: -1.827295806
D13: x5= | E13: 0.9045084972 | F13: fin | G13: 257.68292o
D14: x6= | E14: 1 | F14: qin | G14: 77.68292o
C16: y=logx, 1≤ x ≤10, Dq=90o, Df=60o
C17: Extreme Point Syn. 5 Design P | D17: x1= | E17: 1 | F17: L= | G17: 0.002592781792
D18: x2= | E18: 2.318019485 | F18: a2= | G18: 1.443784305
D19: x3= | E19: 5.5 | F19: a3= | G19: 1.414286949
D20: x4= | E20: 8.681980515 | F20: a4= | G20: 1.428011766
D21: x5= | E21: 10 | F21: fin | G21: 120.59663o
D22: qin | E22: 15o
C23: Extreme Point Syn. 6 Design P | D23: x1= | E23: 1 | F23: L= | G23: -3.813622489e-05
D24: x2= | E24: 1.859423525 | F24: a2= | G24: 1.298642098
D25: x3= | E25: 4.109423525 | F25: a3= | G25: 0.6884881489
D26: x4= | E26: 6.890576475 | F26: a4= | G26: 1.597048468
D27: x5= | E27: 9.140576475 | F27: fin | G27: 47.01375o
D28: x6= | E28: 10 | F28: qin | G28: 108.65274o
C30: y=ex, 0≤x≤1, Dq=120o Df=100o
C31: Least Square 5 Design Variables | F31: L= | G31: -0.001996542386
F32: a2= | G32: 8.675514786
D33: xj= | E33: 0.1j | F33: a3= | G33: 7.480043737
D34: j=0,1,2..10 | F34: a4= | G34: 2.373017639
F35: qin | G35: 258,800424o
F36: fin | G36: 206,396663o
C37: 5 Precision point Synthesis
D38: x1= | E38: 0.02447174185 | F38: a2= | G38: 3.912774462
D39: x2= | E39: 0.2061073739 | F39: a3= | G39: 1.309797986
D40: x3= | E40: 0.5 | F40: a4= | G40: 3.528208413
D41: x4= | E41: 0.7938926261 | F41: fin | G41: 210,613002o
D42: x5= | E42: 0.9755282581 | F42: qin | G42: 200,006320o
